Workbook

Sheet Datos
B2: Meses | D2: Años | G2: FON
A3: 1 | B3: Enero | D3: 2013 | G3: FONP
A4: 2 | B4: Febrero | D4: 2016 | G4: FONB
A5: 3 | B5: Marzo | D5: 2018 | G5: FONE
A6: 4 | B6: Abril | D6: 2024 | G6: FONI
A7: 5 | B7: Mayo
A8: 6 | B8: Junio
A9: 7 | B9: Julio
A10: 8 | B10: Agosto
A11: 9 | B11: Setiembre
A12: 10 | B12: Octubre
A13: 11 | B13: Noviembre
A14: 12 | B14: Diciembre
M15: MICROREDES | P15: CODDISA | Q15: CODRED | R15: MICRORED | T15: ESTABLECIMIENTOS
B16: DISAS | F16: COD_DISA | G16: COD_RED | H16: DESC_RED | I16: CODDISA | J16: CODRED | K16: RED | M16: COD_MIC | N16: COD_DISA | O16: COD_RED | P16: DESC_MICRO | Q16: cod_micro | R16: Columna1 | T16: COD_ESTAB | U16: DESC_ESTAB | V16: COD_2000 | W16: TIPOESTAB | X16: COD_DPTO | Y16: COD_PROV | Z16: COD_DIST | AA16: COD_DISA | AB16: COD_RED | AC16: COD_MIC | AD16: FED | AE16: cod_micro | AF16: DIST | AG16: DISARED | AL16: cod_dpto | AM16: cod_prov | AN16: desc_prov | AO16: cod_provi | AP16: PROVINCIA | AS16: COD_DPTO | AT16: COD_PROV | AU16: COD_DIST | AV16: CODIGO | AW16: DESC_DIST | AX16: LONG_POBLA | AY16: cod_provi | AZ16: cod_distri | BA16: distrito
A17: 11 | B17: CUSCO | C17: 11-CUSCO | F17: 11 | G17: 11 | H17: (ALL) | I17: 11 | J17: 06 | K17: 11-(ALL) | M17: 13 | N17: 11 | O17: 01 | P17: ACOMAYO | Q17: =CONCATENATE(O17,M17) -> 0113 | R17: 13-ACOMAYO | T17: 000026386 | U17: MENTAL QUILLABAMBA | V17: 000026386 | X17: 08 | Y17: 09 | Z17: 01 | AA17: 11 | AB17: 03 | AC17: 01 | AD17: I-2 | AE17: =CONCATENATE(AB17,AC17) -> 0301 | AF17: 1 | AG17: 108 | AH17: =CONCATENATE(AB17,AC17,"-",U17) -> 0301-MENTAL QUILLABAMBA | AL17: 00 | AM17: 00 | AN17: (ALL) | AO17: 0000 | AP17: 00-(ALL) | AS17: 08 | AT17: 01 | AU17: 01 | AV17: =CONCATENATE(AT17,AU17) -> 0101 | AW17: CUSCO | AX17: 0 | AY17: =CONCATENATE(AS17,AT17) -> 0801 | AZ17: =CONCATENATE(AS17,AT17,AU17) -> 080101 | BA17: =CONCATENATE(AT17,AU17,"-",AW17) -> 0101-CUSCO
F18: 11 | G18: 00 | H18: HOSPITAL DE APOYO DEPARTAMENTAL CUSCO | I18: 11 | J18: 00 | K18: 00-HOSPITAL DE APOYO DEPARTAMENTAL CUSCO | M18: 03 | N18: 11 | O18: 02 | P18: ANTA | Q18: =CONCATENATE(O18,M18) -> 0203 | R18: 03-ANTA | T18: 000027948 | U18: ESSALUD PICHARI | V18: 000027948 | X18: 08 | Y18: 09 | Z18: 10 | AA18: 11 | AB18: 05 | AC18: 02 | AD18: I-2 | AE18: =CONCATENATE(AB18,AC18) -> 0502 | AF18: 6 | AG18: 308 | AH18: =CONCATENATE(AB18,AC18,"-",U18) -> 0502-ESSALUD PICHARI | AL18: 08 | AM18: 01 | AN18: CUSCO | AO18: 0801 | AP18: 01-CUSCO | AS18: 08 | AT18: 01 | AU18: 02 | AV18: 0102 | AW18: CCORCA | AX18: 0 | AY18: =CONCATENATE(AS18,AT18) -> 0801 | AZ18: =CONCATENATE(AS18,AT18,AU18) -> 080102 | BA18: =CONCATENATE(AT18,AU18,"-",AW18) -> 0102-CCORCA
F19: 11 | G19: 01 | H19: CUSCO SUR | I19: 11 | J19: 01 | K19: 01-CUSCO SUR | M19: 01 | N19: 11 | O19: 02 | P19: BELEMPAMPA | Q19: 0201 | R19: 01-BELEMPAMPA | T19: 000002289 | U19: HOSPITAL DE APOYO DEPARTAMENTAL CUSCO | V19: 000002289 | W19: 1 | X19: 08 | Y19: 01 | Z19: 01 | AA19: 11 | AB19: 00 | AC19: 00 | AD19: III-1 | AE19: 0000 | AF19: 5 | AG19: 208 | AH19: =CONCATENATE(AB19,AC19,"-",U19) -> 0000-HOSPITAL DE APOYO DEPARTAMENTAL CUSCO | AL19: 08 | AM19: 02 | AN19: ACOMAYO | AO19: 0802 | AP19: 02-ACOMAYO | AS19: 08 | AT19: 01 | AU19: 03 | AV19: 0103 | AW19: POROY | AX19: 0 | AY19: 0801 | AZ19: 080103 | BA19: 0103-POROY
F20: 11 | G20: 02 | H20: CUSCO NORTE | I20: 11 | J20: 02 | K20: 02-CUSCO NORTE | M20: 06 | N20: 11 | O20: 02 | P20: CALCA | Q20: 0206 | R20: 06-CALCA | T20: 000010041 | U20: ADOLFO GUEVARA VELASCO | V20: 000010041 | W20: 1 | X20: 08 | Y20: 01 | Z20: 08 | AA20: 11 | AB20: 02 | AC20: 02 | AD20: III-1 | AE20: 0202 | AF20: 2 | AG20: 208 | AH20: =CONCATENATE(AB20,AC20,"-",U20) -> 0202-ADOLFO GUEVARA VELASCO | AL20: 08 | AM20: 03 | AN20: ANTA | AO20: 0803 | AP20: 03-ANTA | AS20: 08 | AT20: 01 | AU20: 04 | AV20: 0104 | AW20: SAN JERONIMO | AX20: 0 | AY20: 0801 | AZ20: 080104 | BA20: 0104-SAN JERONIMO
B21: Meses | F21: 11 | G21: 03 | H21: LA CONVENCION | I21: 11 | J21: 03 | K21: 03-LA CONVENCION | M21: 03 | N21: 11 | O21: 04 | P21: COMBAPATA | Q21: 0403 | R21: 03-COMBAPATA | T21: 000002420 | U21: ACCOCUNCA | V21: 000002420 | W21: 3 | X21: 08 | Y21: 08 | Z21: 08 | AA21: 11 | AB21: 04 | AC21: 06 | AD21: I-2 | AE21: 0406 | AF21: 5 | AG21: 308 | AH21: =CONCATENATE(AB21,AC21,"-",U21) -> 0406-ACCOCUNCA | AL21: 08 | AM21: 04 | AN21: CALCA | AO21: 0804 | AP21: 04-CALCA | AS21: 08 | AT21: 01 | AU21: 05 | AV21: 0105 | AW21: SAN SEBASTIAN | AX21: 0 | AY21: 0801 | AZ21: 080105 | BA21: 0105-SAN SEBASTIAN
A22: 1 | B22: Enero | F22: 11 | G22: 04 | H22: CANAS-CANCHIS-ESPINAR | I22: 11 | J22: 04 | K22: 04-CANAS-CANCHIS-ESPINAR | M22: 16 | N22: 11 | O22: 01 | P22: CUSCO | Q22: 0116 | R22: 16-CUSCO | T22: 000002423 | U22: IDMA | V22: 000002423 | W22: 3 | X22: 08 | Y22: 09 | Z22: 01 | AA22: 11 | AB22: 03 | AC22: 01 | AD22: I-1 | AE22: 0301 | AF22: 2 | AG22: 208 | AH22: =CONCATENATE(AB22,AC22,"-",U22) -> 0301-IDMA | AL22: 08 | AM22: 05 | AN22: CANAS | AO22: 0805 | AP22: 05-CANAS | AS22: 08 | AT22: 01 | AU22: 06 | AV22: 0106 | AW22: SANTIAGO | AX22: 0 | AY22: 0801 | AZ22: 080106 | BA22: 0106-SANTIAGO
A23: 2 | B23: Febrero | F23: 11 | G23: 05 | H23: KIMBIRI PICHARI | I23: 11 | J23: 05 | K23: 05-KIMBIRI PICHARI | M23: 02 | N23: 11 | O23: 04 | P23: EL DESCANSO | Q23: 0402 | R23: 02-EL DESCANSO | T23: 000002424 | U23: POTRERO | V23: 000002424 | W23: 3 | X23: 08 | Y23: 09 | Z23: 01 | AA23: 11 | AB23: 03 | AC23: 01 | AD23: I-1 | AE23: 0301 | AF23: 5 | AG23: 208 | AH23: 0301-POTRERO | AL23: 08 | AM23: 06 | AN23: CANCHIS | AO23: 0806 | AP23: 06-CANCHIS | AS23: 08 | AT23: 01 | AU23: 07 | AV23: 0107 | AW23: SAYLLA | AX23: 0 | AY23: 0801 | AZ23: 080107 | BA23: 0107-SAYLLA
A24: 3 | B24: Marzo | F24: 11 | G24: 06 | H24: ANTONIO LORENA DEL CUSCO | I24: 11 | J24: 06 | K24: 06-ANTONIO LORENA DEL CUSCO | M24: 00 | N24: 11 | O24: 00 | P24: NO PERTENECE A NINGUNA MICRORED | Q24: 0000 | R24: 00-NO PERTENECE A NINGUNA MICRORED | T24: 000002427 | U24: KITENI | V24: 000002427 | W24: 2 | X24: 08 | Y24: 09 | Z24: 02 | AA24: 11 | AB24: 03 | AC24: 04 | AD24: I-4 | AE24: 0304 | AG24: 308 | AH24: 0304-KITENI | AL24: 08 | AM24: 07 | AN24: CHUMBIVILCAS | AO24: 0807 | AP24: 07-CHUMBIVILCAS | AS24: 08 | AT24: 01 | AU24: 08 | AV24: 0108 | AW24: WANCHAQ | AX24: 0 | AY24: 0801 | AZ24: 080108 | BA24: 0108-WANCHAQ
A25: 4 | B25: Abril | F25: 11 | G25: 07 | H25: SICUANI | I25: 11 | J25: 07 | K25: 07-SICUANI | M25: 00 | N25: 11 | O25: 06 | P25: NO PERTENECE A NINGUNA MICRORED | Q25: 0600 | R25: 00-NO PERTENECE A NINGUNA MICRORED | T25: 000002429 | U25: CIRIALO | V25: 000002429 | W25: 3 | X25: 08 | Y25: 09 | Z25: 02 | AA25: 11 | AB25: 03 | AC25: 01 | AD25: I-2 | AE25: 0301 | AF25: 5 | AG25: 308 | AH25: 0301-CIRIALO | AL25: 08 | AM25: 08 | AN25: ESPINAR | AO25: 0808 | AP25: 08-ESPINAR | AS25: 08 | AT25: 02 | AU25: 01 | AV25: 0201 | AW25: ACOMAYO | AX25: 0 | AY25: 0802 | AZ25: 080201 | BA25: 0201-ACOMAYO
A26: 5 | B26: Mayo | F26: 11 | G26: 08 | H26: CHUMBIVILCAS | I26: 11 | J26: 08 | K26: 08-CHUMBIVILCAS | M26: 01 | N26: 11 | O26: 07 | P26: NO PERTENECE A NINGUNA MICRORED | Q26: 0701 | R26: 01-NO PERTENECE A NINGUNA MICRORED | T26: 000002430 | U26: PAMPA CONCEPCION | V26: 000002430 | W26: 3 | X26: 08 | Y26: 09 | Z26: 02 | AA26: 11 | AB26: 03 | AC26: 01 | AD26: I-2 | AE26: 0301 | AF26: 6 | AG26: 308 | AH26: 0301-PAMPA CONCEPCION | AL26: 08 | AM26: 09 | AN26: LA CONVENCION | AO26: 0809 | AP26: 09-LA CONVENCION | AS26: 08 | AT26: 02 | AU26: 02 | AV26: 0202 | AW26: ACOPIA | AX26: 0 | AY26: 0802 | AZ26: 080202 | BA26: 0202-ACOPIA
A27: 6 | B27: Junio | F27: 11 | G27: 09 | H27: QUILLABAMBA | I27: 11 | J27: 09 | K27: 09-QUILLABAMBA | M27: 01 | N27: 11 | O27: 09 | P27: NO PERTENECE A NINGUNA MICRORED | Q27: 0901 | R27: 01-NO PERTENECE A NINGUNA MICRORED | T27: 000002431 | U27: IVOCHOTE | V27: 000002431 | W27: 3 | X27: 08 | Y27: 09 | Z27: 02 | AA27: 11 | AB27: 03 | AC27: 04 | AD27: I-2 | AE27: 0304 | AF27: 6 | AG27: 308 | AH27: 0304-IVOCHOTE | AL27: 08 | AM27: 10 | AN27: PARURO | AO27: 0810 | AP27: 10-PARURO | AS27: 08 | AT27: 02 | AU27: 03 | AV27: 0203 | AW27: ACOS | AX27: 0 | AY27: 0802 | AZ27: 080203 | BA27: 0203-ACOS
A28: 7 | B28: Julio | F28: 11 | G28: 10 | H28: ESPINAR | I28: 11 | J28: 10 | K28: 10-ESPINAR | M28: 01 | N28: 11 | O28: 10 | P28: NO PERTENECE A NINGUNA MICRORED | Q28: 1001 | R28: 01-NO PERTENECE A NINGUNA MICRORED | T28: 000002432 | U28: KEPASHIATO | V28: 000002432 | W28: 2 | X28: 08 | Y28: 09 | Z28: 02 | AA28: 11 | AB28: 03 | AC28: 04 | AD28: I-3 | AE28: 0304 | AF28: 1 | AG28: 208 | AH28: 0304-KEPASHIATO | AL28: 08 | AM28: 11 | AN28: PAUCARTAMBO | AO28: 0811 | AP28: 11-PAUCARTAMBO | AS28: 08 | AT28: 02 | AU28: 04 | AV28: 0204 | AW28: MOSOC LLACTA | AX28: 0 | AY28: 0802 | AZ28: 080204 | BA28: 0204-MOSOC LLACTA
A29: 8 | B29: Agosto | C29: 1 | D29: 2 | M29: 05 | N29: 11 | O29: 03 | P29: KAMISEA | Q29: 0305 | R29: 05-KAMISEA | T29: 000002419 | U29: SUYKUTAMBO | V29: 000002419 | W29: 3 | X29: 08 | Y29: 08 | Z29: 07 | AA29: 11 | AB29: 04 | AC29: 06 | AD29: I-2 | AE29: 0406 | AF29: 7 | AG29: 208 | AH29: 0406-SUYKUTAMBO | AL29: 08 | AM29: 12 | AN29: QUISPICANCHI | AO29: 0812 | AP29: 12-QUISPICANCHI | AS29: 08 | AT29: 02 | AU29: 05 | AV29: 0205 | AW29: POMACANCHI | AX29: 0 | AY29: 0802 | AZ29: 080205 | BA29: 0205-POMACANCHI
A30: 9 | B30: Setiembre | M30: 01 | N30: 11 | O30: 05 | P30: KIMBIRI | Q30: 0501 | R30: 01-KIMBIRI | T30: 000002434 | U30: MATERIATO | V30: 000002434 | W30: 3 | X30: 08 | Y30: 09 | Z30: 02 | AA30: 11 | AB30: 03 | AC30: 04 | AD30: I-2 | AE30: 0304 | AF30: 1 | AG30: 308 | AH30: 0304-MATERIATO | AL30: 08 | AM30: 13 | AN30: URUBAMBA | AO30: 0813 | AP30: 13-URUBAMBA | AS30: 08 | AT30: 02 | AU30: 06 | AV30: 0206 | AW30: RONDOCAN | AX30: 0 | AY30: 0802 | AZ30: 080206 | BA30: 0206-RONDOCAN
A31: 10 | B31: Octubre | C31: 01-CUSCO SUR | M31: 04 | N31: 11 | O31: 03 | P31: KITENI | Q31: 0304 | R31: 04-KITENI | T31: 000002436 | U31: NUEVA LUZ | V31: 000002436 | W31: 3 | X31: 08 | Y31: 09 | Z31: 14 | AA31: 11 | AB31: 03 | AC31: 05 | AD31: I-1 | AE31: 0305 | AG31: 208 | AH31: 0305-NUEVA LUZ | AS31: 08 | AT31: 02 | AU31: 07 | AV31: 0207 | AW31: SANGARARA | AX31: 0 | AY31: 0802 | AZ31: 080207 | BA31: 0207-SANGARARA
A32: 11 | B32: Noviembre | C32: 06-(ALL) | M32: 04 | N32: 11 | O32: 02 | P32: LIMATAMBO | Q32: 0204 | R32: 04-LIMATAMBO | T32: 000002439 | U32: PALMA REAL | V32: 000002439 | W32: 2 | X32: 08 | Y32: 09 | Z32: 02 | AA32: 11 | AB32: 03 | AC32: 01 | AD32: I-4 | AE32: 0301 | AF32: 8 | AG32: 208 | AH32: 0301-PALMA REAL | AS32: 08 | AT32: 03 | AU32: 01 | AV32: 0301 | AW32: ANTA | AX32: 0 | AY32: 0803 | AZ32: 080301 | BA32: 0301-ANTA
A33: 12 | B33: Diciembre | M33: 01 | N33: 11 | O33: 08 | P33: LIVITACA | Q33: 0801 | R33: 01-LIVITACA | T33: 000002440 | U33: PANGOA | V33: 000002440 | W33: 3 | X33: 08 | Y33: 09 | Z33: 02 | AA33: 11 | AB33: 03 | AC33: 04 | AD33: I-2 | AE33: 0304 | AF33: 2 | AG33: 108 | AH33: 0304-PANGOA | AS33: 08 | AT33: 03 | AU33: 02 | AV33: 0302 | AW33: ANCAHUASI | AX33: 0 | AY33: 0803 | AZ33: 080302 | BA33: 0302-ANCAHUASI
A34: 13 | B34: 1er. Trimestre | M34: 02 | N34: 11 | O34: 03 | P34: MARANURA | Q34: 0302 | R34: 02-MARANURA | T34: 000002441 | U34: PUERTO HUALLANA | V34: 000002441 | W34: 3 | X34: 08 | Y34: 09 | Z34: 14 | AA34: 11 | AB34: 03 | AC34: 05 | AD34: I-1 | AE34: 0305 | AF34: 3 | AG34: 208 | AH34: 0305-PUERTO HUALLANA | AS34: 08 | AT34: 03 | AU34: 03 | AV34: 0303 | AW34: CACHIMAYO | AX34: 0 | AY34: 0803 | AZ34: 080303 | BA34: 0303-CACHIMAYO
A35: 14 | B35: 2do. Trimestre | M35: 15 | N35: 11 | O35: 01 | P35: OCONGATE | Q35: 0115 | R35: 15-OCONGATE | T35: 000002442 | U35: PUERTO RICO | V35: 000002442 | W35: 3 | X35: 08 | Y35: 09 | Z35: 14 | AA35: 11 | AB35: 03 | AC35: 05 | AD35: I-1 | AE35: 0305 | AG35: 208 | AH35: 0305-PUERTO RICO | AS35: 08 | AT35: 03 | AU35: 04 | AV35: 0304 | AW35: CHINCHAYPUJIO | AX35: 0 | AY35: 0803 | AZ35: 080304 | BA35: 0304-CHINCHAYPUJIO
A36: 15 | B36: 3er. Trimestre | M36: 05 | N36: 11 | O36: 04 | P36: PAMPAPHALLA | Q36: 0405 | R36: 05-PAMPAPHALLA | T36: 000002443 | U36: SANIRIATO | V36: 000002443 | W36: 3 | X36: 08 | Y36: 09 | Z36: 02 | AA36: 11 | AB36: 03 | AC36: 04 | AD36: I-1 | AE36: 0304 | AF36: 9 | AG36: 208 | AH36: 0304-SANIRIATO | AS36: 08 | AT36: 03 | AU36: 05 | AV36: 0305 | AW36: HUAROCONDO | AX36: 0 | AY36: 0803 | AZ36: 080305 | BA36: 0305-HUAROCONDO
A37: 16 | B37: 4to. Trimestre | M37: 03 | N37: 11 | O37: 01 | P37: PARURO | Q37: 0103 | R37: 03-PARURO | T37: 000002433 | U37: KORIBENI | V37: 000002433 | W37: 3 | X37: 08 | Y37: 09 | Z37: 02 | AA37: 11 | AB37: 03 | AC37: 01 | AD37: I-2 | AE37: 0301 | AF37: 1 | AG37: 208 | AH37: 0301-KORIBENI | AS37: 08 | AT37: 03 | AU37: 06 | AV37: 0306 | AW37: LIMATAMBO | AX37: 0 | AY37: 0803 | AZ37: 080306 | BA37: 0306-LIMATAMBO
A38: 17 | B38: 1er. Semestre | M38: 06 | N38: 11 | O38: 01 | P38: PAUCARTAMBO | Q38: 0106 | R38: 06-PAUCARTAMBO | T38: 000002410 | U38: YAURI | V38: 000002410 | W38: 2 | X38: 08 | Y38: 08 | Z38: 01 | AA38: 11 | AB38: 04 | AC38: 06 | AD38: I-4 | AE38: 0406 | AF38: 2 | AG38: 208 | AH38: 0406-YAURI | AS38: 08 | AT38: 03 | AU38: 07 | AV38: 0307 | AW38: MOLLEPATA | AX38: 0 | AY38: 0803 | AZ38: 080307 | BA38: 0307-MOLLEPATA
A39: 18 | B39: 2do. Semestre | M39: 02 | N39: 11 | O39: 05 | P39: PICHARI | Q39: 0502 | R39: 02-PICHARI | T39: 000002397 | U39: TINTA | V39: 000002397 | W39: 2 | X39: 08 | Y39: 06 | Z39: 08 | AA39: 11 | AB39: 04 | AC39: 03 | AD39: I-3 | AE39: 0403 | AF39: 3 | AG39: 308 | AH39: 0403-TINTA | AS39: 08 | AT39: 03 | AU39: 08 | AV39: 0308 | AW39: PUCYURA | AX39: 0 | AY39: 0803 | AZ39: 080308 | BA39: 0308-PUCYURA
A40: 19 | B40: Anual | M40: 05 | N40: 11 | O40: 02 | P40: PISAC | Q40: 0205 | R40: 05-PISAC | T40: 000002398 | U40: SANTO TOMAS | V40: 000002398 | W40: 1 | X40: 08 | Y40: 07 | Z40: 01 | AA40: 11 | AB40: 08 | AC40: 09 | AD40: II-1 | AE40: 0809 | AF40: 4 | AG40: 308 | AH40: 0809-SANTO TOMAS | AS40: 08 | AT40: 03 | AU40: 09 | AV40: 0309 | AW40: ZURITE | AX40: 0 | AY40: 0803 | AZ40: 080309 | BA40: 0309-ZURITE
M41: 06 | N41: 11 | O41: 03 | P41: PUCYURA | Q41: 0306 | R41: 06-PUCYURA | T41: 000002400 | U41: ALHUACCHULLO | V41: 000002400 | W41: 3 | X41: 08 | Y41: 07 | Z41: 01 | AA41: 11 | AB41: 08 | AC41: 09 | AD41: I-2 | AE41: 0809 | AF41: 4 | AG41: 308 | AH41: 0809-ALHUACCHULLO | AS41: 08 | AT41: 04 | AU41: 01 | AV41: 0401 | AW41: CALCA | AX41: 0 | AY41: 0804 | AZ41: 080401 | BA41: 0401-CALCA
M42: 03 | N42: 11 | O42: 03 | P42: QUELLOUNO | Q42: 0303 | R42: 03-QUELLOUNO | T42: 000002401 | U42: CCAPACMARCA | V42: 000002401 | W42: 2 | X42: 08 | Y42: 07 | Z42: 02 | AA42: 11 | AB42: 08 | AC42: 09 | AD42: I-3 | AE42: 0809 | AF42: 4 | AG42: 308 | AH42: 0809-CCAPACMARCA | AS42: 08 | AT42: 04 | AU42: 02 | AV42: 0402 | AW42: COYA | AX42: 0 | AY42: 0804 | AZ42: 080402 | BA42: 0402-COYA
M43: 01 | N43: 11 | O43: 03 | P43: SANTA ANA | Q43: 0301 | R43: 01-SANTA ANA | T43: 000002402 | U43: CHAMACA | V43: 000002402 | W43: 3 | X43: 08 | Y43: 07 | Z43: 03 | AA43: 11 | AB43: 08 | AC43: 01 | AD43: I-2 | AE43: 0801 | AF43: 6 | AG43: 208 | AH43: 0801-CHAMACA | AS43: 08 | AT43: 04 | AU43: 03 | AV43: 0403 | AW43: LAMAY | AX43: 0 | AY43: 0804 | AZ43: 080403 | BA43: 0403-LAMAY
M44: 09 | N44: 11 | O44: 08 | P44: SANTO TOMAS | Q44: 0809 | R44: 09-SANTO TOMAS | T44: 000002407 | U44: LLUSCO | V44: 000002407 | W44: 3 | X44: 08 | Y44: 07 | Z44: 06 | AA44: 11 | AB44: 08 | AC44: 09 | AD44: I-2 | AE44: 0809 | AF44: 2 | AG44: 208 | AH44: 0809-LLUSCO | AS44: 08 | AT44: 04 | AU44: 04 | AV44: 0404 | AW44: LARES | AX44: 0 | AY44: 0804 | AZ44: 080404 | BA44: 0404-LARES
M45: 09 | N45: 11 | O45: 02 | P45: SIETE CUARTONES | Q45: 0209 | R45: 09-SIETE CUARTONES | T45: 000002417 | U45: PICHIGUA ESPINAR | V45: 000002417 | W45: 3 | X45: 08 | Y45: 08 | Z45: 06 | AA45: 11 | AB45: 04 | AC45: 06 | AD45: I-2 | AE45: 0406 | AF45: 4 | AG45: 208 | AH45: 0406-PICHIGUA ESPINAR | AS45: 08 | AT45: 04 | AU45: 05 | AV45: 0405 | AW45: PISAC | AX45: 0 | AY45: 0804 | AZ45: 080405 | BA45: 0405-PISAC
M46: 04 | N46: 11 | O46: 04 | P46: TECHO OBRERO | Q46: 0404 | R46: 04-TECHO OBRERO | T46: 000002409 | U46: VELILLE | V46: 000002409 | W46: 2 | X46: 08 | Y46: 07 | Z46: 08 | AA46: 11 | AB46: 08 | AC46: 09 | AD46: I-3 | AE46: 0809 | AF46: 5 | AG46: 308 | AH46: 0809-VELILLE | AS46: 08 | AT46: 04 | AU46: 06 | AV46: 0406 | AW46: SAN SALVADOR | AX46: 0 | AY46: 0804 | AZ46: 080406 | BA46: 0406-SAN SALVADOR
M47: 12 | N47: 11 | O47: 01 | P47: URCOS | Q47: 0112 | R47: 12-URCOS | T47: 000002418 | U47: SAN MIGUEL | V47: 000002418 | W47: 3 | X47: 08 | Y47: 08 | Z47: 06 | AA47: 11 | AB47: 04 | AC47: 06 | AD47: I-1 | AE47: 0406 | AF47: 6 | AG47: 308 | AH47: 0406-SAN MIGUEL | AS47: 08 | AT47: 04 | AU47: 07 | AV47: 0407 | AW47: TARAY | AX47: 0 | AY47: 0804 | AZ47: 080407 | BA47: 0407-TARAY
M48: 07 | N48: 11 | O48: 02 | P48: URUBAMBA | Q48: 0207 | R48: 07-URUBAMBA | T48: 000002411 | U48: CONDOROMA | V48: 000002411 | W48: 3 | X48: 08 | Y48: 08 | Z48: 02 | AA48: 11 | AB48: 04 | AC48: 06 | AD48: I-1 | AE48: 0406 | AF48: 6 | AG48: 308 | AH48: 0406-CONDOROMA | AS48: 08 | AT48: 04 | AU48: 08 | AV48: 0408 | AW48: YANATILE | AX48: 0 | AY48: 0804 | AZ48: 080408 | BA48: 0408-YANATILE
M49: 02 | N49: 11 | O49: 02 | P49: WANCHAQ | Q49: 0202 | R49: 02-WANCHAQ | T49: 000002413 | U49: URINSAYA | V49: 000002413 | W49: 3 | X49: 08 | Y49: 08 | Z49: 03 | AA49: 11 | AB49: 04 | AC49: 06 | AD49: I-2 | AE49: 0406 | AF49: 1 | AG49: 208 | AH49: 0406-URINSAYA | AS49: 08 | AT49: 05 | AU49: 01 | AV49: 0501 | AW49: YANAOCA | AX49: 0 | AY49: 0805 | AZ49: 080501 | BA49: 0501-YANAOCA
M50: 01 | N50: 11 | O50: 04 | P50: YANAOCA | Q50: 0401 | R50: 01-YANAOCA | T50: 000002414 | U50: HUAYHUAHUASI | V50: 000002414 | W50: 3 | X50: 08 | Y50: 08 | Z50: 03 | AA50: 11 | AB50: 04 | AC50: 06 | AD50: I-2 | AE50: 0406 | AF50: 3 | AG50: 308 | AH50: 0406-HUAYHUAHUASI | AS50: 08 | AT50: 05 | AU50: 02 | AV50: 0502 | AW50: CHECCA | AX50: 0 | AY50: 0805 | AZ50: 080502 | BA50: 0502-CHECCA
M51: 08 | N51: 11 | O51: 02 | P51: YANATILE | Q51: 0208 | R51: 08-YANATILE | T51: 000002415 | U51: OCCORURO | V51: 000002415 | W51: 3 | X51: 08 | Y51: 08 | Z51: 04 | AA51: 11 | AB51: 04 | AC51: 06 | AD51: I-2 | AE51: 0406 | AF51: 5 | AG51: 208 | AH51: 0406-OCCORURO | AS51: 08 | AT51: 05 | AU51: 03 | AV51: 0503 | AW51: KUNTURKANKI | AX51: 0 | AY51: 0805 | AZ51: 080503 | BA51: 0503-KUNTURKANKI
M52: 06 | N52: 11 | O52: 04 | P52: YAURI | Q52: 0406 | R52: 06-YAURI | T52: 000002455 | U52: HUAYOPATA | V52: 000002455 | W52: 3 | X52: 08 | Y52: 09 | Z52: 03 | AA52: 11 | AB52: 03 | AC52: 02 | AD52: I-1 | AE52: 0302 | AG52: 308 | AH52: 0302-HUAYOPATA | AS52: 08 | AT52: 05 | AU52: 04 | AV52: 0504 | AW52: LANGUI | AX52: 0 | AY52: 0805 | AZ52: 080504 | BA52: 0504-LANGUI
M53: 01 | N53: 11 | O53: 01 | P53: (ALL) | Q53: 0101 | R53: 01-(ALL) | T53: 000002416 | U53: PALLPATA | V53: 000002416 | W53: 3 | X53: 08 | Y53: 08 | Z53: 05 | AA53: 11 | AB53: 04 | AC53: 06 | AD53: I-2 | AE53: 0406 | AF53: 4 | AG53: 308 | AH53: 0406-PALLPATA | AS53: 08 | AT53: 05 | AU53: 05 | AV53: 0505 | AW53: LAYO | AX53: 0 | AY53: 0805 | AZ53: 080505 | BA53: 0505-LAYO
M54: 02 | N54: 11 | O54: 02 | P54: (ALL) | Q54: 0202 | R54: 02-(ALL) | T54: 000002446 | U54: CHACCO | V54: 000002446 | W54: 3 | X54: 08 | Y54: 09 | Z54: 02 | AA54: 11 | AB54: 03 | AC54: 01 | AD54: I-1 | AE54: 0301 | AF54: 5 | AG54: 208 | AH54: 0301-CHACCO | AS54: 08 | AT54: 05 | AU54: 06 | AV54: 0506 | AW54: PAMPAMARCA | AX54: 0 | AY54: 0805 | AZ54: 080506 | BA54: 0506-PAMPAMARCA
M55: 03 | N55: 11 | O55: 03 | P55: (ALL) | Q55: 0303 | R55: 03-(ALL) | T55: 000002408 | U55: QUIÑOTA | V55: 000002408 | W55: 3 | X55: 08 | Y55: 07 | Z55: 07 | AA55: 11 | AB55: 08 | AC55: 09 | AD55: I-2 | AE55: 0809 | AF55: 3 | AG55: 308 | AH55: 0809-QUIÑOTA | AS55: 08 | AT55: 05 | AU55: 07 | AV55: 0507 | AW55: QUEHUE | AX55: 0 | AY55: 0805 | AZ55: 080507 | BA55: 0507-QUEHUE
M56: 04 | N56: 11 | O56: 04 | P56: (ALL) | Q56: 0404 | R56: 04-(ALL) | T56: 000002502 | U56: CCOYABAMBA | V56: 000002502 | W56: 3 | X56: 08 | Y56: 10 | Z56: 03 | AA56: 11 | AB56: 01 | AC56: 03 | AD56: I-2 | AE56: 0103 | AF56: 3 | AG56: 308 | AH56: 0103-CCOYABAMBA | AS56: 08 | AT56: 05 | AU56: 08 | AV56: 0508 | AW56: TUPAC AMARU | AX56: 0 | AY56: 0805 | AZ56: 080508 | BA56: 0508-TUPAC AMARU
M57: 05 | N57: 11 | O57: 05 | P57: (ALL) | Q57: 0505 | R57: 05-(ALL) | T57: 000002482 | U57: INCAHUASI | V57: 000002482 | W57: 2 | X57: 08 | Y57: 09 | Z57: 11 | AA57: 11 | AB57: 03 | AC57: 06 | AD57: I-3 | AE57: 0306 | AG57: 308 | AH57: 0306-INCAHUASI | AS57: 08 | AT57: 06 | AU57: 01 | AV57: 0601 | AW57: SICUANI | AX57: 0 | AY57: 0806 | AZ57: 080601 | BA57: 0601-SICUANI
M58: 06 | N58: 11 | O58: 06 | P58: (ALL) | Q58: 0606 | R58: 06-(ALL) | T58: 000002484 | U58: OYARA | V58: 000002484 | W58: 3 | X58: 08 | Y58: 09 | Z58: 09 | AA58: 11 | AB58: 03 | AC58: 06 | AD58: I-1 | AE58: 0306 | AG58: 208 | AH58: 0306-OYARA | AS58: 08 | AT58: 06 | AU58: 02 | AV58: 0602 | AW58: CHECACUPE | AX58: 0 | AY58: 0806 | AZ58: 080602 | BA58: 0602-CHECACUPE
M59: 07 | N59: 11 | O59: 07 | P59: (ALL) | Q59: 0707 | R59: 07-(ALL) | T59: 000002490 | U59: ARMA | V59: 000002490 | W59: 3 | X59: 08 | Y59: 09 | Z59: 09 | AA59: 11 | AB59: 03 | AC59: 06 | AD59: I-1 | AE59: 0306 | AG59: 308 | AH59: 0306-ARMA | AS59: 08 | AT59: 06 | AU59: 03 | AV59: 0603 | AW59: COMBAPATA | AX59: 0 | AY59: 0806 | AZ59: 080603 | BA59: 0603-COMBAPATA
M60: 08 | N60: 11 | O60: 08 | P60: (ALL) | Q60: 0808 | R60: 08-(ALL) | T60: 000002492 | U60: PALTAYBAMBA | V60: 000002492 | W60: 3 | X60: 08 | Y60: 09 | Z60: 09 | AA60: 11 | AB60: 03 | AC60: 06 | AD60: I-1 | AE60: 0306 | AG60: 208 | AH60: 0306-PALTAYBAMBA | AS60: 08 | AT60: 06 | AU60: 04 | AV60: 0604 | AW60: MARANGANI | AX60: 0 | AY60: 0806 | AZ60: 080604 | BA60: 0604-MARANGANI
M61: 09 | N61: 11 | O61: 09 | P61: (ALL) | Q61: 0909 | R61: 09-(ALL) | T61: 000002496 | U61: OMAYA | V61: 000002496 | W61: 3 | X61: 08 | Y61: 09 | Z61: 10 | AA61: 11 | AB61: 05 | AC61: 02 | AD61: I-2 | AE61: 0502 | AG61: 308 | AH61: 0502-OMAYA | AS61: 08 | AT61: 06 | AU61: 05 | AV61: 0605 | AW61: PITUMARCA | AX61: 0 | AY61: 0806 | AZ61: 080605 | BA61: 0605-PITUMARCA
M62: 10 | N62: 11 | O62: 10 | P62: (ALL) | Q62: 1010 | R62: 10-(ALL) | T62: 000002498 | U62: PUERTO MAYO | V62: 000002498 | W62: 3 | X62: 08 | Y62: 09 | Z62: 10 | AA62: 11 | AB62: 05 | AC62: 02 | AD62: I-2 | AE62: 0502 | AG62: 308 | AH62: 0502-PUERTO MAYO | AS62: 08 | AT62: 06 | AU62: 06 | AV62: 0606 | AW62: SAN PABLO | AX62: 0 | AY62: 0806 | AZ62: 080606 | BA62: 0606-SAN PABLO
T63: 000002453 | U63: HUYRO | V63: 000002453 | W63: 2 | X63: 08 | Y63: 09 | Z63: 03 | AA63: 11 | AB63: 03 | AC63: 02 | AD63: I-3 | AE63: 0302 | AG63: 308 | AH63: 0302-HUYRO | AS63: 08 | AT63: 06 | AU63: 07 | AV63: 0607 | AW63: SAN PEDRO | AX63: 0 | AY63: 0806 | AZ63: 080607 | BA63: 0607-SAN PEDRO
T64: 000002501 | U64: CCAPI | V64: 000002501 | W64: 3 | X64: 08 | Y64: 10 | Z64: 03 | AA64: 11 | AB64: 01 | AC64: 03 | AD64: I-2 | AE64: 0103 | AG64: 208 | AH64: 0103-CCAPI | AS64: 08 | AT64: 06 | AU64: 08 | AV64: 0608 | AW64: TINTA | AX64: 0 | AY64: 0806 | AZ64: 080608 | BA64: 0608-TINTA
T65: 000002478 | U65: TOTORA | V65: 000002478 | W65: 3 | X65: 08 | Y65: 09 | Z65: 08 | AA65: 11 | AB65: 03 | AC65: 02 | AD65: I-1 | AE65: 0302 | AG65: 308 | AH65: 0302-TOTORA | AS65: 08 | AT65: 07 | AU65: 01 | AV65: 0701 | AW65: SANTO TOMAS | AX65: 0 | AY65: 0807 | AZ65: 080701 | BA65: 0701-SANTO TOMAS
T66: 000002503 | U66: COLCHA | V66: 000002503 | W66: 3 | X66: 08 | Y66: 10 | Z66: 04 | AA66: 11 | AB66: 01 | AC66: 03 | AD66: I-1 | AE66: 0103 | AG66: 208 | AH66: 0103-COLCHA | AS66: 08 | AT66: 07 | AU66: 02 | AV66: 0702 | AW66: CAPACMARCA | AX66: 0 | AY66: 0807 | AZ66: 080702 | BA66: 0702-CAPACMARCA
T67: 000002504 | U67: HUANOQUITE | V67: 000002504 | W67: 3 | X67: 08 | Y67: 10 | Z67: 05 | AA67: 11 | AB67: 01 | AC67: 03 | AD67: I-2 | AE67: 0103 | AG67: 208 | AH67: 0103-HUANOQUITE | AS67: 08 | AT67: 07 | AU67: 03 | AV67: 0703 | AW67: CHAMACA | AX67: 0 | AY67: 0807 | AZ67: 080703 | BA67: 0703-CHAMACA
T68: 000002505 | U68: OMACHA | V68: 000002505 | W68: 3 | X68: 08 | Y68: 10 | Z68: 06 | AA68: 11 | AB68: 01 | AC68: 03 | AD68: I-2 | AE68: 0103 | AG68: 308 | AH68: 0103-OMACHA | AS68: 08 | AT68: 07 | AU68: 04 | AV68: 0704 | AW68: COLQUEMARCA | AX68: 0 | AY68: 0807 | AZ68: 080704 | BA68: 0704-COLQUEMARCA
T69: 000002506 | U69: ANTAPALLPA | V69: 000002506 | W69: 3 | X69: 08 | Y69: 10 | Z69: 06 | AA69: 11 | AB69: 01 | AC69: 03 | AD69: I-2 | AE69: 0103 | AF69: 4 | AG69: 208 | AH69: 0103-ANTAPALLPA | AS69: 08 | AT69: 07 | AU69: 05 | AV69: 0705 | AW69: LIVITACA | AX69: 0 | AY69: 0807 | AZ69: 080705 | BA69: 0705-LIVITACA
T70: 000002507 | U70: PACCARECTAMBO | V70: 000002507 | W70: 3 | X70: 08 | Y70: 10 | Z70: 07 | AA70: 11 | AB70: 01 | AC70: 03 | AD70: I-2 | AE70: 0103 | AF70: 4 | AG70: 308 | AH70: 0103-PACCARECTAMBO | AS70: 08 | AT70: 07 | AU70: 06 | AV70: 0706 | AW70: LLUSCO | AX70: 0 | AY70: 0807 | AZ70: 080706 | BA70: 0706-LLUSCO
T71: 000002508 | U71: PILLPINTO | V71: 000002508 | W71: 3 | X71: 08 | Y71: 10 | Z71: 08 | AA71: 11 | AB71: 01 | AC71: 13 | AD71: I-1 | AE71: 0113 | AG71: 308 | AH71: 0113-PILLPINTO | AS71: 08 | AT71: 07 | AU71: 07 | AV71: 0707 | AW71: QUIÑOTA | AX71: 0 | AY71: 0807 | AZ71: 080707 | BA71: 0707-QUIÑOTA
T72: 000002509 | U72: YAURISQUE | V72: 000002509 | W72: 2 | X72: 08 | Y72: 10 | Z72: 09 | AA72: 11 | AB72: 01 | AC72: 03 | AD72: I-3 | AE72: 0103 | AF72: 6 | AG72: 208 | AH72: 0103-YAURISQUE | AS72: 08 | AT72: 07 | AU72: 08 | AV72: 0708 | AW72: VELILLE | AX72: 0 | AY72: 0807 | AZ72: 080708 | BA72: 0708-VELILLE
T73: 000002500 | U73: ACCHA | V73: 000002500 | W73: 2 | X73: 08 | Y73: 10 | Z73: 02 | AA73: 11 | AB73: 01 | AC73: 03 | AD73: I-3 | AE73: 0103 | AF73: 1 | AG73: 308 | AH73: 0103-ACCHA | AS73: 08 | AT73: 08 | AU73: 01 | AV73: 0801 | AW73: ESPINAR | AX73: 0 | AY73: 0808 | AZ73: 080801 | BA73: 0801-ESPINAR
T74: 000002465 | U74: QUELLOUNO | V74: 000002465 | W74: 2 | X74: 08 | Y74: 09 | Z74: 06 | AA74: 11 | AB74: 03 | AC74: 03 | AD74: I-4 | AE74: 0303 | AF74: 2 | AG74: 308 | AH74: 0303-QUELLOUNO | AS74: 08 | AT74: 08 | AU74: 02 | AV74: 0802 | AW74: CONDOROMA | AX74: 0 | AY74: 0808 | AZ74: 080802 | BA74: 0802-CONDOROMA
T75: 000002452 | U75: SHIVANKORENI | V75: 000002452 | W75: 3 | X75: 08 | Y75: 09 | Z75: 14 | AA75: 11 | AB75: 03 | AC75: 05 | AD75: I-2 | AE75: 0305 | AG75: 208 | AH75: 0305-SHIVANKORENI | AS75: 08 | AT75: 08 | AU75: 03 | AV75: 0803 | AW75: COPORAQUE | AX75: 0 | AY75: 0808 | AZ75: 080803 | BA75: 0803-COPORAQUE
T76: 000002396 | U76: SAN PEDRO CANCHIS | V76: 000002396 | W76: 3 | X76: 08 | Y76: 06 | Z76: 07 | AA76: 11 | AB76: 04 | AC76: 05 | AD76: I-2 | AE76: 0405 | AF76: 7 | AG76: 208 | AH76: 0405-SAN PEDRO CANCHIS | AS76: 08 | AT76: 08 | AU76: 04 | AV76: 0804 | AW76: OCORURO | AX76: 0 | AY76: 0808 | AZ76: 080804 | BA76: 0804-OCORURO
T77: 000002454 | U77: ALFAMAYO | V77: 000002454 | W77: 3 | X77: 08 | Y77: 09 | Z77: 03 | AA77: 11 | AB77: 03 | AC77: 02 | AD77: I-1 | AE77: 0302 | AF77: 7 | AG77: 308 | AH77: 0302-ALFAMAYO | AS77: 08 | AT77: 08 | AU77: 05 | AV77: 0805 | AW77: PALLPATA | AX77: 0 | AY77: 0808 | AZ77: 080805 | BA77: 0805-PALLPATA
T78: 000002391 | U78: OCCOBAMBA MARANGANI | V78: 000002391 | W78: 3 | X78: 08 | Y78: 06 | Z78: 04 | AA78: 11 | AB78: 04 | AC78: 04 | AD78: I-2 | AE78: 0404 | AF78: 8 | AG78: 308 | AH78: 0404-OCCOBAMBA MARANGANI | AS78: 08 | AT78: 08 | AU78: 06 | AV78: 0806 | AW78: PICHIGUA | AX78: 0 | AY78: 0808 | AZ78: 080806 | BA78: 0806-PICHIGUA
T79: 000002456 | U79: AMAYBAMBA | V79: 000002456 | W79: 3 | X79: 08 | Y79: 09 | Z79: 03 | AA79: 11 | AB79: 03 | AC79: 02 | AD79: I-2 | AE79: 0302 | AF79: 11 | AG79: 308 | AH79: 0302-AMAYBAMBA | AS79: 08 | AT79: 08 | AU79: 07 | AV79: 0807 | AW79: SUYCKUTAMBO | AX79: 0 | AY79: 0808 | AZ79: 080807 | BA79: 0807-SUYCKUTAMBO
T80: 000002458 | U80: MARANURA | V80: 000002458 | W80: 2 | X80: 08 | Y80: 09 | Z80: 04 | AA80: 11 | AB80: 03 | AC80: 02 | AD80: I-4 | AE80: 0302 | AF80: 12 | AG80: 208 | AH80: 0302-MARANURA | AS80: 08 | AT80: 08 | AU80: 08 | AV80: 0808 | AW80: ALTO PICHIGUA | AX80: 0 | AY80: 0808 | AZ80: 080808 | BA80: 0808-ALTO PICHIGUA
T81: 000002460 | U81: SANTA MARIA | V81: 000002460 | W81: 3 | X81: 08 | Y81: 09 | Z81: 04 | AA81: 11 | AB81: 03 | AC81: 02 | AD81: I-2 | AE81: 0302 | AF81: 12 | AG81: 308 | AH81: 0302-SANTA MARIA | AS81: 08 | AT81: 09 | AU81: 01 | AV81: =CONCATENATE(AT81,AU81) -> 0901 | AW81: SANTA ANA | AX81: 0 | AY81: 0809 | AZ81: 080901 | BA81: 0901-SANTA ANA
T82: 000002480 | U82: PUCYURA | V82: 000002480 | W82: 2 | X82: 08 | Y82: 09 | Z82: 09 | AA82: 11 | AB82: 03 | AC82: 06 | AD82: I-4 | AE82: =CONCATENATE(AB82,AC82) -> 0306 | AF82: 1 | AG82: 308 | AH82: 0306-PUCYURA | AS82: 08 | AT82: 09 | AU82: 02 | AV82: 0902 | AW82: ECHARATE | AX82: 0 | AY82: =CONCATENATE(AS82,AT82) -> 0809 | AZ82: =CONCATENATE(AS82,AT82,AU82) -> 080902 | BA82: =CONCATENATE(AT82,AU82,"-",AW82) -> 0902-ECHARATE
T83: 000002463 | U83: CHINGANILLA | V83: 000002463 | W83: 3 | X83: 08 | Y83: 09 | Z83: 05 | AA83: 11 | AB83: 03 | AC83: 03 | AD83: I-1 | AE83: 0303 | AF83: 2 | AG83: 208 | AH83: 0303-CHINGANILLA | AS83: 08 | AT83: 09 | AU83: 03 | AV83: 0903 | AW83: HUAYOPATA | AX83: 0 | AY83: 0809 | AZ83: 080903 | BA83: 0903-HUAYOPATA
T84: 000002303 | U84: SANTA ROSA | V84: 000002303 | W84: 2 | X84: 08 | Y84: 01 | Z84: 05 | AA84: 11 | AB84: 01 | AC84: 16 | AD84: I-3 | AE84: 0116 | AF84: 6 | AG84: 308 | AH84: 0116-SANTA ROSA | AS84: 08 | AT84: 09 | AU84: 04 | AV84: 0904 | AW84: MARANURA | AX84: 0 | AY84: 0809 | AZ84: 080904 | BA84: 0904-MARANURA
T85: 000002467 | U85: PUENTE SANTIAGO | V85: 000002467 | W85: 3 | X85: 08 | Y85: 09 | Z85: 06 | AA85: 11 | AB85: 02 | AC85: 08 | AD85: I-2 | AE85: 0208 | AF85: 6 | AG85: 308 | AH85: 0208-PUENTE SANTIAGO | AS85: 08 | AT85: 09 | AU85: 05 | AV85: 0905 | AW85: OCOBAMBA | AX85: 0 | AY85: 0809 | AZ85: 080905 | BA85: 0905-OCOBAMBA
T86: 000002468 | U86: SAN MARTIN | V86: 000002468 | W86: 3 | X86: 08 | Y86: 09 | Z86: 06 | AA86: 11 | AB86: 03 | AC86: 03 | AD86: I-2 | AE86: 0303 | AG86: 308 | AH86: =CONCATENATE(AB86,AC86,"-",U86) -> 0303-SAN MARTIN | AS86: 08 | AT86: 09 | AU86: 06 | AV86: 0906 | AW86: QUELLOUNO | AX86: 0 | AY86: 0809 | AZ86: 080906 | BA86: 0906-QUELLOUNO
T87: 000002469 | U87: SAN JUAN DE KIMBIRI-VRAEM | V87: 000002469 | W87: 1 | X87: 08 | Y87: 09 | Z87: 07 | AA87: 11 | AB87: 05 | AC87: 01 | AD87: II-E | AE87: 0501 | AG87: 208 | AH87: 0501-SAN JUAN DE KIMBIRI-VRAEM | AS87: 08 | AT87: 09 | AU87: 07 | AV87: 0907 | AW87: KIMBIRI | AX87: 0 | AY87: 0809 | AZ87: 080907 | BA87: 0907-KIMBIRI
T88: 000002470 | U88: CHIRUMPIARI | V88: 000002470 | W88: 3 | X88: 08 | Y88: 09 | Z88: 07 | AA88: 11 | AB88: 05 | AC88: 01 | AD88: I-2 | AE88: 0501 | AF88: 5 | AG88: 308 | AH88: 0501-CHIRUMPIARI | AS88: 08 | AT88: 09 | AU88: 08 | AV88: 0908 | AW88: SANTA TERESA | AX88: 0 | AY88: 0809 | AZ88: 080908 | BA88: 0908-SANTA TERESA
T89: 000002471 | U89: LOBO TAHUANTINSUYO | V89: 000002471 | W89: 2 | X89: 08 | Y89: 09 | Z89: 07 | AA89: 11 | AB89: 05 | AC89: 01 | AD89: I-3 | AE89: 0501 | AF89: 6 | AG89: 308 | AH89: 0501-LOBO TAHUANTINSUYO | AS89: 08 | AT89: 09 | AU89: 09 | AV89: 0909 | AW89: VILCABAMBA | AX89: 0 | AY89: 0809 | AZ89: 080909 | BA89: 0909-VILCABAMBA
T90: 000002472 | U90: MAPITUNARI | V90: 000002472 | W90: 3 | X90: 08 | Y90: 09 | Z90: 07 | AA90: 11 | AB90: 05 | AC90: 01 | AD90: I-2 | AE90: 0501 | AF90: 4 | AG90: 308 | AH90: 0501-MAPITUNARI | AS90: 08 | AT90: 09 | AU90: 10 | AV90: 0910 | AW90: PICHARI | AX90: 0 | AY90: 0809 | AZ90: 080910 | BA90: 0910-PICHARI
T91: 000002451 | U91: CHAHUARES | V91: 000002451 | W91: 3 | X91: 08 | Y91: 09 | Z91: 02 | AA91: 11 | AB91: 03 | AC91: 01 | AD91: I-1 | AE91: 0301 | AF91: 5 | AG91: 308 | AH91: 0301-CHAHUARES | AS91: 08 | AT91: 09 | AU91: 11 | AV91: 0911 | AW91: INKAWASI | AX91: 0 | AY91: 0809 | AZ91: 080911 | BA91: 0911-INKAWASI
T92: 000002462 | U92: OCCOBAMBA LACONVENCION | V92: 000002462 | W92: 2 | X92: 08 | Y92: 09 | Z92: 05 | AA92: 11 | AB92: 03 | AC92: 03 | AD92: I-3 | AE92: 0303 | AF92: 7 | AG92: 208 | AH92: 0303-OCCOBAMBA LACONVENCION | AS92: 08 | AT92: 09 | AU92: 12 | AV92: 0912 | AW92: VILLA VIRGEN | AX92: 0 | AY92: 0809 | AZ92: 080912 | BA92: 0912-VILLA VIRGEN
T93: 000002337 | U93: PAMPACONGA | V93: 000002337 | W93: 3 | X93: 08 | Y93: 03 | Z93: 06 | AA93: 11 | AB93: 02 | AC93: 04 | AD93: I-2 | AE93: 0204 | AF93: 1 | AG93: 308 | AH93: 0204-PAMPACONGA | AS93: 08 | AT93: 09 | AU93: 13 | AV93: 0913 | AW93: VILLA KINTIARINA | AX93: 0 | AY93: 0809 | AZ93: 080913 | BA93: 0913-VILLA KINTIARINA
T94: 000002327 | U94: CHACAN | V94: 000002327 | W94: 3 | X94: 08 | Y94: 03 | Z94: 01 | AA94: 11 | AB94: 02 | AC94: 03 | AD94: I-1 | AE94: 0203 | AF94: 1 | AG94: 308 | AH94: 0203-CHACAN | AS94: 08 | AT94: 09 | AU94: 14 | AV94: 0914 | AW94: MEGANTONI | AX94: 0 | AY94: 0809 | AZ94: 080914 | BA94: 0914-MEGANTONI
T95: 000002329 | U95: CONCHACALLA | V95: 000002329 | W95: 3 | X95: 08 | Y95: 03 | Z95: 01 | AA95: 11 | AB95: 02 | AC95: 03 | AD95: I-1 | AE95: 0203 | AF95: 1 | AG95: 308 | AH95: 0203-CONCHACALLA | AS95: 08 | AT95: 10 | AU95: 01 | AV95: 1001 | AW95: PARURO | AX95: 0 | AY95: 0810 | AZ95: 081001 | BA95: 1001-PARURO
T96: 000002330 | U96: ANCAHUASI | V96: 000002330 | W96: 2 | X96: 08 | Y96: 03 | Z96: 02 | AA96: 11 | AB96: 02 | AC96: 03 | AD96: I-3 | AE96: 0203 | AF96: 9 | AG96: 308 | AH96: 0203-ANCAHUASI | AS96: 08 | AT96: 10 | AU96: 02 | AV96: 1002 | AW96: ACCHA | AX96: 0 | AY96: 0810 | AZ96: 081002 | BA96: 1002-ACCHA
T97: 000002331 | U97: CACHIMAYO | V97: 000002331 | W97: 3 | X97: 08 | Y97: 03 | Z97: 03 | AA97: 11 | AB97: 02 | AC97: 03 | AD97: I-2 | AE97: 0203 | AF97: 10 | AG97: 308 | AH97: 0203-CACHIMAYO | AS97: 08 | AT97: 10 | AU97: 03 | AV97: 1003 | AW97: CCAPI | AX97: 0 | AY97: 0810 | AZ97: 081003 | BA97: 1003-CCAPI
T98: 000002332 | U98: CHINCHAYPUJIO | V98: 000002332 | W98: 2 | X98: 08 | Y98: 03 | Z98: 04 | AA98: 11 | AB98: 02 | AC98: 03 | AD98: I-3 | AE98: 0203 | AF98: 3 | AG98: 308 | AH98: 0203-CHINCHAYPUJIO | AS98: 08 | AT98: 10 | AU98: 04 | AV98: 1004 | AW98: COLCHA | AX98: 0 | AY98: 0810 | AZ98: 081004 | BA98: 1004-COLCHA
T99: 000002333 | U99: HUAROCONDO | V99: 000002333 | W99: 3 | X99: 08 | Y99: 03 | Z99: 05 | AA99: 11 | AB99: 02 | AC99: 03 | AD99: I-2 | AE99: 0203 | AF99: 4 | AG99: 208 | AH99: 0203-HUAROCONDO | AS99: 08 | AT99: 10 | AU99: 05 | AV99: 1005 | AW99: HUANOQUITE | AX99: 0 | AY99: 0810 | AZ99: 081005 | BA99: 1005-HUANOQUITE
T100: 000002349 | U100: CUYO CHICO | V100: 000002349 | W100: 3 | X100: 08 | Y100: 04 | Z100: 05 | AA100: 11 | AB100: 02 | AC100: 05 | AD100: I-1 | AE100: 0205 | AG100: 308 | AH100: 0205-CUYO CHICO | AS100: 08 | AT100: 10 | AU100: 06 | AV100: 1006 | AW100: OMACHA | AX100: 0 | AY100: 0810 | AZ100: 081006 | BA100: 1006-OMACHA
T101: 000002336 | U101: LIMATAMBO | V101: 000002336 | W101: 2 | X101: 08 | Y101: 03 | Z101: 06 | AA101: 11 | AB101: 02 | AC101: 04 | AD101: I-4 | AE101: 0204 | AG101: 308 | AH101: 0204-LIMATAMBO | AS101: 08 | AT101: 10 | AU101: 07 | AV101: 1007 | AW101: PACCARITAMBO | AX101: 0 | AY101: 0810 | AZ101: 081007 | BA101: 1007-PACCARITAMBO
T102: 000002324 | U102: PUESTO DE SALUD SANGARARA | V102: 000002324 | W102: 3 | X102: 08 | Y102: 02 | Z102: 07 | AA102: 11 | AB102: 01 | AC102: 13 | AD102: I-1 | AE102: 0113 | AF102: 1 | AG102: 308 | AH102: 0113-PUESTO DE SALUD SANGARARA | AS102: 08 | AT102: 10 | AU102: 08 | AV102: 1008 | AW102: PILLPINTO | AX102: 0 | AY102: 0810 | AZ102: 081008 | BA102: 1008-PILLPINTO
T103: 000002338 | U103: MOLLEPATA | V103: 000002338 | W103: 2 | X103: 08 | Y103: 03 | Z103: 07 | AA103: 11 | AB103: 02 | AC103: 04 | AD103: I-3 | AE103: 0204 | AF103: 3 | AG103: 308 | AH103: 0204-MOLLEPATA | AS103: 08 | AT103: 10 | AU103: 09 | AV103: 1009 | AW103: YAURISQUE | AX103: 0 | AY103: 0810 | AZ103: 081009 | BA103: 1009-YAURISQUE
T104: 000002339 | U104: PUCYURA ANTA | V104: 000002339 | W104: 2 | X104: 08 | Y104: 03 | Z104: 08 | AA104: 11 | AB104: 02 | AC104: 03 | AD104: I-3 | AE104: 0203 | AF104: 6 | AG104: 308 | AH104: 0203-PUCYURA ANTA | AS104: 08 | AT104: 11 | AU104: 01 | AV104: 1101 | AW104: PAUCARTAMBO | AX104: 0 | AY104: 0811 | AZ104: 081101 | BA104: 1101-PAUCARTAMBO
T105: 000002340 | U105: ZURITE | V105: 000002340 | W105: 3 | X105: 08 | Y105: 03 | Z105: 09 | AA105: 11 | AB105: 02 | AC105: 03 | AD105: I-2 | AE105: 0203 | AF105: 6 | AG105: 308 | AH105: 0203-ZURITE | AS105: 08 | AT105: 11 | AU105: 02 | AV105: 1102 | AW105: CAICAY | AX105: 0 | AY105: 0811 | AZ105: 081102 | BA105: 1102-CAICAY
T106: 000002341 | U106: CALCA | V106: 000002341 | W106: 2 | X106: 08 | Y106: 04 | Z106: 01 | AA106: 11 | AB106: 02 | AC106: 06 | AD106: I-4 | AE106: 0206 | AF106: 6 | AG106: 108 | AH106: 0206-CALCA | AS106: 08 | AT106: 11 | AU106: 03 | AV106: 1103 | AW106: CHALLABAMBA | AX106: 0 | AY106: 0811 | AZ106: 081103 | BA106: 1103-CHALLABAMBA
T107: 000002342 | U107: AMPARAES | V107: 000002342 | W107: 3 | X107: 08 | Y107: 04 | Z107: 04 | AA107: 11 | AB107: 02 | AC107: 06 | AD107: I-2 | AE107: 0206 | AF107: 1 | AG107: 308 | AH107: 0206-AMPARAES | AS107: 08 | AT107: 11 | AU107: 04 | AV107: 1104 | AW107: COLQUEPATA | AX107: 0 | AY107: 0811 | AZ107: 081104 | BA107: 1104-COLQUEPATA
T108: 000002344 | U108: LAMAY | V108: 000002344 | W108: 2 | X108: 08 | Y108: 04 | Z108: 03 | AA108: 11 | AB108: 02 | AC108: 05 | AD108: I-3 | AE108: 0205 | AF108: 5 | AG108: 208 | AH108: 0205-LAMAY | AS108: 08 | AT108: 11 | AU108: 05 | AV108: 1105 | AW108: HUANCARANI | AX108: 0 | AY108: 0811 | AZ108: 081105 | BA108: 1105-HUANCARANI
T109: 000002393 | U109: PHINAYA | V109: 000002393 | W109: 3 | X109: 08 | Y109: 06 | Z109: 05 | AA109: 11 | AB109: 04 | AC109: 05 | AD109: I-1 | AE109: 0405 | AF109: 6 | AG109: 308 | AH109: 0405-PHINAYA | AS109: 08 | AT109: 11 | AU109: 06 | AV109: 1106 | AW109: KOSÑIPATA | AX109: 0 | AY109: 0811 | AZ109: 081106 | BA109: 1106-KOSÑIPATA
T110: 000002334 | U110: HUAYLLACOCHA | V110: 000002334 | W110: 3 | X110: 08 | Y110: 03 | Z110: 05 | AA110: 11 | AB110: 02 | AC110: 03 | AD110: I-2 | AE110: 0203 | AF110: 7 | AG110: 308 | AH110: 0203-HUAYLLACOCHA | AS110: 08 | AT110: 12 | AU110: 01 | AV110: 1201 | AW110: URCOS | AX110: 0 | AY110: 0812 | AZ110: 081201 | BA110: 1201-URCOS
T111: 000002317 | U111: ACOMAYO | V111: 000002317 | W111: 2 | X111: 08 | Y111: 02 | Z111: 01 | AA111: 11 | AB111: 01 | AC111: 13 | AD111: I-4 | AE111: 0113 | AF111: 3 | AG111: 308 | AH111: 0113-ACOMAYO | AS111: 08 | AT111: 12 | AU111: 02 | AV111: 1202 | AW111: ANDAHUAYLILLAS | AX111: 0 | AY111: 0812 | AZ111: 081202 | BA111: 1202-ANDAHUAYLILLAS
T112: 000002305 | U112: ANTONIO LORENA DEL CUSCO | V112: 000002305 | W112: 1 | X112: 08 | Y112: 01 | Z112: 06 | AA112: 11 | AB112: 06 | AC112: 00 | AD112: III-1 | AE112: 0600 | AF112: 4 | AG112: 208 | AH112: 0600-ANTONIO LORENA DEL CUSCO | AS112: 08 | AT112: 12 | AU112: 03 | AV112: 1203 | AW112: CAMANTI | AX112: 0 | AY112: 0812 | AZ112: 081203 | BA112: 1203-CAMANTI
T113: 000002306 | U113: BELEMPAMPA | V113: 000002306 | W113: 2 | X113: 08 | Y113: 01 | Z113: 06 | AA113: 11 | AB113: 02 | AC113: 01 | AD113: I-4 | AE113: 0201 | AF113: 2 | AG113: 308 | AH113: 0201-BELEMPAMPA | AS113: 08 | AT113: 12 | AU113: 04 | AV113: 1204 | AW113: CCARHUAYO | AX113: 0 | AY113: 0812 | AZ113: 081204 | BA113: 1204-CCARHUAYO
T114: 000002307 | U114: MANCO CAPAC | V114: 000002307 | W114: 2 | X114: 08 | Y114: 01 | Z114: 06 | AA114: 11 | AB114: 02 | AC114: 02 | AD114: I-3 | AE114: 0202 | AF114: 3 | AG114: 208 | AH114: 0202-MANCO CAPAC | AS114: 08 | AT114: 12 | AU114: 05 | AV114: 1205 | AW114: CCATCA | AX114: 0 | AY114: 0812 | AZ114: 081205 | BA114: 1205-CCATCA
T115: 000002308 | U115: ZARZUELA ALTA | V115: 000002308 | W115: 2 | X115: 08 | Y115: 01 | Z115: 06 | AA115: 11 | AB115: 02 | AC115: 01 | AD115: I-3 | AE115: 0201 | AF115: 4 | AG115: 308 | AH115: 0201-ZARZUELA ALTA | AS115: 08 | AT115: 12 | AU115: 06 | AV115: 1206 | AW115: CUSIPATA | AX115: 0 | AY115: 0812 | AZ115: 081206 | BA115: 1206-CUSIPATA
T116: 000002309 | U116: DIGNIDAD NACIONAL | V116: 000002309 | W116: 2 | X116: 08 | Y116: 01 | Z116: 06 | AA116: 11 | AB116: 02 | AC116: 01 | AD116: I-3 | AE116: 0201 | AF116: 5 | AG116: 208 | AH116: 0201-DIGNIDAD NACIONAL | AS116: 08 | AT116: 12 | AU116: 07 | AV116: 1207 | AW116: HUARO | AX116: 0 | AY116: 0812 | AZ116: 081207 | BA116: 1207-HUARO
T117: 000002297 | U117: CCORCCA | V117: 000002297 | W117: 3 | X117: 08 | Y117: 01 | Z117: 02 | AA117: 11 | AB117: 02 | AC117: 01 | AD117: I-2 | AE117: 0201 | AF117: 5 | AG117: 308 | AH117: 0201-CCORCCA | AS117: 08 | AT117: 12 | AU117: 08 | AV117: 1208 | AW117: LUCRE | AX117: 0 | AY117: 0812 | AZ117: 081208 | BA117: 1208-LUCRE
T118: 000002299 | U118: POROY | V118: 000002299 | W118: 3 | X118: 08 | Y118: 01 | Z118: 03 | AA118: 11 | AB118: 02 | AC118: 09 | AD118: I-2 | AE118: 0209 | AF118: 6 | AG118: 308 | AH118: 0209-POROY | AS118: 08 | AT118: 12 | AU118: 09 | AV118: 1209 | AW118: MARCAPATA | AX118: 0 | AY118: 0812 | AZ118: 081209 | BA118: 1209-MARCAPATA
T119: 000002326 | U119: ANTA | V119: 000002326 | W119: 2 | X119: 08 | Y119: 03 | Z119: 01 | AA119: 11 | AB119: 02 | AC119: 03 | AD119: I-4 | AE119: 0203 | AF119: 6 | AG119: 308 | AH119: 0203-ANTA | AS119: 08 | AT119: 12 | AU119: 10 | AV119: 1210 | AW119: OCONGATE | AX119: 0 | AY119: 0812 | AZ119: 081210 | BA119: 1210-OCONGATE
T120: 000002314 | U120: SAYLLA | V120: 000002314 | W120: 3 | X120: 08 | Y120: 01 | Z120: 07 | AA120: 11 | AB120: 01 | AC120: 16 | AD120: I-2 | AE120: 0116 | AF120: 7 | AG120: 208 | AH120: 0116-SAYLLA | AS120: 08 | AT120: 12 | AU120: 11 | AV120: 1211 | AW120: OROPESA | AX120: 0 | AY120: 0812 | AZ120: 081211 | BA120: 1211-OROPESA
T121: 000002325 | U121: PUESTO DE SALUD MARCACONGA | V121: 000002325 | W121: 3 | X121: 08 | Y121: 02 | Z121: 07 | AA121: 11 | AB121: 01 | AC121: 13 | AD121: I-2 | AE121: 0113 | AF121: 8 | AG121: 308 | AH121: 0113-PUESTO DE SALUD MARCACONGA | AS121: 08 | AT121: 12 | AU121: 12 | AV121: 1212 | AW121: QUIQUIJANA | AX121: 0 | AY121: 0812 | AZ121: 081212 | BA121: 1212-QUIQUIJANA
T122: 000002318 | U122: ACOPIA | V122: 000002318 | W122: 3 | X122: 08 | Y122: 02 | Z122: 02 | AA122: 11 | AB122: 01 | AC122: 13 | AD122: I-1 | AE122: 0113 | AF122: 3 | AG122: 308 | AH122: 0113-ACOPIA | AS122: 08 | AT122: 13 | AU122: 01 | AV122: 1301 | AW122: URUBAMBA | AX122: 0 | AY122: 0813 | AZ122: 081301 | BA122: 1301-URUBAMBA
T123: 000002319 | U123: ACOS | V123: 000002319 | W123: 3 | X123: 08 | Y123: 02 | Z123: 03 | AA123: 11 | AB123: 01 | AC123: 13 | AD123: I-1 | AE123: 0113 | AF123: 4 | AG123: 308 | AH123: 0113-ACOS | AS123: 08 | AT123: 13 | AU123: 02 | AV123: 1302 | AW123: CHINCHERO | AX123: 0 | AY123: 0813 | AZ123: 081302 | BA123: 1302-CHINCHERO
T124: 000002320 | U124: MOSOCLLACTA | V124: 000002320 | W124: 3 | X124: 08 | Y124: 02 | Z124: 04 | AA124: 11 | AB124: 04 | AC124: 03 | AD124: I-1 | AE124: 0403 | AG124: 308 | AH124: 0403-MOSOCLLACTA | AS124: 08 | AT124: 13 | AU124: 03 | AV124: 1303 | AW124: HUAYLLABAMBA | AX124: 0 | AY124: 0813 | AZ124: 081303 | BA124: 1303-HUAYLLABAMBA
T125: 000002321 | U125: POMACANCHI | V125: 000002321 | W125: 2 | X125: 08 | Y125: 02 | Z125: 05 | AA125: 11 | AB125: 01 | AC125: 13 | AD125: I-4 | AE125: 0113 | AF125: 1 | AG125: 208 | AH125: 0113-POMACANCHI | AS125: 08 | AT125: 13 | AU125: 04 | AV125: 1304 | AW125: MACHUPICCHU | AX125: 0 | AY125: 0813 | AZ125: 081304 | BA125: 1304-MACHUPICCHU
T126: 000002322 | U126: SAN JUAN DE POMACANCHI | V126: 000002322 | W126: 3 | X126: 08 | Y126: 02 | Z126: 05 | AA126: 11 | AB126: 01 | AC126: 13 | AD126: I-1 | AE126: 0113 | AF126: 1 | AG126: 108 | AH126: 0113-SAN JUAN DE POMACANCHI | AS126: 08 | AT126: 13 | AU126: 05 | AV126: 1305 | AW126: MARAS | AX126: 0 | AY126: 0813 | AZ126: 081305 | BA126: 1305-MARAS
T127: 000002323 | U127: RONDOCAN | V127: 000002323 | W127: 2 | X127: 08 | Y127: 02 | Z127: 06 | AA127: 11 | AB127: 01 | AC127: 16 | AD127: I-3 | AE127: 0116 | AF127: 2 | AG127: 308 | AH127: 0116-RONDOCAN | AS127: 08 | AT127: 13 | AU127: 06 | AV127: 1306 | AW127: OLLANTAYTAMBO | AX127: 0 | AY127: 0813 | AZ127: 081306 | BA127: 1306-OLLANTAYTAMBO
T128: 000002350 | U128: CUYO GRANDE | V128: 000002350 | W128: 3 | X128: 08 | Y128: 04 | Z128: 05 | AA128: 11 | AB128: 02 | AC128: 05 | AD128: I-1 | AE128: 0205 | AF128: 5 | AG128: 308 | AH128: 0205-CUYO GRANDE | AS128: 08 | AT128: 13 | AU128: 07 | AV128: 1307 | AW128: YUCAY | AX128: 0 | AY128: 0813 | AZ128: 081307 | BA128: 1307-YUCAY
T129: 000002310 | U129: CHOCCO | V129: 000002310 | W129: 2 | X129: 08 | Y129: 01 | Z129: 06 | AA129: 11 | AB129: 02 | AC129: 02 | AD129: I-3 | AE129: 0202 | AF129: 5 | AG129: 208 | AH129: 0202-CHOCCO | AT129: 00 | AV129: 0000 | AW129: (ALL) | BA129: 0000-(ALL)
T130: 000002387 | U130: CHIARA | V130: 000002387 | W130: 3 | X130: 08 | Y130: 06 | Z130: 03 | AA130: 11 | AB130: 04 | AC130: 03 | AD130: I-2 | AE130: 0403 | AF130: 7 | AG130: 308 | AH130: 0403-CHIARA | AT130: '01 | AV130: 0000 | AW130: (ALL) | BA130: 0000-(ALL)
T131: 000002379 | U131: HERCCA | V131: 000002379 | W131: 3 | X131: 08 | Y131: 06 | Z131: 01 | AA131: 11 | AB131: 04 | AC131: 04 | AD131: I-1 | AE131: 0404 | AF131: 7 | AG131: 308 | AH131: 0404-HERCCA | AT131: '02 | AV131: 0000 | AW131: (ALL) | BA131: 0000-(ALL)
T132: 000002380 | U132: TECHO OBRERO | V132: 000002380 | W132: 2 | X132: 08 | Y132: 06 | Z132: 01 | AA132: 11 | AB132: 04 | AC132: 04 | AD132: I-4 | AE132: 0404 | AF132: 8 | AG132: 208 | AH132: 0404-TECHO OBRERO | AT132: '03 | AV132: 0000 | AW132: (ALL) | BA132: 0000-(ALL)
T133: 000002381 | U133: QUEHUAR | V133: 000002381 | W133: 3 | X133: 08 | Y133: 06 | Z133: 01 | AA133: 11 | AB133: 04 | AC133: 05 | AD133: I-2 | AE133: 0405 | AF133: 8 | AG133: 308 | AH133: 0405-QUEHUAR | AT133: '04 | AV133: 0000 | AW133: (ALL) | BA133: 0000-(ALL)
T134: 000002382 | U134: UZCUPATA | V134: 000002382 | W134: 3 | X134: 08 | Y134: 06 | Z134: 01 | AA134: 11 | AB134: 04 | AC134: 05 | AD134: I-1 | AE134: 0405 | AF134: 8 | AG134: 208 | AH134: 0405-UZCUPATA | AT134: '05 | AV134: 0000 | AW134: (ALL) | BA134: 0000-(ALL)
T135: 000002383 | U135: LA FLORIDA | V135: 000002383 | W135: 3 | X135: 08 | Y135: 06 | Z135: 01 | AA135: 11 | AB135: 04 | AC135: 05 | AD135: I-2 | AE135: 0405 | AF135: 8 | AG135: 308 | AH135: 0405-LA FLORIDA | AT135: '06 | AV135: 0000 | AW135: (ALL) | BA135: 0000-(ALL)
T136: 000002384 | U136: PAMPAPHALLA | V136: 000002384 | W136: 2 | X136: 08 | Y136: 06 | Z136: 01 | AA136: 11 | AB136: 04 | AC136: 05 | AD136: I-3 | AE136: 0405 | AF136: 8 | AG136: 308 | AH136: 0405-PAMPAPHALLA | AT136: '07 | AV136: 0000 | AW136: (ALL) | BA136: 0000-(ALL)
T137: 000002345 | U137: CCACHIN | V137: 000002345 | W137: 3 | X137: 08 | Y137: 04 | Z137: 04 | AA137: 11 | AB137: 02 | AC137: 06 | AD137: I-1 | AE137: 0206 | AG137: 208 | AH137: 0206-CCACHIN | AT137: '08 | AV137: 0000 | AW137: (ALL) | BA137: 0000-(ALL)
T138: 000002386 | U138: COMBAPATA CANCHIS | V138: 000002386 | W138: 2 | X138: 08 | Y138: 06 | Z138: 03 | AA138: 11 | AB138: 04 | AC138: 03 | AD138: I-4 | AE138: 0403 | AG138: 208 | AH138: 0403-COMBAPATA CANCHIS | AT138: 09 | AV138: 0000 | AW138: (ALL) | BA138: 0000-(ALL)
T139: 000002376 | U139: TUNGASUCA | V139: 000002376 | W139: 3 | X139: 08 | Y139: 05 | Z139: 08 | AA139: 11 | AB139: 04 | AC139: 01 | AD139: I-2 | AE139: 0401 | AG139: 308 | AH139: 0401-TUNGASUCA | AT139: '10 | AV139: 0000 | AW139: (ALL) | BA139: 0000-(ALL)
T140: 000002388 | U140: MARANGANI | V140: 000002388 | W140: 2 | X140: 08 | Y140: 06 | Z140: 04 | AA140: 11 | AB140: 04 | AC140: 04 | AD140: I-3 | AE140: 0404 | AG140: 308 | AH140: 0404-MARANGANI | AT140: '11 | AV140: 0000 | AW140: (ALL) | BA140: 0000-(ALL)
T141: 000002389 | U141: CHECTUYOC | V141: 000002389 | W141: 3 | X141: 08 | Y141: 06 | Z141: 04 | AA141: 11 | AB141: 04 | AC141: 04 | AD141: I-1 | AE141: 0404 | AF141: 4 | AG141: 308 | AH141: 0404-CHECTUYOC | AT141: '12 | AV141: 0000 | AW141: (ALL) | BA141: 0000-(ALL)
T142: 000002390 | U142: CCUYO | V142: 000002390 | W142: 3 | X142: 08 | Y142: 06 | Z142: 04 | AA142: 11 | AB142: 04 | AC142: 04 | AD142: I-1 | AE142: 0404 | AF142: 4 | AG142: 308 | AH142: 0404-CCUYO | AT142: '13 | AV142: 0000 | AW142: (ALL) | BA142: 0000-(ALL)
T143: 000002481 | U143: CCARCCO | V143: 000002481 | W143: 3 | X143: 08 | Y143: 09 | Z143: 11 | AA143: 11 | AB143: 03 | AC143: 06 | AD143: I-1 | AE143: 0306 | AF143: 5 | AG143: 308 | AH143: 0306-CCARCCO
T144: 000002392 | U144: PITUMARCA | V144: 000002392 | W144: 2 | X144: 08 | Y144: 06 | Z144: 05 | AA144: 11 | AB144: 04 | AC144: 03 | AD144: I-3 | AE144: 0403 | AF144: 5 | AG144: 308 | AH144: 0403-PITUMARCA
T145: 000002510 | U145: PAUCARTAMBO | V145: 000002510 | W145: 2 | X145: 08 | Y145: 11 | Z145: 01 | AA145: 11 | AB145: 01 | AC145: 06 | AD145: I-4 | AE145: 0106 | AF145: 6 | AG145: 308 | AH145: 0106-PAUCARTAMBO
T146: 000002394 | U146: SAN PABLO CANCHIS | V146: 000002394 | W146: 3 | X146: 08 | Y146: 06 | Z146: 06 | AA146: 11 | AB146: 04 | AC146: 05 | AD146: I-2 | AE146: =CONCATENATE(AB146,AC146) -> 0405 | AF146: 2 | AG146: 308 | AH146: 0405-SAN PABLO CANCHIS
T147: 000002385 | U147: CHECACUPE | V147: 000002385 | W147: 3 | X147: 08 | Y147: 06 | Z147: 02 | AA147: 11 | AB147: 04 | AC147: 03 | AD147: I-2 | AE147: 0403 | AF147: 1 | AG147: 308 | AH147: 0403-CHECACUPE
T148: 000002367 | U148: CHITIBAMBA | V148: 000002367 | W148: 3 | X148: 08 | Y148: 05 | Z148: 02 | AA148: 11 | AB148: 04 | AC148: 01 | AD148: I-1 | AE148: 0401 | AG148: 308 | AH148: 0401-CHITIBAMBA
T149: 000002351 | U149: QUELLO QUELLO | V149: 000002351 | W149: 3 | X149: 08 | Y149: 04 | Z149: 05 | AA149: 11 | AB149: 02 | AC149: 05 | AD149: I-1 | AE149: 0205 | AG149: 108 | AH149: 0205-QUELLO QUELLO
T150: 000002353 | U150: TARAY | V150: 000002353 | W150: 3 | X150: 08 | Y150: 04 | Z150: 07 | AA150: 11 | AB150: 02 | AC150: 05 | AD150: I-1 | AE150: 0205 | AF150: 7 | AG150: 308 | AH150: =CONCATENATE(AB150,AC150,"-",U150) -> 0205-TARAY
T151: 000002357 | U151: COLCCA YANATILE | V151: 000002357 | W151: 3 | X151: 08 | Y151: 04 | Z151: 08 | AA151: 11 | AB151: 02 | AC151: 08 | AD151: I-2 | AE151: 0208 | AG151: 308 | AH151: 0208-COLCCA YANATILE
T152: 000002358 | U152: MUYUPAY | V152: 000002358 | W152: 3 | X152: 08 | Y152: 04 | Z152: 08 | AA152: 11 | AB152: 02 | AC152: 08 | AD152: I-1 | AE152: 0208 | AG152: 308 | AH152: 0208-MUYUPAY
T153: 000002360 | U153: QUESQUENTO | V153: 000002360 | W153: 3 | X153: 08 | Y153: 04 | Z153: 08 | AA153: 11 | AB153: 02 | AC153: 08 | AD153: I-1 | AE153: 0208 | AG153: 308 | AH153: 0208-QUESQUENTO
T154: 000002361 | U154: SUYO | V154: 000002361 | W154: 3 | X154: 08 | Y154: 04 | Z154: 04 | AA154: 11 | AB154: 02 | AC154: 06 | AD154: I-2 | AE154: 0206 | AG154: 208 | AH154: 0206-SUYO
T155: 000002364 | U155: YANAOCA | V155: 000002364 | W155: 2 | X155: 08 | Y155: 05 | Z155: 01 | AA155: 11 | AB155: 04 | AC155: 01 | AD155: I-4 | AE155: 0401 | AG155: 208 | AH155: 0401-YANAOCA
T156: 000002378 | U156: SICUANI | V156: 000002378 | W156: 1 | X156: 08 | Y156: 06 | Z156: 01 | AA156: 11 | AB156: 07 | AC156: 01 | AD156: II-1 | AE156: 0701 | AG156: 308 | AH156: 0701-SICUANI
T157: 000002366 | U157: CHECCA | V157: 000002366 | W157: 3 | X157: 08 | Y157: 05 | Z157: 02 | AA157: 11 | AB157: 04 | AC157: 02 | AD157: I-2 | AE157: 0402 | AG157: 308 | AH157: 0402-CHECCA
T158: 000002377 | U158: TOCCOCCORI | V158: 000002377 | W158: 3 | X158: 08 | Y158: 05 | Z158: 08 | AA158: 11 | AB158: 04 | AC158: 01 | AD158: I-2 | AE158: 0401 | AG158: 308 | AH158: 0401-TOCCOCCORI
T159: 000002369 | U159: LANGUI | V159: 000002369 | W159: 3 | X159: 08 | Y159: 05 | Z159: 04 | AA159: 11 | AB159: 04 | AC159: 02 | AD159: I-2 | AE159: 0402 | AG159: 308 | AH159: 0402-LANGUI
T160: 000002370 | U160: CONDEVILUYO | V160: 000002370 | W160: 3 | X160: 08 | Y160: 05 | Z160: 04 | AA160: 11 | AB160: 04 | AC160: 02 | AD160: I-1 | AE160: 0402 | AG160: 208 | AH160: 0402-CONDEVILUYO
T161: 000002371 | U161: LAYO | V161: 000002371 | W161: 2 | X161: 08 | Y161: 05 | Z161: 05 | AA161: 11 | AB161: 04 | AC161: 02 | AD161: I-3 | AE161: 0402 | AF161: 8 | AG161: 308 | AH161: 0402-LAYO
T162: 000002372 | U162: PAMPAMARCA | V162: 000002372 | W162: 3 | X162: 08 | Y162: 05 | Z162: 06 | AA162: 11 | AB162: 04 | AC162: 01 | AD162: I-2 | AE162: 0401 | AF162: 4 | AG162: 308 | AH162: 0401-PAMPAMARCA
T163: 000002373 | U163: QUEHUE | V163: 000002373 | W163: 3 | X163: 08 | Y163: 05 | Z163: 07 | AA163: 11 | AB163: 04 | AC163: 01 | AD163: I-2 | AE163: 0401 | AF163: 8 | AG163: 308 | AH163: 0401-QUEHUE
T164: 000002374 | U164: HUINCHIRI | V164: 000002374 | W164: 3 | X164: 08 | Y164: 05 | Z164: 07 | AA164: 11 | AB164: 04 | AC164: 01 | AD164: I-2 | AE164: 0401 | AF164: 8 | AG164: 308 | AH164: 0401-HUINCHIRI
T165: 000002395 | U165: SANTA BARBARA | V165: 000002395 | W165: 3 | X165: 08 | Y165: 06 | Z165: 06 | AA165: 11 | AB165: 04 | AC165: 05 | AD165: I-2 | AE165: 0405 | AF165: 1 | AG165: 308 | AH165: 0405-SANTA BARBARA
T166: 000002365 | U166: PONGOÑA | V166: 000002365 | W166: 3 | X166: 08 | Y166: 05 | Z166: 01 | AA166: 11 | AB166: 04 | AC166: 01 | AD166: I-2 | AE166: 0401 | AF166: 1 | AG166: 308 | AH166: 0401-PONGOÑA
T167: 000008912 | U167: ALCCA VICTORIA | V167: 000008912 | W167: 3 | X167: 08 | Y167: 07 | Z167: 08 | AA167: 11 | AB167: 08 | AC167: 09 | AD167: I-1 | AE167: 0809 | AF167: 2 | AG167: 208 | AH167: 0809-ALCCA VICTORIA
T168: 000025739 | U168: PISQUICOCHA | V168: 000025739 | W168: 3 | X168: 08 | Y168: 07 | Z168: 05 | AA168: 11 | AB168: 08 | AC168: 01 | AD168: I-1 | AE168: 0801 | AF168: 7 | AG168: 308 | AH168: 0801-PISQUICOCHA
T169: 000002479 | U169: VILLA VIRGEN | V169: 000002479 | W169: 3 | X169: 08 | Y169: 09 | Z169: 12 | AA169: 11 | AB169: 05 | AC169: 01 | AD169: I-2 | AE169: 0501 | AF169: 7 | AG169: 308 | AH169: 0501-VILLA VIRGEN
T170: 000008285 | U170: ANGELES | V170: 000008285 | W170: 3 | X170: 08 | Y170: 09 | Z170: 07 | AA170: 11 | AB170: 05 | AC170: 01 | AD170: I-1 | AE170: 0501 | AG170: 308 | AH170: 0501-ANGELES
T171: 000008906 | U171: ESTRELLA | V171: 000008906 | W171: 3 | X171: 08 | Y171: 09 | Z171: 06 | AA171: 11 | AB171: 03 | AC171: 03 | AD171: I-1 | AE171: 0303 | AG171: 308 | AH171: 0303-ESTRELLA
T172: 000008907 | U172: MATORIATO | V172: 000008907 | W172: 3 | X172: 08 | Y172: 09 | Z172: 06 | AA172: 11 | AB172: 03 | AC172: 03 | AD172: I-1 | AE172: 0303 | AG172: 308 | AH172: 0303-MATORIATO
T173: 000008908 | U173: CHIRUMBIA | V173: 000008908 | W173: 3 | X173: 08 | Y173: 09 | Z173: 06 | AA173: 11 | AB173: 03 | AC173: 03 | AD173: I-1 | AE173: 0303 | AF173: 1 | AG173: 308 | AH173: 0303-CHIRUMBIA
T174: 000010062 | U174: QUILLABAMBA - ESSALUD | V174: 000010062 | W174: 2 | X174: 08 | Y174: 09 | Z174: 01 | AA174: 11 | AB174: 03 | AC174: 01 | AD174: I-4 | AE174: 0301 | AF174: 1 | AG174: 308 | AH174: 0301-QUILLABAMBA - ESSALUD
T175: 000008911 | U175: HUARA HUARA | V175: 000008911 | W175: 3 | X175: 08 | Y175: 12 | Z175: 05 | AA175: 11 | AB175: 01 | AC175: 12 | AD175: I-1 | AE175: 0112 | AF175: 1 | AG175: 308 | AH175: 0112-HUARA HUARA
T176: 000007143 | U176: OTOCANI | V176: 000007143 | W176: 3 | X176: 08 | Y176: 11 | Z176: 03 | AA176: 11 | AB176: 02 | AC176: 06 | AD176: I-1 | AE176: 0206 | AF176: 1 | AG176: 208 | AH176: 0206-OTOCANI
T177: 000008913 | U177: HUARACO | V177: 000008913 | W177: 3 | X177: 08 | Y177: 07 | Z177: 04 | AA177: 11 | AB177: 08 | AC177: 09 | AD177: I-1 | AE177: 0809 | AF177: 1 | AG177: 308 | AH177: 0809-HUARACO
T178: 000008914 | U178: HUAYLLANI | V178: 000008914 | W178: 3 | X178: 08 | Y178: 07 | Z178: 04 | AA178: 11 | AB178: 08 | AC178: 09 | AD178: I-1 | AE178: 0809 | AF178: 5 | AG178: 308 | AH178: 0809-HUAYLLANI
T179: 000008915 | U179: PFULLPURI CONDEPAMPA | V179: 000008915 | W179: 3 | X179: 08 | Y179: 07 | Z179: 01 | AA179: 11 | AB179: 08 | AC179: 09 | AD179: I-2 | AE179: 0809 | AF179: 2 | AG179: 308 | AH179: 0809-PFULLPURI CONDEPAMPA
T180: 000009963 | U180: CANCAHUANI | V180: 000009963 | W180: 3 | X180: 08 | Y180: 07 | Z180: 02 | AA180: 11 | AB180: 08 | AC180: 09 | AD180: I-1 | AE180: 0809 | AF180: 2 | AG180: 308 | AH180: 0809-CANCAHUANI
T181: 000010060 | U181: CAS URUBAMBA -ESSALUD | V181: 000010060 | X181: 08 | Y181: 13 | Z181: 01 | AA181: 11 | AB181: 02 | AC181: 07 | AD181: I-4 | AE181: 0207 | AF181: 2 | AG181: 208 | AH181: 0207-CAS URUBAMBA -ESSALUD
T182: 000006971 | U182: COMBAPATA YANATILE | V182: 000006971 | W182: 3 | X182: 08 | Y182: 04 | Z182: 08 | AA182: 11 | AB182: 02 | AC182: 08 | AD182: I-1 | AE182: 0208 | AF182: 2 | AG182: 308 | AH182: 0208-COMBAPATA YANATILE
T183: 000008909 | U183: CHAPO BOYERO | V183: 000008909 | W183: 3 | X183: 08 | Y183: 09 | Z183: 06 | AA183: 11 | AB183: 03 | AC183: 03 | AD183: I-2 | AE183: 0303 | AF183: 2 | AG183: 308 | AH183: 0303-CHAPO BOYERO
T184: 000016335 | U184: CCAPANA | V184: 000016335 | W184: 3 | X184: 08 | Y184: 12 | Z184: 05 | AA184: 11 | AB184: 01 | AC184: 15 | AD184: I-1 | AE184: 0115 | AF184: 2 | AG184: 308 | AH184: 0115-CCAPANA
T185: 000006972 | U185: PANTIPATA | V185: 000006972 | W185: 3 | X185: 08 | Y185: 03 | Z185: 04 | AA185: 11 | AB185: 02 | AC185: 03 | AD185: I-2 | AE185: 0203 | AF185: 2 | AG185: 308 | AH185: 0203-PANTIPATA
T186: 000006973 | U186: BELLAVISTA | V186: 000006973 | W186: 3 | X186: 08 | Y186: 04 | Z186: 08 | AA186: 11 | AB186: 02 | AC186: 08 | AD186: I-1 | AE186: 0208 | AF186: 2 | AG186: 208 | AH186: 0208-BELLAVISTA
T187: 000006975 | U187: SAYLLAFAYA | V187: 000006975 | W187: 3 | X187: 08 | Y187: 04 | Z187: 03 | AA187: 11 | AB187: 02 | AC187: 05 | AD187: I-2 | AE187: 0205 | AF187: 2 | AG187: 308 | AH187: 0205-SAYLLAFAYA
T188: 000006976 | U188: CHONTABAMBA | V188: 000006976 | W188: 3 | X188: 08 | Y188: 09 | Z188: 09 | AA188: 11 | AB188: 03 | AC188: 04 | AD188: I-1 | AE188: 0304 | AF188: 2 | AG188: 308 | AH188: 0304-CHONTABAMBA
T189: 000006977 | U189: TINKI | V189: 000006977 | W189: 3 | X189: 08 | Y189: 12 | Z189: 10 | AA189: 11 | AB189: 01 | AC189: 15 | AD189: I-2 | AE189: 0115 | AF189: 3 | AG189: 308 | AH189: 0115-TINKI
T190: 000006978 | U190: CCOCHIRIHUAY | V190: 000006978 | W190: 3 | X190: 08 | Y190: 10 | Z190: 04 | AA190: 11 | AB190: 01 | AC190: 03 | AD190: I-1 | AE190: 0103 | AF190: 3 | AG190: 208 | AH190: 0103-CCOCHIRIHUAY
T191: 000025740 | U191: TOTORA - REYNA DE LOS ANGELES | V191: 000025740 | W191: 3 | X191: 08 | Y191: 07 | Z191: 05 | AA191: 11 | AB191: 08 | AC191: 01 | AD191: I-1 | AE191: 0801 | AF191: 3 | AG191: 308 | AH191: 0801-TOTORA - REYNA DE LOS ANGELES
T192: 000006984 | U192: CCOLLANA | V192: 000006984 | W192: 3 | X192: 08 | Y192: 07 | Z192: 07 | AA192: 11 | AB192: 08 | AC192: 09 | AD192: I-1 | AE192: 0809 | AF192: 4 | AG192: 308 | AH192: 0809-CCOLLANA
T193: 000007145 | U193: HUAMA | V193: 000007145 | W193: 3 | X193: 08 | Y193: 04 | Z193: 03 | AA193: 11 | AB193: 02 | AC193: 05 | AD193: I-1 | AE193: 0205 | AF193: 4 | AG193: 208 | AH193: 0205-HUAMA
T194: 000007111 | U194: YAVINA | V194: 000007111 | W194: 3 | X194: 08 | Y194: 07 | Z194: 01 | AA194: 11 | AB194: 08 | AC194: 09 | AD194: I-1 | AE194: 0809 | AF194: 5 | AG194: 308 | AH194: 0809-YAVINA
T195: 000007112 | U195: YORENCCA | V195: 000007112 | W195: 3 | X195: 08 | Y195: 07 | Z195: 07 | AA195: 11 | AB195: 08 | AC195: 09 | AD195: I-1 | AE195: 0809 | AF195: 5 | AG195: 308 | AH195: 0809-YORENCCA
T196: 000007113 | U196: NATIVIDAD | V196: 000007113 | W196: 3 | X196: 08 | Y196: 09 | Z196: 10 | AA196: 11 | AB196: 05 | AC196: 02 | AD196: I-2 | AE196: 0502 | AF196: 5 | AG196: 308 | AH196: 0502-NATIVIDAD
T197: 000007114 | U197: QUISTO CENTRAL | V197: 000007114 | W197: 3 | X197: 08 | Y197: 09 | Z197: 10 | AA197: 11 | AB197: 05 | AC197: 02 | AD197: I-2 | AE197: 0502 | AF197: 6 | AG197: 108 | AH197: 0502-QUISTO CENTRAL
T198: 000007135 | U198: ESPINAR | V198: 000007135 | W198: 1 | X198: 08 | Y198: 08 | Z198: 01 | AA198: 11 | AB198: 10 | AC198: 01 | AD198: II-1 | AE198: 1001 | AF198: 6 | AG198: 308 | AH198: 1001-ESPINAR
T199: 000007142 | U199: CHANCAMAYO | V199: 000007142 | W199: 3 | X199: 08 | Y199: 04 | Z199: 08 | AA199: 11 | AB199: 02 | AC199: 08 | AD199: I-1 | AE199: 0208 | AF199: 6 | AG199: 208 | AH199: 0208-CHANCAMAYO
T200: 000010063 | U200: ESSALUD SICUANI | V200: 000010063 | X200: 08 | Y200: 06 | Z200: 01 | AA200: 11 | AB200: 04 | AC200: 04 | AD200: II-1 | AE200: 0404 | AF200: 9 | AG200: 308 | AH200: 0404-ESSALUD SICUANI
T201: 000006982 | U201: MELLOTOTORA | V201: 000006982 | W201: 3 | X201: 08 | Y201: 07 | Z201: 01 | AA201: 11 | AB201: 08 | AC201: 09 | AD201: I-1 | AE201: 0809 | AF201: 9 | AG201: 308 | AH201: 0809-MELLOTOTORA
... 217 more rows

Sheet INICIO
C13: 1 | E13: 3
B28: año | C28: 2024
B29: meses | C29: 1 | D29: 2 | E29: 3 | F29: 4 | G29: 5 | H29: 6 | I29: 7 | J29: 8 | K29: 9 | L29: 10 | M29: 11 | N29: 0
C30: =IF(C29>=1,C29," ") -> 1 | D30: =IF(D29>=1,D29," ") -> 2 | E30: =IF(E29>=1,E29," ") -> 3 | F30: =IF(F29>=1,F29," ") -> 4 | G30: =IF(G29>=1,G29," ") -> 5 | H30: =IF(H29>=1,H29," ") -> 6 | I30: 7 | J30: 8 | K30: 9 | L30: 10 | M30: 11
B31: redes | C31: 03-LA CONVENCION | E31: =TRIM(MID(C31,4,25)) -> LA CONVENCION
B32: micro red | C32: 06-(ALL) | E32: =TRIM(MID(C32,4,25)) -> (ALL)
B33: establecimiento | C33: 0000-(ALL) | E33: =TRIM(MID(C33,6,50)) -> (ALL)
B34: provincia | C34: 00-(ALL) | E34: =TRIM(MID(C34,4,25)) -> (ALL)
B35: distrito | C35: 0000-(ALL) | E35: =TRIM(MID(C35,6,25)) -> (ALL)
A41: ANO | B41: 2024
A42: DESC_RED | B42: LA CONVENCION
A43: DESC_MICRO | B43: (Todas)
A44: DESC_ESTAB | B44: (Todas)
A45: DESC_PROV | B45: (Todas)
A46: DESC_DIST | B46: (Todas)
B48: Valores
A49: Etiquetas de fila | B49: ANEMIA LEV 6-11m | C49: ANEMIA LEV 1a | D49: ANEMIA LEV 2a | E49: ANEMIA LEV 3a | F49: ANEMIA LEV 4a | G49: ANEMIA LEV 5-9a | H49: ANEMIA MOD 6-11m | I49: ANEMIA MOD 1a | J49: ANEMIA MOD 2a | K49: ANEMIA MOD 3a | L49: ANEMIA MOD 4a | M49: ANEMIA MOD 5-9a | N49: ANEMIA SEV 6-11m | O49: ANEMIA SEV 1a | P49: ANEMIA SEV 2a | Q49: ANEMIA SEV 3a | R49: ANEMIA SEV 4a | S49: ANEMIA SEV 5-9a | T49: ANEMIA SIN LAB 6-11m | U49: ANEMIA SIN LAB 1a | V49: ANEMIA SIN LAB 2a | W49: ANEMIA SIN LAB 3a | X49: ANEMIA SIN LAB 4a | Y49: ANEMIA SIN LAB 5-9a | Z49: DOSAJE SIN NUM-LAB EN ANEMIA 6-11m | AA49: DOSAJE SIN NUM-LAB EN ANEMIA 1a | AB49: DOSAJE SIN NUM-LAB EN ANEMIA 2a | AC49: DOSAJE SIN NUM-LAB EN ANEMIA 3a | AD49: DOSAJE SIN NUM-LAB EN ANEMIA 4a | AE49: DOSAJE SIN NUM-LAB EN ANEMIA 5-9a | AF49: 1ER DOSAJE POR ANEMIA HB/HTO <6m | AG49: 1ER DOSAJE POR ANEMIA HB/HTO 6-11m | AH49: 1ER DOSAJE POR ANEMIA 1a | AI49: 1ER DOSAJE POR ANEMIA 2a | AJ49: 1ER DOSAJE POR ANEMIA 3a | AK49: 1ER DOSAJE POR ANEMIA 4a | AL49: 1ER DOSAJE POR ANEMIA 5-9a | AM49: 2DO DOSAJE POR ANEMIA HB/HTO <6m | AN49: 2DO DOSAJE POR ANEMIA HB/HTO 6-11m | AO49: 2DO DOSAJE POR ANEMIA 1a | AP49: 2DO DOSAJE POR ANEMIA 2a | AQ49: 2DO DOSAJE POR ANEMIA 2a2 | AR49: 2DO DOSAJE POR ANEMIA 3a | AS49: 2DO DOSAJE POR ANEMIA 4a | AT49: 2DO DOSAJE POR ANEMIA 5-9a | AU49: 3ER DOSAJE POR ANEMIA HB/HTO <6m | AV49: 3ER DOSAJE POR ANEMIA 6-11m | AW49: 3ER DOSAJE POR ANEMIA 1a | AX49: 3ER DOSAJE POR ANEMIA 2a | AY49: 3ER DOSAJE POR ANEMIA 3a | AZ49: 3ER DOSAJE POR ANEMIA 4a | BA49: 3ER DOSAJE POR ANEMIA 5-9a | BB49: 4TO DOSAJE POR ANEMIA HB/HTO <6m | BC49: 4TO DOSAJE POR ANEMIA 6-11mm | BD49: 4TO DOSAJE POR ANEMIA 1a | BE49: 4TO DOSAJE POR ANEMIA 2a | BF49: 4TO DOSAJE POR ANEMIA 3a | BG49: 4TO DOSAJE POR ANEMIA 4a | BH49: 4TO DOSAJE POR ANEMIA 5-9a | BI49: ANEMIA <6Meses | BJ49: REC ANEMIA <6meses | BK49: DOSAJE SIN NUM-LAB EN ANEMIA <6m
A50: 1 | B50: 28 | C50: 48 | D50: 13 | E50: 8 | F50: 8 | G50: 8 | H50: 22 | I50: 14 | J50: 4 | K50: 1 | L50: 1 | M50: 3 | N50: 0 | O50: 0 | P50: 0 | Q50: 0 | R50: 0 | S50: 0 | T50: 2 | U50: 6 | V50: 2 | W50: 3 | X50: 2 | Y50: 8 | Z50: 10 | AA50: 14 | AB50: 8 | AC50: 10 | AD50: 4 | AE50: 5 | AF50: 3 | AG50: 61 | AH50: 59 | AI50: 21 | AJ50: 16 | AK50: 13 | AL50: 10 | AM50: 3 | AN50: 36 | AO50: 64 | AP50: 17 | AQ50: 17 | AR50: 11 | AS50: 10 | AT50: 1 | AU50: 0 | AV50: 18 | AW50: 33 | AX50: 17 | AY50: 10 | AZ50: 6 | BA50: 1 | BB50: 0 | BC50: 2 | BD50: 34 | BE50: 19 | BF50: 4 | BG50: 6 | BH50: 1 | BI50: 2 | BJ50: 0 | BK50: 0
A51: 2 | B51: 28 | C51: 42 | D51: 11 | E51: 17 | F51: 9 | G51: 7 | H51: 12 | I51: 11 | J51: 6 | K51: 3 | L51: 4 | M51: 1 | N51: 0 | O51: 0 | P51: 0 | Q51: 1 | R51: 0 | S51: 0 | T51: 2 | U51: 5 | V51: 1 | W51: 0 | X51: 0 | Y51: 6 | Z51: 12 | AA51: 15 | AB51: 9 | AC51: 6 | AD51: 3 | AE51: 3 | AF51: 3 | AG51: 56 | AH51: 65 | AI51: 22 | AJ51: 20 | AK51: 15 | AL51: 9 | AM51: 2 | AN51: 32 | AO51: 77 | AP51: 14 | AQ51: 14 | AR51: 6 | AS51: 11 | AT51: 0 | AU51: 0 | AV51: 23 | AW51: 42 | AX51: 16 | AY51: 9 | AZ51: 7 | BA51: 2 | BB51: 1 | BC51: 0 | BD51: 29 | BE51: 7 | BF51: 7 | BG51: 6 | BH51: 0 | BI51: 2 | BJ51: 0 | BK51: 0
A52: 3 | B52: 28 | C52: 36 | D52: 23 | E52: 11 | F52: 7 | G52: 4 | H52: 10 | I52: 7 | J52: 6 | K52: 6 | L52: 3 | M52: 2 | N52: 0 | O52: 0 | P52: 0 | Q52: 0 | R52: 0 | S52: 0 | T52: 1 | U52: 7 | V52: 15 | W52: 6 | X52: 7 | Y52: 33 | Z52: 6 | AA52: 13 | AB52: 9 | AC52: 8 | AD52: 1 | AE52: 0 | AF52: 4 | AG52: 54 | AH52: 55 | AI52: 48 | AJ52: 29 | AK52: 12 | AL52: 7 | AM52: 2 | AN52: 34 | AO52: 72 | AP52: 13 | AQ52: 13 | AR52: 13 | AS52: 7 | AT52: 1 | AU52: 0 | AV52: 31 | AW52: 40 | AX52: 17 | AY52: 7 | AZ52: 7 | BA52: 1 | BB52: 0 | BC52: 0 | BD52: 29 | BE52: 14 | BF52: 6 | BG52: 2 | BH52: 1 | BI52: 4 | BJ52: 0 | BK52: 1
A53: 4 | B53: 20 | C53: 45 | D53: 21 | E53: 17 | F53: 13 | G53: 3 | H53: 8 | I53: 15 | J53: 8 | K53: 1 | L53: 1 | M53: 2 | N53: 0 | O53: 0 | P53: 0 | Q53: 0 | R53: 0 | S53: 0 | T53: 1 | U53: 7 | V53: 0 | W53: 1 | X53: 1 | Y53: 10 | Z53: 9 | AA53: 19 | AB53: 10 | AC53: 10 | AD53: 6 | AE53: 5 | AF53: 3 | AG53: 47 | AH53: 65 | AI53: 46 | AJ53: 23 | AK53: 22 | AL53: 14 | AM53: 2 | AN53: 22 | AO53: 71 | AP53: 19 | AQ53: 19 | AR53: 15 | AS53: 8 | AT53: 2 | AU53: 0 | AV53: 25 | AW53: 49 | AX53: 10 | AY53: 6 | AZ53: 6 | BA53: 3 | BB53: 0 | BC53: 0 | BD53: 33 | BE53: 19 | BF53: 6 | BG53: 8 | BH53: 1 | BI53: 0 | BJ53: 0 | BK53: 0
A54: 5 | B54: 29 | C54: 33 | D54: 11 | E54: 16 | F54: 9 | G54: 2 | H54: 16 | I54: 15 | J54: 3 | K54: 4 | L54: 4 | M54: 0 | N54: 0 | O54: 0 | P54: 0 | Q54: 0 | R54: 0 | S54: 0 | T54: 0 | U54: 2 | V54: 1 | W54: 2 | X54: 3 | Y54: 15 | Z54: 10 | AA54: 16 | AB54: 5 | AC54: 6 | AD54: 4 | AE54: 1 | AF54: 8 | AG54: 43 | AH54: 56 | AI54: 41 | AJ54: 20 | AK54: 22 | AL54: 7 | AM54: 1 | AN54: 26 | AO54: 57 | AP54: 27 | AQ54: 27 | AR54: 15 | AS54: 9 | AT54: 1 | AU54: 0 | AV54: 25 | AW54: 35 | AX54: 13 | AY54: 5 | AZ54: 5 | BA54: 1 | BB54: 0 | BC54: 3 | BD54: 21 | BE54: 15 | BF54: 8 | BG54: 2 | BH54: 1 | BI54: 6 | BJ54: 0 | BK54: 0
A55: 6 | B55: 18 | C55: 22 | D55: 9 | E55: 10 | F55: 8 | G55: 2 | H55: 5 | I55: 7 | J55: 3 | K55: 1 | L55: 1 | M55: 0 | N55: 0 | O55: 0 | P55: 0 | Q55: 0 | R55: 0 | S55: 0 | T55: 2 | U55: 4 | V55: 2 | W55: 1 | X55: 0 | Y55: 2 | Z55: 15 | AA55: 17 | AB55: 8 | AC55: 5 | AD55: 9 | AE55: 0 | AF55: 1 | AG55: 21 | AH55: 44 | AI55: 39 | AJ55: 18 | AK55: 16 | AL55: 3 | AM55: 0 | AN55: 25 | AO55: 47 | AP55: 15 | AQ55: 15 | AR55: 13 | AS55: 9 | AT55: 4 | AU55: 0 | AV55: 17 | AW55: 32 | AX55: 17 | AY55: 9 | AZ55: 8 | BA55: 0 | BB55: 0 | BC55: 0 | BD55: 31 | BE55: 17 | BF55: 2 | BG55: 6 | BH55: 1 | BI55: 1 | BJ55: 0 | BK55: 1
A56: 7 | B56: 23 | C56: 26 | D56: 11 | E56: 11 | F56: 3 | G56: 3 | H56: 11 | I56: 11 | J56: 8 | K56: 5 | L56: 0 | M56: 1 | N56: 0 | O56: 1 | P56: 0 | Q56: 0 | R56: 0 | S56: 0 | T56: 2 | U56: 3 | V56: 1 | W56: 1 | X56: 1 | Y56: 7 | Z56: 5 | AA56: 9 | AB56: 7 | AC56: 3 | AD56: 0 | AE56: 3 | AF56: 1 | AG56: 33 | AH56: 54 | AI56: 47 | AJ56: 36 | AK56: 9 | AL56: 5 | AM56: 1 | AN56: 22 | AO56: 64 | AP56: 18 | AQ56: 18 | AR56: 10 | AS56: 7 | AT56: 0 | AU56: 0 | AV56: 22 | AW56: 29 | AX56: 15 | AY56: 14 | AZ56: 4 | BA56: 1 | BB56: 0 | BC56: 0 | BD56: 41 | BE56: 14 | BF56: 4 | BG56: 4 | BH56: 1 | BI56: 1 | BJ56: 0 | BK56: 0
A57: 8 | B57: 20 | C57: 21 | D57: 12 | E57: 7 | F57: 5 | G57: 1 | H57: 10 | I57: 9 | J57: 5 | K57: 3 | L57: 4 | M57: 2 | N57: 0 | O57: 1 | P57: 0 | Q57: 0 | R57: 0 | S57: 0 | T57: 6 | U57: 7 | V57: 2 | W57: 1 | X57: 1 | Y57: 5 | Z57: 9 | AA57: 30 | AB57: 9 | AC57: 7 | AD57: 2 | AE57: 3 | AF57: 0 | AG57: 28 | AH57: 54 | AI57: 30 | AJ57: 24 | AK57: 20 | AL57: 5 | AM57: 1 | AN57: 14 | AO57: 67 | AP57: 14 | AQ57: 14 | AR57: 9 | AS57: 10 | AT57: 1 | AU57: 1 | AV57: 26 | AW57: 25 | AX57: 11 | AY57: 10 | AZ57: 8 | BA57: 0 | BB57: 0 | BC57: 1 | BD57: 27 | BE57: 19 | BF57: 4 | BG57: 3 | BH57: 0 | BI57: 0 | BJ57: 0 | BK57: 0
A58: 9 | B58: 18 | C58: 21 | D58: 10 | E58: 10 | F58: 11 | G58: 0 | H58: 16 | I58: 15 | J58: 4 | K58: 1 | L58: 4 | M58: 1 | N58: 0 | O58: 0 | P58: 0 | Q58: 0 | R58: 0 | S58: 0 | T58: 3 | U58: 8 | V58: 5 | W58: 1 | X58: 2 | Y58: 3 | Z58: 15 | AA58: 21 | AB58: 20 | AC58: 9 | AD58: 8 | AE58: 3 | AF58: 1 | AG58: 35 | AH58: 53 | AI58: 49 | AJ58: 25 | AK58: 27 | AL58: 3 | AM58: 0 | AN58: 20 | AO58: 76 | AP58: 15 | AQ58: 15 | AR58: 12 | AS58: 8 | AT58: 2 | AU58: 0 | AV58: 20 | AW58: 33 | AX58: 25 | AY58: 8 | AZ58: 9 | BA58: 0 | BB58: 0 | BC58: 1 | BD58: 35 | BE58: 22 | BF58: 8 | BG58: 3 | BH58: 2 | BI58: 0 | BJ58: 0 | BK58: 0
A59: 10 | B59: 21 | C59: 27 | D59: 14 | E59: 7 | F59: 5 | G59: 4 | H59: 6 | I59: 8 | J59: 2 | K59: 5 | L59: 1 | M59: 3 | N59: 0 | O59: 0 | P59: 0 | Q59: 0 | R59: 0 | S59: 0 | T59: 7 | U59: 10 | V59: 7 | W59: 1 | X59: 4 | Y59: 10 | Z59: 9 | AA59: 22 | AB59: 21 | AC59: 8 | AD59: 4 | AE59: 3 | AF59: 1 | AG59: 38 | AH59: 53 | AI59: 50 | AJ59: 34 | AK59: 14 | AL59: 12 | AM59: 0 | AN59: 21 | AO59: 74 | AP59: 21 | AQ59: 21 | AR59: 9 | AS59: 8 | AT59: 0 | AU59: 0 | AV59: 18 | AW59: 39 | AX59: 20 | AY59: 10 | AZ59: 4 | BA59: 1 | BB59: 0 | BC59: 6 | BD59: 17 | BE59: 11 | BF59: 8 | BG59: 6 | BH59: 0 | BI59: 1 | BJ59: 0 | BK59: 1
A60: 11 | B60: 26 | C60: 24 | D60: 12 | E60: 7 | F60: 9 | G60: 4 | H60: 9 | I60: 13 | J60: 3 | K60: 3 | L60: 3 | M60: 2 | N60: 0 | O60: 1 | P60: 0 | Q60: 0 | R60: 0 | S60: 0 | T60: 4 | U60: 8 | V60: 3 | W60: 1 | X60: 6 | Y60: 3 | Z60: 30 | AA60: 66 | AB60: 42 | AC60: 23 | AD60: 13 | AE60: 3 | AF60: 0 | AG60: 25 | AH60: 41 | AI60: 43 | AJ60: 21 | AK60: 16 | AL60: 6 | AM60: 0 | AN60: 16 | AO60: 60 | AP60: 16 | AQ60: 16 | AR60: 12 | AS60: 4 | AT60: 3 | AU60: 0 | AV60: 10 | AW60: 28 | AX60: 10 | AY60: 3 | AZ60: 2 | BA60: 0 | BB60: 0 | BC60: 3 | BD60: 21 | BE60: 6 | BF60: 4 | BG60: 4 | BH60: 0 | BI60: 1 | BJ60: 0 | BK60: 1
A61: Total general | B61: 259 | C61: 345 | D61: 147 | E61: 121 | F61: 87 | G61: 38 | H61: 125 | I61: 125 | J61: 52 | K61: 33 | L61: 26 | M61: 17 | N61: 0 | O61: 3 | P61: 0 | Q61: 1 | R61: 0 | S61: 0 | T61: 30 | U61: 67 | V61: 39 | W61: 18 | X61: 27 | Y61: 102 | Z61: 130 | AA61: 242 | AB61: 148 | AC61: 95 | AD61: 54 | AE61: 29 | AF61: 25 | AG61: 441 | AH61: 599 | AI61: 436 | AJ61: 266 | AK61: 186 | AL61: 81 | AM61: 12 | AN61: 268 | AO61: 729 | AP61: 189 | AQ61: 189 | AR61: 125 | AS61: 91 | AT61: 15 | AU61: 1 | AV61: 235 | AW61: 385 | AX61: 171 | AY61: 91 | AZ61: 66 | BA61: 10 | BB61: 1 | BC61: 16 | BD61: 318 | BE61: 163 | BF61: 61 | BG61: 50 | BH61: 8 | BI61: 18 | BJ61: 0 | BK61: 4
A70: ANO | B70: 2024
A71: DESC_RED | B71: LA CONVENCION
A72: DESC_MICRO | B72: (Todas)
A73: DESC_ESTAB | B73: (Todas)
A74: DESC_PROV | B74: (Todas)
A75: DESC_DIST | B75: (Todas)
B77: Valores
A78: Etiquetas de fila | B78: ADM_SF GETS 1° | C78: ADM_SF GETS 2° | D78: ADM_SF GETS 3° | E78: ADM_SF GETS 4° | F78: ADM_SF GETS 5° | G78: ADM_SF GETS 6° | H78: ADM_ACIDO FOLICO GETS 1° | I78: ADM_ACIDO FOLICO GETS 2° | J78: ADM_ACIDO FOLICO GETS 3° | K78: ANEMIA LEVE | L78: ANEMIA MOD | M78: ANEMIA SEV | N78: DOSAJE HB/HTO GEST | O78: EX BATERIA COMPLETA 10-59
A79: 1 | B79: 177 | C79: 164 | D79: 121 | E79: 100 | F79: 80 | G79: 55 | H79: 131 | I79: 40 | J79: 7 | K79: 36 | L79: 15 | M79: 1 | N79: 701 | O79: 252
A80: 2 | B80: 136 | C80: 131 | D80: 143 | E80: 110 | F80: 81 | G80: 45 | H80: 99 | I80: 61 | J80: 1 | K80: 35 | L80: 13 | M80: 0 | N80: 627 | O80: 234
A81: 3 | B81: 151 | C81: 126 | D81: 125 | E81: 108 | F81: 90 | G81: 53 | H81: 111 | I81: 56 | J81: 8 | K81: 35 | L81: 10 | M81: 0 | N81: 614 | O81: 266
A82: 4 | B82: 257 | C82: 189 | D82: 158 | E82: 147 | F82: 145 | G82: 73 | H82: 149 | I82: 63 | J82: 3 | K82: 34 | L82: 44 | M82: 0 | N82: 970 | O82: 375
A83: 5 | B83: 183 | C83: 210 | D83: 135 | E83: 104 | F83: 118 | G83: 68 | H83: 130 | I83: 70 | J83: 6 | K83: 25 | L83: 17 | M83: 0 | N83: 703 | O83: 289
A84: 6 | B84: 158 | C84: 131 | D84: 141 | E84: 93 | F84: 77 | G84: 45 | H84: 109 | I84: 44 | J84: 7 | K84: 26 | L84: 8 | M84: 0 | N84: 482 | O84: 240
A85: 7 | B85: 170 | C85: 157 | D85: 136 | E85: 125 | F85: 95 | G85: 59 | H85: 123 | I85: 61 | J85: 0 | K85: 22 | L85: 18 | M85: 0 | N85: 553 | O85: 319
A86: 8 | B86: 179 | C86: 170 | D86: 129 | E86: 101 | F86: 118 | G86: 78 | H86: 115 | I86: 57 | J86: 3 | K86: 35 | L86: 6 | M86: 0 | N86: 551 | O86: 311
A87: 9 | B87: 196 | C87: 166 | D87: 146 | E87: 125 | F87: 106 | G87: 90 | H87: 120 | I87: 53 | J87: 9 | K87: 36 | L87: 18 | M87: 0 | N87: 531 | O87: 300
A88: 10 | B88: 218 | C88: 232 | D88: 178 | E88: 113 | F88: 94 | G88: 85 | H88: 141 | I88: 44 | J88: 9 | K88: 49 | L88: 14 | M88: 0 | N88: 690 | O88: 342
A89: 11 | B89: 195 | C89: 200 | D89: 169 | E89: 105 | F89: 110 | G89: 81 | H89: 107 | I89: 65 | J89: 5 | K89: 45 | L89: 9 | M89: 2 | N89: 576 | O89: 286
A90: Total general | B90: 2020 | C90: 1876 | D90: 1581 | E90: 1231 | F90: 1114 | G90: 732 | H90: 1335 | I90: 614 | J90: 58 | K90: 378 | L90: 172 | M90: 3 | N90: 6998 | O90: 3214
A96: ANO | B96: 2024
A97: DESC_RED | B97: LA CONVENCION
A98: DESC_MICRO | B98: (Todas)
A99: DESC_ESTAB | B99: (Todas)
A100: DESC_PROV | B100: (Todas)
A101: DESC_DIST | B101: (Todas)
B103: Valores
A104: Etiquetas de fila | B104: 1° ADM_SF RN BPN 1M | C104: 2° ADM_SF RN BPN 2M | D104: 3° ADM_SF RN BPN 3M | E104: 4° ADM_SF RN BPN 4M | F104: 5° ADM_SF RN BPN 5M | G104: 1° ADM_SF RN BPN 2M | H104: 2° ADM_SF RN BPN 3M | I104: 3° ADM_SF RN BPN 4M | J104: 4° ADM_SF RN BPN 5M | K104: 1° ADM_SF RN BPN 3M | L104: 1° ADM_SF RN BPN 3M1 | M104: 2° ADM_SF RN BPN 4M | N104: 3° ADM_SF RN BPN 5M | O104: 1° ADM_SF RN BPN 4M | P104: 2° ADM_SF RN BPN 5M | Q104: 1° ADM_SF RN BPN 5M | R104: TA SUPLEM BPN 6M
A105: 1 | B105: 9 | C105: 1 | D105: 0 | E105: 1 | F105: 0 | G105: 0 | H105: 0 | I105: 0 | J105: 0 | K105: 0 | L105: 0 | M105: 3 | N105: 0 | O105: 1 | P105: 1 | Q105: 0 | R105: 2
A106: 2 | B106: 6 | C106: 0 | D106: 0 | E106: 0 | F106: 0 | G106: 0 | H106: 1 | I106: 0 | J106: 0 | K106: 0 | L106: 0 | M106: 3 | N106: 0 | O106: 0 | P106: 1 | Q106: 0 | R106: 6
A107: 3 | B107: 6 | C107: 1 | D107: 1 | E107: 0 | F107: 0 | G107: 1 | H107: 2 | I107: 0 | J107: 0 | K107: 0 | L107: 0 | M107: 1 | N107: 0 | O107: 0 | P107: 0 | Q107: 0 | R107: 4
A108: 4 | B108: 3 | C108: 0 | D108: 0 | E108: 0 | F108: 0 | G108: 1 | H108: 1 | I108: 0 | J108: 1 | K108: 0 | L108: 0 | M108: 2 | N108: 1 | O108: 1 | P108: 0 | Q108: 0 | R108: 2
A109: 5 | B109: 7 | C109: 0 | D109: 0 | E109: 1 | F109: 0 | G109: 0 | H109: 0 | I109: 1 | J109: 0 | K109: 1 | L109: 1 | M109: 1 | N109: 0 | O109: 0 | P109: 0 | Q109: 0 | R109: 1
A110: 6 | B110: 4 | C110: 0 | D110: 0 | E110: 0 | F110: 1 | G110: 0 | H110: 0 | I110: 0 | J110: 0 | K110: 0 | L110: 0 | M110: 2 | N110: 0 | O110: 0 | P110: 0 | Q110: 0 | R110: 0
A111: 7 | B111: 3 | C111: 1 | D111: 1 | E111: 0 | F111: 0 | G111: 0 | H111: 2 | I111: 0 | J111: 0 | K111: 1 | L111: 1 | M111: 2 | N111: 0 | O111: 1 | P111: 0 | Q111: 0 | R111: 1
A112: 8 | B112: 4 | C112: 1 | D112: 1 | E112: 1 | F112: 0 | G112: 2 | H112: 0 | I112: 1 | J112: 0 | K112: 0 | L112: 0 | M112: 1 | N112: 0 | O112: 2 | P112: 0 | Q112: 0 | R112: 2
A113: 9 | B113: 10 | C113: 0 | D113: 1 | E113: 0 | F113: 0 | G113: 0 | H113: 0 | I113: 0 | J113: 0 | K113: 0 | L113: 0 | M113: 3 | N113: 0 | O113: 1 | P113: 0 | Q113: 0 | R113: 0
A114: 10 | B114: 5 | C114: 1 | D114: 1 | E114: 0 | F114: 1 | G114: 0 | H114: 0 | I114: 0 | J114: 0 | K114: 0 | L114: 0 | M114: 1 | N114: 0 | O114: 0 | P114: 0 | Q114: 0 | R114: 0
A115: 11 | B115: 8 | C115: 0 | D115: 3 | E115: 1 | F115: 0 | G115: 0 | H115: 0 | I115: 1 | J115: 0 | K115: 0 | L115: 0 | M115: 1 | N115: 0 | O115: 0 | P115: 0 | Q115: 0 | R115: 0
A116: Total general | B116: 65 | C116: 5 | D116: 8 | E116: 4 | F116: 2 | G116: 4 | H116: 6 | I116: 3 | J116: 1 | K116: 2 | L116: 2 | M116: 20 | N116: 1 | O116: 6 | P116: 2 | Q116: 0 | R116: 18
A126: ANO | B126: 2024
A127: DESC_RED | B127: LA CONVENCION
A128: DESC_MICRO | B128: (Todas)
A129: DESC_ESTAB | B129: (Todas)
A130: DESC_PROV | B130: (Todas)
A131: DESC_DIST | B131: (Todas)
B133: Valores
A134: Etiquetas de fila | B134: ANEMIA LEVE PUER | C134: ANEMIA MOD PUER | D134: ANEMIA SEV PUER | E134: ADM_SF1 PUER INOPORTUNO 10-59 | F134: ADM_SF2 PUER INOPORTUNO 10-59 | G134: ADM_SF3 PUER INOPORTUNO 10-59 | H134: ADM_SF4 PUER INOPORTUNO 10-59 | I134: ADM_SF5 PUER INOPORTUNO 10-59 | J134: ADM_SF6 PUER INOPORTUNO 10-59 | K134: ADM_SF7 PUER PROT 10-59 | L134: DOSAJE HB/HTO PUER | M134: REC ANEMIA LEV GEST | N134: REC ANEMIA MOD GEST | O134: REC ANEMIA SEV GEST
A135: 1 | B135: 4 | C135: 2 | D135: 1 | E135: 8 | F135: 5 | G135: 6 | H135: 13 | I135: 12 | J135: 21 | K135: 7 | L135: 113 | M135: 0 | N135: 0 | O135: 0
A136: 2 | B136: 2 | C136: 1 | D136: 0 | E136: 2 | F136: 3 | G136: 1 | H136: 6 | I136: 12 | J136: 20 | K136: 6 | L136: 115 | M136: 0 | N136: 0 | O136: 0
A137: 3 | B137: 0 | C137: 0 | D137: 0 | E137: 4 | F137: 4 | G137: 4 | H137: 7 | I137: 8 | J137: 14 | K137: 9 | L137: 106 | M137: 0 | N137: 0 | O137: 0
A138: 4 | B138: 0 | C138: 0 | D138: 0 | E138: 2 | F138: 5 | G138: 6 | H138: 8 | I138: 14 | J138: 15 | K138: 10 | L138: 127 | M138: 0 | N138: 0 | O138: 0
A139: 5 | B139: 2 | C139: 2 | D139: 0 | E139: 5 | F139: 2 | G139: 4 | H139: 9 | I139: 4 | J139: 21 | K139: 6 | L139: 140 | M139: 0 | N139: 0 | O139: 0
A140: 6 | B140: 2 | C140: 0 | D140: 0 | E140: 2 | F140: 0 | G140: 4 | H140: 11 | I140: 6 | J140: 24 | K140: 6 | L140: 134 | M140: 0 | N140: 0 | O140: 0
A141: 7 | B141: 1 | C141: 0 | D141: 0 | E141: 4 | F141: 1 | G141: 2 | H141: 9 | I141: 6 | J141: 28 | K141: 6 | L141: 105 | M141: 0 | N141: 0 | O141: 0
A142: 8 | B142: 1 | C142: 0 | D142: 0 | E142: 0 | F142: 1 | G142: 0 | H142: 13 | I142: 7 | J142: 26 | K142: 15 | L142: 94 | M142: 0 | N142: 0 | O142: 0
A143: 9 | B143: 3 | C143: 0 | D143: 0 | E143: 2 | F143: 1 | G143: 6 | H143: 4 | I143: 9 | J143: 33 | K143: 8 | L143: 101 | M143: 0 | N143: 0 | O143: 0
A144: 10 | B144: 0 | C144: 0 | D144: 0 | E144: 0 | F144: 1 | G144: 4 | H144: 5 | I144: 8 | J144: 27 | K144: 10 | L144: 109 | M144: 0 | N144: 0 | O144: 0
A145: 11 | B145: 0 | C145: 0 | D145: 0 | E145: 1 | F145: 0 | G145: 3 | H145: 11 | I145: 7 | J145: 25 | K145: 11 | L145: 111 | M145: 0 | N145: 0 | O145: 0
A146: Total general | B146: 15 | C146: 5 | D146: 1 | E146: 30 | F146: 23 | G146: 40 | H146: 96 | I146: 93 | J146: 254 | K146: 94 | L146: 1255 | M146: 0 | N146: 0 | O146: 0
A155: ANO | B155: 2024
A156: DESC_RED | B156: LA CONVENCION
A157: DESC_MICRO | B157: (Todas)
A158: DESC_ESTAB | B158: (Todas)
A159: DESC_PROV | B159: (Todas) | CG159: 3.27 | CH159: 52 | CI159: =+CH159*CG159 -> 170.04
A160: DESC_DIST | B160: (Todas)
A162: Etiquetas de fila | B162: CONSEJERIA NUTRICIONAL MMN <1a | C162: CONSEJERIA NUTRICIONAL MMN 1a | D162: CONSEJERIA NUTRICIONAL MMN 2a | E162: CONSEJERIA NUTRICIONAL MMN 3a | F162: TA 4-5meses | G162: SF1-P01 5M | H162: 1° ADM_SF 4m | I162: 2° ADM_SF 5m | J162: 1° DOSAJE DE CONTROL <6m | K162: 1° DOSAJE POR MMN 6-11m | L162: 1° DOSAJE POR MMN 1a | M162: 1° DOSAJE POR MMN 2a | N162: 1° DOSAJE POR MMN 3a | O162: 1° DOSAJE POR MMN 4a | P162: 1° DOSAJE POR MMN 5-9a | Q162: 2° DOSAJE DE CONTROL <6m | R162: 2° DOSAJE POR MMN 6-11m | S162: 2° DOSAJE POR MMN 1a | T162: 2° DOSAJE POR MMN 2a | U162: 2° DOSAJE POR MMN 3a | V162: 2° DOSAJE POR MMN 4a | W162: 2° DOSAJE POR MMN 5-9a | X162: 3° DOSAJE DE CONTROL <6m | Y162: 3° DOSAJE POR MMN 6-11m | Z162: 3° DOSAJE POR MMN 1a | AA162: 3° DOSAJE POR MMN 2a | AB162: 3° DOSAJE POR MMN 3a | AC162: 3° DOSAJE POR MMN 4a | AD162: 3° DOSAJE POR MMN 5-9a | AE162: LAB VACIO CONTROL <6m | AF162: LAB VACIO DOSAJE POR MMN 6-11m | AG162: LAB VACIO DOSAJE POR MMN 1a | AH162: LAB VACIO DOSAJE POR MMN 2a | AI162: LAB VACIO DOSAJE POR MMN 3a | AJ162: LAB VACIO DOSAJE POR MMN 4a | AK162: LAB VACIO DOSAJE POR MMN 5-9a | AL162: VISITA DOMIC 4m | AM162: VISITA DOMIC 5m | AN162: VISITA DOMIC 6m | AO162: VISITA DOMIC 7m | AP162: VISITA DOMIC 8m | AQ162: VISITA DOMIC 9m | AR162: VISITA DOMIC 10m | AS162: VISITA DOMIC 11m
A163: 1 | B163: 7 | C163: 2 | D163: 6 | E163: 28 | F163: 114 | G163: 2 | H163: 134 | I163: 8 | J163: 7 | K163: 108 | L163: 104 | M163: 98 | N163: 108 | O163: 104 | P163: 75 | Q163: 0 | R163: 1 | S163: 54 | T163: 10 | U163: 6 | V163: 3 | W163: 0 | X163: 0 | Y163: 1 | Z163: 7 | AA163: 0 | AB163: 0 | AC163: 0 | AD163: 0 | AE163: 0 | AF163: 10 | AG163: 11 | AH163: 18 | AI163: 4 | AJ163: 11 | AK163: 14 | AL163: 100 | AM163: 85 | AN163: 45 | AO163: 52 | AP163: 27 | AQ163: 54 | AR163: 20 | AS163: 33
A164: 2 | B164: 5 | C164: 3 | D164: 4 | E164: 8 | F164: 90 | G164: 3 | H164: 132 | I164: 5 | J164: 8 | K164: 95 | L164: 67 | M164: 83 | N164: 107 | O164: 77 | P164: 116 | Q164: 3 | R164: 2 | S164: 51 | T164: 8 | U164: 5 | V164: 2 | W164: 0 | X164: 0 | Y164: 0 | Z164: 7 | AA164: 3 | AB164: 0 | AC164: 0 | AD164: 0 | AE164: 0 | AF164: 4 | AG164: 7 | AH164: 5 | AI164: 8 | AJ164: 8 | AK164: 11 | AL164: 105 | AM164: 66 | AN164: 21 | AO164: 53 | AP164: 19 | AQ164: 37 | AR164: 13 | AS164: 22
A165: 3 | B165: 3 | C165: 0 | D165: 3 | E165: 5 | F165: 104 | G165: 3 | H165: 137 | I165: 2 | J165: 7 | K165: 104 | L165: 70 | M165: 108 | N165: 90 | O165: 84 | P165: 98 | Q165: 2 | R165: 1 | S165: 63 | T165: 6 | U165: 6 | V165: 4 | W165: 1 | X165: 0 | Y165: 2 | Z165: 4 | AA165: 0 | AB165: 1 | AC165: 0 | AD165: 0 | AE165: 1 | AF165: 5 | AG165: 20 | AH165: 9 | AI165: 9 | AJ165: 11 | AK165: 13 | AL165: 99 | AM165: 78 | AN165: 20 | AO165: 49 | AP165: 20 | AQ165: 32 | AR165: 11 | AS165: 15
A166: 4 | B166: 1 | C166: 0 | D166: 1 | E166: 7 | F166: 112 | G166: 4 | H166: 124 | I166: 5 | J166: 7 | K166: 119 | L166: 82 | M166: 105 | N166: 92 | O166: 109 | P166: 212 | Q166: 0 | R166: 2 | S166: 78 | T166: 17 | U166: 6 | V166: 10 | W166: 0 | X166: 0 | Y166: 2 | Z166: 4 | AA166: 0 | AB166: 1 | AC166: 0 | AD166: 0 | AE166: 1 | AF166: 5 | AG166: 17 | AH166: 8 | AI166: 12 | AJ166: 11 | AK166: 40 | AL166: 68 | AM166: 75 | AN166: 26 | AO166: 51 | AP166: 18 | AQ166: 36 | AR166: 16 | AS166: 13
A167: 5 | B167: 9 | C167: 1 | D167: 3 | E167: 12 | F167: 106 | G167: 1 | H167: 111 | I167: 3 | J167: 5 | K167: 107 | L167: 95 | M167: 88 | N167: 106 | O167: 88 | P167: 111 | Q167: 0 | R167: 2 | S167: 73 | T167: 10 | U167: 6 | V167: 6 | W167: 0 | X167: 0 | Y167: 1 | Z167: 5 | AA167: 0 | AB167: 0 | AC167: 0 | AD167: 0 | AE167: 2 | AF167: 8 | AG167: 9 | AH167: 7 | AI167: 9 | AJ167: 13 | AK167: 12 | AL167: 71 | AM167: 51 | AN167: 26 | AO167: 48 | AP167: 17 | AQ167: 34 | AR167: 7 | AS167: 18
A168: 6 | B168: 5 | C168: 1 | D168: 1 | E168: 10 | F168: 99 | G168: 3 | H168: 111 | I168: 2 | J168: 6 | K168: 106 | L168: 86 | M168: 87 | N168: 81 | O168: 92 | P168: 68 | Q168: 0 | R168: 1 | S168: 78 | T168: 19 | U168: 6 | V168: 7 | W168: 0 | X168: 0 | Y168: 1 | Z168: 5 | AA168: 1 | AB168: 0 | AC168: 0 | AD168: 0 | AE168: 2 | AF168: 3 | AG168: 9 | AH168: 7 | AI168: 3 | AJ168: 6 | AK168: 14 | AL168: 61 | AM168: 47 | AN168: 31 | AO168: 38 | AP168: 24 | AQ168: 47 | AR168: 23 | AS168: 13
A169: 7 | B169: 4 | C169: 0 | D169: 2 | E169: 12 | F169: 96 | G169: 6 | H169: 120 | I169: 3 | J169: 7 | K169: 96 | L169: 101 | M169: 85 | N169: 88 | O169: 107 | P169: 86 | Q169: 0 | R169: 0 | S169: 81 | T169: 12 | U169: 9 | V169: 5 | W169: 0 | X169: 0 | Y169: 1 | Z169: 8 | AA169: 2 | AB169: 1 | AC169: 0 | AD169: 0 | AE169: 0 | AF169: 7 | AG169: 8 | AH169: 6 | AI169: 6 | AJ169: 5 | AK169: 16 | AL169: 72 | AM169: 55 | AN169: 30 | AO169: 40 | AP169: 29 | AQ169: 64 | AR169: 27 | AS169: 11
A170: 8 | B170: 3 | C170: 0 | D170: 0 | E170: 8 | F170: 90 | G170: 4 | H170: 130 | I170: 3 | J170: 6 | K170: 86 | L170: 83 | M170: 83 | N170: 84 | O170: 90 | P170: 60 | Q170: 0 | R170: 2 | S170: 74 | T170: 21 | U170: 10 | V170: 10 | W170: 2 | X170: 0 | Y170: 1 | Z170: 6 | AA170: 0 | AB170: 0 | AC170: 0 | AD170: 0 | AE170: 3 | AF170: 6 | AG170: 13 | AH170: 10 | AI170: 7 | AJ170: 11 | AK170: 14 | AL170: 72 | AM170: 50 | AN170: 31 | AO170: 40 | AP170: 19 | AQ170: 42 | AR170: 24 | AS170: 20
A171: 9 | B171: 0 | C171: 1 | D171: 3 | E171: 6 | F171: 95 | G171: 3 | H171: 123 | I171: 0 | J171: 10 | K171: 113 | L171: 113 | M171: 100 | N171: 95 | O171: 120 | P171: 74 | Q171: 0 | R171: 4 | S171: 88 | T171: 20 | U171: 17 | V171: 10 | W171: 1 | X171: 0 | Y171: 0 | Z171: 4 | AA171: 3 | AB171: 1 | AC171: 0 | AD171: 0 | AE171: 3 | AF171: 7 | AG171: 5 | AH171: 13 | AI171: 9 | AJ171: 4 | AK171: 22 | AL171: 79 | AM171: 68 | AN171: 25 | AO171: 21 | AP171: 26 | AQ171: 28 | AR171: 16 | AS171: 20
A172: 10 | B172: 10 | C172: 2 | D172: 1 | E172: 18 | F172: 106 | G172: 2 | H172: 106 | I172: 4 | J172: 10 | K172: 119 | L172: 114 | M172: 108 | N172: 107 | O172: 95 | P172: 75 | Q172: 4 | R172: 13 | S172: 93 | T172: 23 | U172: 16 | V172: 21 | W172: 2 | X172: 0 | Y172: 3 | Z172: 5 | AA172: 2 | AB172: 1 | AC172: 0 | AD172: 0 | AE172: 6 | AF172: 15 | AG172: 21 | AH172: 25 | AI172: 21 | AJ172: 17 | AK172: 20 | AL172: 85 | AM172: 70 | AN172: 35 | AO172: 35 | AP172: 31 | AQ172: 40 | AR172: 28 | AS172: 20
A173: 11 | B173: 10 | C173: 3 | D173: 3 | E173: 6 | F173: 111 | G173: 1 | H173: 86 | I173: 2 | J173: 8 | K173: 113 | L173: 109 | M173: 93 | N173: 76 | O173: 99 | P173: 78 | Q173: 1 | R173: 19 | S173: 106 | T173: 29 | U173: 16 | V173: 18 | W173: 2 | X173: 0 | Y173: 1 | Z173: 16 | AA173: 5 | AB173: 0 | AC173: 0 | AD173: 0 | AE173: 5 | AF173: 40 | AG173: 42 | AH173: 37 | AI173: 23 | AJ173: 23 | AK173: 21 | AL173: 78 | AM173: 65 | AN173: 48 | AO173: 39 | AP173: 29 | AQ173: 35 | AR173: 28 | AS173: 23
A174: Total general | B174: 57 | C174: 13 | D174: 27 | E174: 120 | F174: 1123 | G174: 32 | H174: 1314 | I174: 37 | J174: 81 | K174: 1166 | L174: 1024 | M174: 1038 | N174: 1034 | O174: 1065 | P174: 1053 | Q174: 10 | R174: 47 | S174: 839 | T174: 175 | U174: 103 | V174: 96 | W174: 8 | X174: 0 | Y174: 13 | Z174: 71 | AA174: 16 | AB174: 5 | AC174: 0 | AD174: 0 | AE174: 23 | AF174: 110 | AG174: 162 | AH174: 145 | AI174: 111 | AJ174: 120 | AK174: 197 | AL174: 890 | AM174: 710 | AN174: 338 | AO174: 466 | AP174: 259 | AQ174: 449 | AR174: 213 | AS174: 208
A177: ANO | B177: 2024
A178: DESC_RED | B178: LA CONVENCION
A179: DESC_MICRO | B179: (Todas)
A180: DESC_ESTAB | B180: (Todas)
A181: DESC_PROV | B181: (Todas)
A182: DESC_DIST | B182: (Todas) | AO182: =95/6 -> 15.83333333
B184: Valores
A185: MES | B185: 1° MULTIMICRONUTRIENTE 6-11m | C185: 2° MULTIMICRONUTRIENTE 6-11m | D185: 3° MULTIMICRONUTRIENTE 6-11m | E185: 4° MULTIMICRONUTRIENTE 6-11m | F185: 5° MULTIMICRONUTRIENTE 6-11m | G185: 6° MULTIMICRONUTRIENTE 6-11m | H185: 1° MULTIMICRONUTRIENTE 1a | I185: 2° MULTIMICRONUTRIENTE 1A | J185: 3° MULTIMICRONUTRIENTE 1A | K185: 4° MULTIMICRONUTRIENTE 1A | L185: 5° MULTIMICRONUTRIENTE 1A | M185: 6° MULTIMICRONUTRIENTE 1A | N185: 1° MULTIMICRONUTRIENTE 2a | O185: 2° MULTIMICRONUTRIENTE 2A | P185: 3° MULTIMICRONUTRIENTE 2A | Q185: 4° MULTIMICRONUTRIENTE 2A | R185: 5° MULTIMICRONUTRIENTE 2A | S185: 6° MULTIMICRONUTRIENTE 2A | T185: 1° MULTIMICRONUTRIENTE 3a | U185: 2° MULTIMICRONUTRIENTE 3A | V185: 3° MULTIMICRONUTRIENTE 3A | W185: 4° MULTIMICRONUTRIENTE 3A | X185: 5° MULTIMICRONUTRIENTE 3A | Y185: 6° MULTIMICRONUTRIENTE 3A | Z185: 7° MULTIMICRONUTRIENTE 1a | AA185: 8° MULTIMICRONUTRIENTE 1A | AB185: 9° MULTIMICRONUTRIENTE 1A | AC185: 10° MULTIMICRONUTRIENTE 1A | AD185: 11° MULTIMICRONUTRIENTE 1A | AE185: 12° MULTIMICRONUTRIENTE 1A | AF185: TERMINO DE GOTAS 6M | AG185: TERMINO DE MULTIMIC 1A | AH185: 7° MULTIMICRONUTRIENTE 2a | AI185: 8° MULTIMICRONUTRIENTE 2A | AJ185: 9° MULTIMICRONUTRIENTE 2A | AK185: 10° MULTIMICRONUTRIENTE 2A | AL185: 11° MULTIMICRONUTRIENTE 2A | AM185: 12° MULTIMICRONUTRIENTE 2A | AN185: TERMINO DE MULTIMIC 2A | AO185: 7° MULTIMICRONUTRIENTE 3a | AP185: 8° MULTIMICRONUTRIENTE 3A | AQ185: 9° MULTIMICRONUTRIENTE 3A | AR185: 10° MULTIMICRONUTRIENTE 3A | AS185: 11° MULTIMICRONUTRIENTE 3A | AT185: 12° MULTIMICRONUTRIENTE 3A | AU185: 1° MULTIMICRONUTRIENTE 4a | AV185: 2° MULTIMICRONUTRIENTE 4A | AW185: 3° MULTIMICRONUTRIENTE 4A | AX185: 4° MULTIMICRONUTRIENTE 4A | AY185: 5° MULTIMICRONUTRIENTE 4A | AZ185: 6° MULTIMICRONUTRIENTE 4A | BA185: 7° MULTIMICRONUTRIENTE 4a | BB185: 8° MULTIMICRONUTRIENTE 4A | BC185: 9° MULTIMICRONUTRIENTE 4A | BD185: 10° MULTIMICRONUTRIENTE 4A | BE185: 11° MULTIMICRONUTRIENTE 4A | BF185: 12° MULTIMICRONUTRIENTE 4A | BG185: TERMINO DE MULTIMIC 3A | BH185: TERMINO DE MULTIMIC 4A
A186: 1 | B186: 0 | C186: 1 | D186: 0 | E186: 0 | F186: 0 | G186: 0 | H186: 0 | I186: 0 | J186: 0 | K186: 0 | L186: 0 | M186: 0 | N186: 1 | O186: 0 | P186: 0 | Q186: 0 | R186: 0 | S186: 0 | T186: 5 | U186: 2 | V186: 2 | W186: 0 | X186: 0 | Y186: 0 | Z186: 0 | AA186: 0 | AB186: 0 | AC186: 0 | AD186: 0 | AE186: 0 | AF186: 150 | AG186: 1 | AH186: 0 | AI186: 0 | AJ186: 0 | AK186: 0 | AL186: 0 | AM186: 0 | AN186: 0 | AO186: 0 | AP186: 0 | AQ186: 0 | AR186: 0 | AS186: 0 | AT186: 0 | AU186: 1 | AV186: 0 | AW186: 0 | AX186: 0 | AY186: 0 | AZ186: 0 | BA186: 0 | BB186: 0 | BC186: 0 | BD186: 0 | BE186: 0 | BF186: 0 | BG186: 4 | BH186: 1
A187: 2 | B187: 0 | C187: 1 | D187: 0 | E187: 0 | F187: 0 | G187: 0 | H187: 0 | I187: 0 | J187: 0 | K187: 0 | L187: 0 | M187: 0 | N187: 1 | O187: 1 | P187: 0 | Q187: 0 | R187: 0 | S187: 0 | T187: 2 | U187: 0 | V187: 0 | W187: 0 | X187: 0 | Y187: 0 | Z187: 0 | AA187: 0 | AB187: 0 | AC187: 0 | AD187: 0 | AE187: 0 | AF187: 120 | AG187: 1 | AH187: 0 | AI187: 0 | AJ187: 0 | AK187: 0 | AL187: 0 | AM187: 0 | AN187: 1 | AO187: 0 | AP187: 0 | AQ187: 0 | AR187: 0 | AS187: 0 | AT187: 0 | AU187: 1 | AV187: 1 | AW187: 0 | AX187: 0 | AY187: 0 | AZ187: 0 | BA187: 0 | BB187: 0 | BC187: 0 | BD187: 0 | BE187: 0 | BF187: 0 | BG187: 0 | BH187: 0
A188: 3 | B188: 0 | C188: 0 | D188: 0 | E188: 0 | F188: 0 | G188: 0 | H188: 0 | I188: 0 | J188: 0 | K188: 0 | L188: 0 | M188: 0 | N188: 1 | O188: 0 | P188: 0 | Q188: 0 | R188: 0 | S188: 0 | T188: 3 | U188: 0 | V188: 0 | W188: 0 | X188: 0 | Y188: 0 | Z188: 0 | AA188: 0 | AB188: 0 | AC188: 0 | AD188: 0 | AE188: 0 | AF188: 135 | AG188: 0 | AH188: 0 | AI188: 0 | AJ188: 0 | AK188: 0 | AL188: 0 | AM188: 0 | AN188: 1 | AO188: 0 | AP188: 0 | AQ188: 0 | AR188: 0 | AS188: 0 | AT188: 0 | AU188: 0 | AV188: 1 | AW188: 0 | AX188: 0 | AY188: 0 | AZ188: 0 | BA188: 0 | BB188: 0 | BC188: 0 | BD188: 0 | BE188: 0 | BF188: 0 | BG188: 0 | BH188: 0
A189: 4 | B189: 0 | C189: 0 | D189: 0 | E189: 0 | F189: 0 | G189: 0 | H189: 0 | I189: 0 | J189: 0 | K189: 0 | L189: 0 | M189: 0 | N189: 0 | O189: 0 | P189: 0 | Q189: 0 | R189: 0 | S189: 0 | T189: 3 | U189: 2 | V189: 0 | W189: 0 | X189: 0 | Y189: 0 | Z189: 0 | AA189: 0 | AB189: 0 | AC189: 0 | AD189: 0 | AE189: 0 | AF189: 136 | AG189: 0 | AH189: 0 | AI189: 0 | AJ189: 0 | AK189: 0 | AL189: 0 | AM189: 0 | AN189: 0 | AO189: 0 | AP189: 0 | AQ189: 0 | AR189: 0 | AS189: 0 | AT189: 0 | AU189: 0 | AV189: 0 | AW189: 0 | AX189: 0 | AY189: 0 | AZ189: 0 | BA189: 0 | BB189: 0 | BC189: 0 | BD189: 0 | BE189: 0 | BF189: 0 | BG189: 0 | BH189: 0
A190: 5 | B190: 0 | C190: 0 | D190: 0 | E190: 0 | F190: 0 | G190: 0 | H190: 0 | I190: 0 | J190: 0 | K190: 0 | L190: 0 | M190: 0 | N190: 0 | O190: 0 | P190: 0 | Q190: 0 | R190: 0 | S190: 0 | T190: 4 | U190: 2 | V190: 0 | W190: 0 | X190: 0 | Y190: 0 | Z190: 0 | AA190: 0 | AB190: 0 | AC190: 0 | AD190: 0 | AE190: 0 | AF190: 135 | AG190: 0 | AH190: 0 | AI190: 0 | AJ190: 0 | AK190: 0 | AL190: 0 | AM190: 0 | AN190: 0 | AO190: 0 | AP190: 0 | AQ190: 0 | AR190: 0 | AS190: 0 | AT190: 0 | AU190: 0 | AV190: 1 | AW190: 0 | AX190: 0 | AY190: 0 | AZ190: 0 | BA190: 0 | BB190: 0 | BC190: 0 | BD190: 0 | BE190: 0 | BF190: 0 | BG190: 1 | BH190: 3
A191: 6 | B191: 0 | C191: 0 | D191: 0 | E191: 0 | F191: 0 | G191: 0 | H191: 0 | I191: 1 | J191: 0 | K191: 0 | L191: 0 | M191: 0 | N191: 0 | O191: 0 | P191: 0 | Q191: 0 | R191: 0 | S191: 0 | T191: 3 | U191: 0 | V191: 0 | W191: 0 | X191: 0 | Y191: 0 | Z191: 0 | AA191: 0 | AB191: 0 | AC191: 0 | AD191: 0 | AE191: 0 | AF191: 114 | AG191: 0 | AH191: 0 | AI191: 0 | AJ191: 0 | AK191: 0 | AL191: 0 | AM191: 0 | AN191: 1 | AO191: 0 | AP191: 0 | AQ191: 0 | AR191: 0 | AS191: 0 | AT191: 0 | AU191: 0 | AV191: 0 | AW191: 0 | AX191: 0 | AY191: 0 | AZ191: 0 | BA191: 0 | BB191: 0 | BC191: 0 | BD191: 0 | BE191: 0 | BF191: 0 | BG191: 0 | BH191: 1
A192: 7 | B192: 0 | C192: 0 | D192: 0 | E192: 0 | F192: 0 | G192: 0 | H192: 0 | I192: 0 | J192: 0 | K192: 0 | L192: 0 | M192: 0 | N192: 0 | O192: 0 | P192: 0 | Q192: 0 | R192: 0 | S192: 0 | T192: 6 | U192: 0 | V192: 0 | W192: 0 | X192: 0 | Y192: 0 | Z192: 0 | AA192: 0 | AB192: 0 | AC192: 0 | AD192: 0 | AE192: 0 | AF192: 115 | AG192: 0 | AH192: 0 | AI192: 0 | AJ192: 0 | AK192: 0 | AL192: 0 | AM192: 0 | AN192: 0 | AO192: 0 | AP192: 0 | AQ192: 0 | AR192: 0 | AS192: 0 | AT192: 0 | AU192: 0 | AV192: 0 | AW192: 0 | AX192: 0 | AY192: 0 | AZ192: 0 | BA192: 0 | BB192: 0 | BC192: 0 | BD192: 0 | BE192: 0 | BF192: 0 | BG192: 4 | BH192: 1
A193: 8 | B193: 0 | C193: 1 | D193: 0 | E193: 0 | F193: 0 | G193: 0 | H193: 0 | I193: 0 | J193: 0 | K193: 0 | L193: 0 | M193: 0 | N193: 0 | O193: 0 | P193: 0 | Q193: 0 | R193: 0 | S193: 0 | T193: 4 | U193: 0 | V193: 0 | W193: 0 | X193: 0 | Y193: 0 | Z193: 0 | AA193: 0 | AB193: 0 | AC193: 0 | AD193: 0 | AE193: 0 | AF193: 108 | AG193: 0 | AH193: 0 | AI193: 0 | AJ193: 0 | AK193: 0 | AL193: 0 | AM193: 0 | AN193: 0 | AO193: 0 | AP193: 0 | AQ193: 0 | AR193: 0 | AS193: 0 | AT193: 0 | AU193: 0 | AV193: 0 | AW193: 0 | AX193: 0 | AY193: 0 | AZ193: 0 | BA193: 0 | BB193: 0 | BC193: 0 | BD193: 0 | BE193: 0 | BF193: 0 | BG193: 0 | BH193: 2
A194: 9 | B194: 0 | C194: 0 | D194: 0 | E194: 0 | F194: 0 | G194: 0 | H194: 0 | I194: 0 | J194: 0 | K194: 0 | L194: 0 | M194: 0 | N194: 2 | O194: 1 | P194: 0 | Q194: 0 | R194: 0 | S194: 0 | T194: 4 | U194: 1 | V194: 0 | W194: 0 | X194: 0 | Y194: 0 | Z194: 0 | AA194: 0 | AB194: 0 | AC194: 0 | AD194: 0 | AE194: 0 | AF194: 109 | AG194: 0 | AH194: 0 | AI194: 0 | AJ194: 0 | AK194: 0 | AL194: 0 | AM194: 0 | AN194: 0 | AO194: 0 | AP194: 0 | AQ194: 0 | AR194: 0 | AS194: 0 | AT194: 0 | AU194: 0 | AV194: 1 | AW194: 0 | AX194: 0 | AY194: 0 | AZ194: 0 | BA194: 0 | BB194: 0 | BC194: 0 | BD194: 0 | BE194: 0 | BF194: 0 | BG194: 0 | BH194: 1
A195: 10 | B195: 0 | C195: 0 | D195: 0 | E195: 0 | F195: 0 | G195: 0 | H195: 1 | I195: 0 | J195: 0 | K195: 0 | L195: 0 | M195: 0 | N195: 0 | O195: 0 | P195: 1 | Q195: 0 | R195: 0 | S195: 0 | T195: 11 | U195: 0 | V195: 0 | W195: 0 | X195: 0 | Y195: 0 | Z195: 0 | AA195: 0 | AB195: 0 | AC195: 0 | AD195: 0 | AE195: 0 | AF195: 120 | AG195: 0 | AH195: 0 | AI195: 0 | AJ195: 0 | AK195: 0 | AL195: 0 | AM195: 0 | AN195: 0 | AO195: 0 | AP195: 0 | AQ195: 0 | AR195: 0 | AS195: 0 | AT195: 0 | AU195: 0 | AV195: 0 | AW195: 0 | AX195: 0 | AY195: 0 | AZ195: 0 | BA195: 0 | BB195: 0 | BC195: 0 | BD195: 0 | BE195: 0 | BF195: 0 | BG195: 2 | BH195: 1
A196: 11 | B196: 0 | C196: 0 | D196: 0 | E196: 0 | F196: 0 | G196: 0 | H196: 1 | I196: 0 | J196: 0 | K196: 0 | L196: 0 | M196: 0 | N196: 0 | O196: 0 | P196: 1 | Q196: 1 | R196: 0 | S196: 0 | T196: 4 | U196: 0 | V196: 0 | W196: 0 | X196: 0 | Y196: 0 | Z196: 0 | AA196: 0 | AB196: 0 | AC196: 0 | AD196: 0 | AE196: 0 | AF196: 123 | AG196: 0 | AH196: 0 | AI196: 0 | AJ196: 0 | AK196: 0 | AL196: 0 | AM196: 0 | AN196: 0 | AO196: 0 | AP196: 0 | AQ196: 0 | AR196: 0 | AS196: 0 | AT196: 0 | AU196: 0 | AV196: 0 | AW196: 0 | AX196: 0 | AY196: 0 | AZ196: 0 | BA196: 0 | BB196: 0 | BC196: 0 | BD196: 0 | BE196: 0 | BF196: 0 | BG196: 1 | BH196: 0
A197: Total general | B197: 0 | C197: 3 | D197: 0 | E197: 0 | F197: 0 | G197: 0 | H197: 2 | I197: 1 | J197: 0 | K197: 0 | L197: 0 | M197: 0 | N197: 5 | O197: 2 | P197: 2 | Q197: 1 | R197: 0 | S197: 0 | T197: 49 | U197: 7 | V197: 2 | W197: 0 | X197: 0 | Y197: 0 | Z197: 0 | AA197: 0 | AB197: 0 | AC197: 0 | AD197: 0 | AE197: 0 | AF197: 1365 | AG197: 2 | AH197: 0 | AI197: 0 | AJ197: 0 | AK197: 0 | AL197: 0 | AM197: 0 | AN197: 3 | AO197: 0 | AP197: 0 | AQ197: 0 | AR197: 0 | AS197: 0 | AT197: 0 | AU197: 2 | AV197: 4 | AW197: 0 | AX197: 0 | AY197: 0 | AZ197: 0 | BA197: 0 | BB197: 0 | BC197: 0 | BD197: 0 | BE197: 0 | BF197: 0 | BG197: 12 | BH197: 10
A201: ANO | B201: 2024
A202: DESC_RED | B202: LA CONVENCION
A203: DESC_MICRO | B203: (Todas)
A204: DESC_ESTAB | B204: (Todas)
A205: DESC_PROV | B205: (Todas)
A206: DESC_DIST | B206: (Todas)
B208: Valores
A209: MES | B209: ANEMIA LEV 6-11m REC | C209: ANEMIA LEV 1A REC | D209: ANEMIA LEV 2A REC | E209: ANEMIA LEV 3A REC | F209: ANEMIA LEV 4A REC | G209: ANEMIA LEV 5-9A REC | H209: ANEMIA MOD 6-11m REC | I209: ANEMIA MOD 1A REC | J209: ANEMIA MOD 2A REC | K209: ANEMIA MOD 3A REC | L209: ANEMIA MOD 4A REC | M209: ANEMIA MOD 5-9A REC | N209: ANEMIA SEV 6-11m REC | O209: ANEMIA SEV 1A REC | P209: ANEMIA SEV 2A REC | Q209: ANEMIA SEV 3A REC | R209: ANEMIA SEV 4A REC | S209: ANEMIA SEV 5-9A REC
A210: 1 | B210: 0 | C210: 9 | D210: 6 | E210: 1 | F210: 2 | G210: 0 | H210: 0 | I210: 6 | J210: 1 | K210: 0 | L210: 1 | M210: 0 | N210: 0 | O210: 0 | P210: 0 | Q210: 0 | R210: 0 | S210: 0
A211: 2 | B211: 0 | C211: 15 | D211: 4 | E211: 0 | F211: 4 | G211: 0 | H211: 0 | I211: 4 | J211: 2 | K211: 1 | L211: 0 | M211: 0 | N211: 0 | O211: 0 | P211: 0 | Q211: 0 | R211: 0 | S211: 0
A212: 3 | B212: 0 | C212: 25 | D212: 12 | E212: 7 | F212: 1 | G212: 0 | H212: 0 | I212: 5 | J212: 1 | K212: 1 | L212: 0 | M212: 0 | N212: 0 | O212: 0 | P212: 0 | Q212: 0 | R212: 0 | S212: 0
A213: 4 | B213: 0 | C213: 27 | D213: 12 | E213: 7 | F213: 6 | G213: 3 | H213: 0 | I213: 12 | J213: 4 | K213: 2 | L213: 3 | M213: 2 | N213: 0 | O213: 0 | P213: 0 | Q213: 0 | R213: 0 | S213: 0
A214: 5 | B214: 1 | C214: 22 | D214: 14 | E214: 7 | F214: 2 | G214: 1 | H214: 1 | I214: 7 | J214: 7 | K214: 2 | L214: 0 | M214: 0 | N214: 0 | O214: 0 | P214: 0 | Q214: 0 | R214: 0 | S214: 0
A215: 6 | B215: 0 | C215: 29 | D215: 15 | E215: 3 | F215: 7 | G215: 1 | H215: 0 | I215: 13 | J215: 5 | K215: 0 | L215: 1 | M215: 1 | N215: 0 | O215: 0 | P215: 0 | Q215: 0 | R215: 0 | S215: 0
A216: 7 | B216: 2 | C216: 37 | D216: 10 | E216: 5 | F216: 2 | G216: 1 | H216: 2 | I216: 14 | J216: 5 | K216: 3 | L216: 3 | M216: 1 | N216: 0 | O216: 0 | P216: 0 | Q216: 0 | R216: 0 | S216: 0
A217: 8 | B217: 0 | C217: 34 | D217: 10 | E217: 4 | F217: 3 | G217: 1 | H217: 0 | I217: 9 | J217: 4 | K217: 1 | L217: 0 | M217: 1 | N217: 0 | O217: 0 | P217: 0 | Q217: 0 | R217: 0 | S217: 0
A218: 9 | B218: 0 | C218: 28 | D218: 16 | E218: 6 | F218: 3 | G218: 2 | H218: 0 | I218: 11 | J218: 2 | K218: 0 | L218: 1 | M218: 1 | N218: 0 | O218: 0 | P218: 0 | Q218: 0 | R218: 0 | S218: 0
A219: 10 | B219: 1 | C219: 14 | D219: 8 | E219: 5 | F219: 6 | G219: 0 | H219: 1 | I219: 6 | J219: 3 | K219: 1 | L219: 2 | M219: 0 | N219: 0 | O219: 0 | P219: 0 | Q219: 0 | R219: 0 | S219: 0
A220: 11 | B220: 0 | C220: 26 | D220: 7 | E220: 7 | F220: 2 | G220: 0 | H220: 0 | I220: 13 | J220: 3 | K220: 1 | L220: 3 | M220: 0 | N220: 0 | O220: 0 | P220: 0 | Q220: 0 | R220: 0 | S220: 0
A221: Total general | B221: 4 | C221: 266 | D221: 114 | E221: 52 | F221: 38 | G221: 9 | H221: 4 | I221: 100 | J221: 37 | K221: 12 | L221: 14 | M221: 6 | N221: 0 | O221: 0 | P221: 0 | Q221: 0 | R221: 0 | S221: 0
A232: ANO | B232: 2024
A233: DESC_RED | B233: LA CONVENCION
A234: DESC_MICRO | B234: (Todas)
A235: DESC_ESTAB | B235: (Todas)
A236: DESC_PROV | B236: (Todas)
A237: DESC_DIST | B237: (Todas)
A239: Etiquetas de fila | B239: 1° ADM_SF 6-11m | C239: 2° ADM_SF 6-11m | D239: 3° ADM_SF6-11m | E239: 4° ADM_SF6-11m | F239: 5° ADM_SF 6-11m | G239: 6° ADM_SF 6-11m | H239: 1° ADM_SF1a | I239: 2° ADM_SF1a | J239: 3° ADM_SF1a | K239: 4° ADM_SF1a | L239: 5° ADM_SF1a | M239: 6° ADM_SF1a | N239: 1° ADM_SF2a | O239: 2° ADM_SF2a | P239: 3° ADM_SF2a | Q239: 4° ADM_SF2a | R239: 5° ADM_SF2a | S239: 6° ADM_SF2a | T239: 1° ADM_SF3a | U239: 2° ADM_SF3a | V239: 3° ADM_SF3a | W239: 4° ADM_SF3a | X239: 5° ADM_SF3a | Y239: 6° ADM_SF3a | Z239: 1° ADM_SF4a | AA239: 2° ADM_SF4a | AB239: 3° ADM_SF4a | AC239: 4° ADM_SF4a | AD239: 5° ADM_SF4a | AE239: 6° ADM_SF4a | AF239: 7° ADM_SF1a | AG239: 8° ADM_SF1a | AH239: 9° ADM_SF1a | AI239: 10° ADM_SF1a | AJ239: 11° ADM_SF1a | AK239: 12° ADM_SF1a | AL239: 7° ADM_SF2a | AM239: 8° ADM_SF2a | AN239: 9° ADM_SF2a | AO239: 10° ADM_SF2a | AP239: 11° ADM_SF2a | AQ239: 12° ADM_SF2a | AR239: TA SF-POLIM <1a | AS239: TA SF-POLIM 1a | AT239: TA SF-POLIM 2a | AU239: TA SF-POLIM 3a | AV239: TA SF-POLIM 4a
A240: 1 | B240: 118 | C240: 98 | D240: 92 | E240: 7 | F240: 7 | G240: 2 | H240: 13 | I240: 9 | J240: 2 | K240: 3 | L240: 9 | M240: 5 | N240: 99 | O240: 61 | P240: 57 | Q240: 32 | R240: 34 | S240: 26 | T240: 96 | U240: 45 | V240: 11 | W240: 1 | X240: 1 | Y240: 3 | Z240: 36 | AA240: 10 | AB240: 1 | AC240: 1 | AD240: 2 | AE240: 1 | AF240: 0 | AG240: 0 | AH240: 0 | AI240: 0 | AJ240: 0 | AK240: 0 | AL240: 0 | AM240: 0 | AN240: 0 | AO240: 0 | AP240: 0 | AQ240: 0 | AR240: 116 | AS240: 105 | AT240: 44 | AU240: 38 | AV240: 14
A241: 2 | B241: 94 | C241: 108 | D241: 84 | E241: 5 | F241: 3 | G241: 4 | H241: 6 | I241: 9 | J241: 2 | K241: 0 | L241: 1 | M241: 2 | N241: 80 | O241: 67 | P241: 48 | Q241: 45 | R241: 18 | S241: 30 | T241: 99 | U241: 44 | V241: 15 | W241: 3 | X241: 1 | Y241: 1 | Z241: 34 | AA241: 13 | AB241: 8 | AC241: 1 | AD241: 0 | AE241: 1 | AF241: 0 | AG241: 0 | AH241: 0 | AI241: 0 | AJ241: 0 | AK241: 0 | AL241: 0 | AM241: 0 | AN241: 0 | AO241: 0 | AP241: 0 | AQ241: 0 | AR241: 94 | AS241: 65 | AT241: 39 | AU241: 38 | AV241: 13
A242: 3 | B242: 111 | C242: 120 | D242: 96 | E242: 5 | F242: 4 | G242: 4 | H242: 8 | I242: 11 | J242: 7 | K242: 0 | L242: 1 | M242: 4 | N242: 109 | O242: 68 | P242: 53 | Q242: 41 | R242: 30 | S242: 20 | T242: 68 | U242: 60 | V242: 17 | W242: 5 | X242: 0 | Y242: 1 | Z242: 38 | AA242: 14 | AB242: 10 | AC242: 3 | AD242: 1 | AE242: 1 | AF242: 0 | AG242: 0 | AH242: 0 | AI242: 0 | AJ242: 0 | AK242: 0 | AL242: 0 | AM242: 0 | AN242: 0 | AO242: 0 | AP242: 0 | AQ242: 0 | AR242: 107 | AS242: 82 | AT242: 33 | AU242: 38 | AV242: 20
A243: 4 | B243: 124 | C243: 99 | D243: 88 | E243: 4 | F243: 5 | G243: 2 | H243: 9 | I243: 7 | J243: 9 | K243: 4 | L243: 3 | M243: 0 | N243: 103 | O243: 70 | P243: 62 | Q243: 57 | R243: 32 | S243: 24 | T243: 69 | U243: 60 | V243: 23 | W243: 7 | X243: 6 | Y243: 0 | Z243: 46 | AA243: 26 | AB243: 7 | AC243: 4 | AD243: 0 | AE243: 2 | AF243: 0 | AG243: 0 | AH243: 0 | AI243: 0 | AJ243: 0 | AK243: 0 | AL243: 0 | AM243: 0 | AN243: 0 | AO243: 0 | AP243: 0 | AQ243: 0 | AR243: 113 | AS243: 82 | AT243: 48 | AU243: 48 | AV243: 9
A244: 5 | B244: 119 | C244: 110 | D244: 102 | E244: 3 | F244: 2 | G244: 4 | H244: 11 | I244: 8 | J244: 5 | K244: 4 | L244: 7 | M244: 1 | N244: 91 | O244: 66 | P244: 55 | Q244: 60 | R244: 41 | S244: 26 | T244: 86 | U244: 50 | V244: 12 | W244: 6 | X244: 1 | Y244: 1 | Z244: 36 | AA244: 19 | AB244: 5 | AC244: 4 | AD244: 2 | AE244: 1 | AF244: 0 | AG244: 0 | AH244: 0 | AI244: 0 | AJ244: 0 | AK244: 0 | AL244: 0 | AM244: 0 | AN244: 0 | AO244: 0 | AP244: 0 | AQ244: 0 | AR244: 113 | AS244: 94 | AT244: 39 | AU244: 31 | AV244: 15
A245: 6 | B245: 111 | C245: 115 | D245: 88 | E245: 3 | F245: 1 | G245: 4 | H245: 6 | I245: 8 | J245: 0 | K245: 1 | L245: 0 | M245: 4 | N245: 78 | O245: 74 | P245: 51 | Q245: 57 | R245: 27 | S245: 37 | T245: 58 | U245: 58 | V245: 17 | W245: 7 | X245: 5 | Y245: 2 | Z245: 39 | AA245: 18 | AB245: 6 | AC245: 3 | AD245: 3 | AE245: 1 | AF245: 0 | AG245: 0 | AH245: 0 | AI245: 0 | AJ245: 0 | AK245: 0 | AL245: 0 | AM245: 0 | AN245: 0 | AO245: 0 | AP245: 0 | AQ245: 0 | AR245: 105 | AS245: 93 | AT245: 30 | AU245: 32 | AV245: 18
A246: 7 | B246: 107 | C246: 104 | D246: 110 | E246: 2 | F246: 3 | G246: 2 | H246: 11 | I246: 5 | J246: 4 | K246: 5 | L246: 2 | M246: 0 | N246: 82 | O246: 64 | P246: 62 | Q246: 61 | R246: 40 | S246: 20 | T246: 73 | U246: 56 | V246: 25 | W246: 10 | X246: 6 | Y246: 4 | Z246: 48 | AA246: 23 | AB246: 7 | AC246: 0 | AD246: 4 | AE246: 2 | AF246: 0 | AG246: 0 | AH246: 0 | AI246: 0 | AJ246: 0 | AK246: 0 | AL246: 0 | AM246: 0 | AN246: 0 | AO246: 0 | AP246: 0 | AQ246: 0 | AR246: 97 | AS246: 92 | AT246: 47 | AU246: 31 | AV246: 14
A247: 8 | B247: 99 | C247: 99 | D247: 99 | E247: 6 | F247: 6 | G247: 1 | H247: 7 | I247: 8 | J247: 6 | K247: 2 | L247: 3 | M247: 2 | N247: 100 | O247: 72 | P247: 58 | Q247: 46 | R247: 54 | S247: 30 | T247: 78 | U247: 53 | V247: 17 | W247: 6 | X247: 6 | Y247: 6 | Z247: 45 | AA247: 16 | AB247: 5 | AC247: 2 | AD247: 0 | AE247: 3 | AF247: 0 | AG247: 0 | AH247: 0 | AI247: 0 | AJ247: 0 | AK247: 0 | AL247: 0 | AM247: 0 | AN247: 0 | AO247: 0 | AP247: 0 | AQ247: 0 | AR247: 94 | AS247: 84 | AT247: 52 | AU247: 43 | AV247: 16
A248: 9 | B248: 105 | C248: 96 | D248: 107 | E248: 2 | F248: 2 | G248: 1 | H248: 23 | I248: 6 | J248: 7 | K248: 4 | L248: 2 | M248: 3 | N248: 91 | O248: 76 | P248: 49 | Q248: 49 | R248: 41 | S248: 33 | T248: 82 | U248: 46 | V248: 19 | W248: 7 | X248: 8 | Y248: 5 | Z248: 53 | AA248: 14 | AB248: 8 | AC248: 1 | AD248: 3 | AE248: 2 | AF248: 0 | AG248: 0 | AH248: 0 | AI248: 0 | AJ248: 0 | AK248: 0 | AL248: 0 | AM248: 1 | AN248: 0 | AO248: 0 | AP248: 0 | AQ248: 0 | AR248: 104 | AS248: 96 | AT248: 43 | AU248: 46 | AV248: 24
A249: 10 | B249: 109 | C249: 98 | D249: 100 | E249: 9 | F249: 3 | G249: 4 | H249: 33 | I249: 8 | J249: 8 | K249: 4 | L249: 4 | M249: 1 | N249: 93 | O249: 63 | P249: 65 | Q249: 52 | R249: 40 | S249: 36 | T249: 100 | U249: 61 | V249: 12 | W249: 7 | X249: 3 | Y249: 4 | Z249: 42 | AA249: 27 | AB249: 6 | AC249: 1 | AD249: 0 | AE249: 2 | AF249: 0 | AG249: 0 | AH249: 0 | AI249: 0 | AJ249: 0 | AK249: 0 | AL249: 0 | AM249: 0 | AN249: 0 | AO249: 0 | AP249: 0 | AQ249: 0 | AR249: 116 | AS249: 101 | AT249: 57 | AU249: 47 | AV249: 11
A250: 11 | B250: 120 | C250: 92 | D250: 85 | E250: 9 | F250: 5 | G250: 6 | H250: 75 | I250: 22 | J250: 11 | K250: 9 | L250: 8 | M250: 4 | N250: 95 | O250: 59 | P250: 39 | Q250: 50 | R250: 40 | S250: 28 | T250: 78 | U250: 75 | V250: 25 | W250: 4 | X250: 2 | Y250: 1 | Z250: 68 | AA250: 22 | AB250: 8 | AC250: 2 | AD250: 0 | AE250: 2 | AF250: 0 | AG250: 0 | AH250: 0 | AI250: 0 | AJ250: 0 | AK250: 0 | AL250: 0 | AM250: 0 | AN250: 0 | AO250: 0 | AP250: 0 | AQ250: 0 | AR250: 117 | AS250: 111 | AT250: 51 | AU250: 40 | AV250: 12
A251: Total general | B251: 1217 | C251: 1139 | D251: 1051 | E251: 55 | F251: 41 | G251: 34 | H251: 202 | I251: 101 | J251: 61 | K251: 36 | L251: 40 | M251: 26 | N251: 1021 | O251: 740 | P251: 599 | Q251: 550 | R251: 397 | S251: 310 | T251: 887 | U251: 608 | V251: 193 | W251: 63 | X251: 39 | Y251: 28 | Z251: 485 | AA251: 202 | AB251: 71 | AC251: 22 | AD251: 15 | AE251: 18 | AF251: 0 | AG251: 0 | AH251: 0 | AI251: 0 | AJ251: 0 | AK251: 0 | AL251: 0 | AM251: 1 | AN251: 0 | AO251: 0 | AP251: 0 | AQ251: 0 | AR251: 1176 | AS251: 1005 | AT251: 483 | AU251: 432 | AV251: 166
A255: ANO | B255: 2024
A256: DESC_RED | B256: LA CONVENCION
A257: DESC_MICRO | B257: (Todas)
A258: DESC_ESTAB | B258: (Todas)
A259: DESC_PROV | B259: (Todas)
A260: DESC_DIST | B260: (Todas)
B262: Valores
A263: MES | B263: ADM SF1 <6m | C263: ADM SF2 <6m | D263: ADM SF3 <6m | E263: ADM SF4 <6m | F263: ADM SF5 <6m | G263: ADM SF1 6-11m | H263: ADM SF2 6-11m | I263: ADM SF3 6-11m | J263: ADM SF4 6-11m | K263: ADM SF5 6-11m | L263: ADM SF6 6-11m | M263: ADM SF1 1A | N263: ADM SF2 1A | O263: ADM SF3 1A | P263: ADM SF4 1A | Q263: ADM SF5 1A | R263: ADM SF6 1A | S263: ADM SF1 2A | T263: ADM SF2 2A | U263: ADM SF3 2A | V263: ADM SF4 2A | W263: ADM SF5 2A | X263: ADM SF6 2A | Y263: ADM SF1 3A | Z263: ADM SF2 3A | AA263: ADM SF3 3A | AB263: ADM SF4 3A | AC263: ADM SF5 3A | AD263: ADM SF6 3A | AE263: ADM SF1 4A | AF263: ADM SF2 4A | AG263: ADM SF3 4A | AH263: ADM SF4 4A | AI263: ADM SF5 4A | AJ263: ADM SF6 4A | AK263: TA SUPLEM <=6a | AL263: TA SUPLEM <1a | AM263: TA SUPLEM 1a | AN263: TA SUPLEM 2a | AO263: TA SUPLEM 3a | AP263: TA SUPLEM 4a | AQ263: Suma de CONTROL
A264: 1 | B264: 2 | C264: 0 | D264: 0 | E264: 0 | F264: 0 | G264: 47 | H264: 35 | I264: 34 | J264: 27 | K264: 21 | L264: 18 | M264: 52 | N264: 52 | O264: 50 | P264: 34 | Q264: 38 | R264: 27 | S264: 14 | T264: 20 | U264: 24 | V264: 18 | W264: 17 | X264: 14 | Y264: 11 | Z264: 12 | AA264: 16 | AB264: 12 | AC264: 9 | AD264: 6 | AE264: 12 | AF264: 10 | AG264: 7 | AH264: 11 | AI264: 7 | AJ264: 12 | AK264: 0 | AL264: 2 | AM264: 46 | AN264: 5 | AO264: 4 | AP264: 3 | AQ264: 493
A265: 2 | B265: 1 | C265: 1 | D265: 3 | E265: 0 | F265: 0 | G265: 35 | H265: 44 | I265: 33 | J265: 23 | K265: 29 | L265: 19 | M265: 62 | N265: 62 | O265: 45 | P265: 44 | Q265: 33 | R265: 34 | S265: 15 | T265: 14 | U265: 17 | V265: 25 | W265: 14 | X265: 23 | Y265: 15 | Z265: 7 | AA265: 6 | AB265: 13 | AC265: 11 | AD265: 15 | AE265: 11 | AF265: 12 | AG265: 10 | AH265: 11 | AI265: 12 | AJ265: 2 | AK265: 0 | AL265: 0 | AM265: 39 | AN265: 3 | AO265: 3 | AP265: 3 | AQ265: 530
A266: 3 | B266: 1 | C266: 1 | D266: 1 | E266: 0 | F266: 0 | G266: 35 | H266: 39 | I266: 46 | J266: 33 | K266: 22 | L266: 20 | M266: 48 | N266: 54 | O266: 52 | P266: 45 | Q266: 38 | R266: 25 | S266: 27 | T266: 17 | U266: 19 | V266: 19 | W266: 17 | X266: 25 | Y266: 21 | Z266: 13 | AA266: 8 | AB266: 11 | AC266: 11 | AD266: 6 | AE266: 11 | AF266: 8 | AG266: 13 | AH266: 9 | AI266: 7 | AJ266: 8 | AK266: 0 | AL266: 0 | AM266: 37 | AN266: 6 | AO266: 6 | AP266: 3 | AQ266: 558
A267: 4 | B267: 0 | C267: 1 | D267: 0 | E267: 1 | F267: 0 | G267: 28 | H267: 30 | I267: 34 | J267: 38 | K267: 34 | L267: 19 | M267: 51 | N267: 57 | O267: 47 | P267: 56 | Q267: 34 | R267: 25 | S267: 28 | T267: 19 | U267: 14 | V267: 18 | W267: 20 | X267: 16 | Y267: 23 | Z267: 18 | AA267: 8 | AB267: 7 | AC267: 8 | AD267: 9 | AE267: 15 | AF267: 9 | AG267: 10 | AH267: 7 | AI267: 7 | AJ267: 5 | AK267: 0 | AL267: 0 | AM267: 23 | AN267: 8 | AO267: 2 | AP267: 2 | AQ267: 516
A268: 5 | B268: 6 | C268: 0 | D268: 2 | E268: 0 | F268: 0 | G268: 37 | H268: 27 | I268: 31 | J268: 29 | K268: 35 | L268: 23 | M268: 41 | N268: 37 | O268: 49 | P268: 44 | Q268: 46 | R268: 31 | S268: 15 | T268: 26 | U268: 13 | V268: 19 | W268: 10 | X268: 21 | Y268: 15 | Z268: 17 | AA268: 14 | AB268: 9 | AC268: 8 | AD268: 5 | AE268: 15 | AF268: 9 | AG268: 4 | AH268: 8 | AI268: 9 | AJ268: 12 | AK268: 0 | AL268: 0 | AM268: 30 | AN268: 10 | AO268: 3 | AP268: 5 | AQ268: 538
A269: 6 | B269: 1 | C269: 0 | D269: 1 | E269: 0 | F269: 0 | G269: 21 | H269: 34 | I269: 25 | J269: 26 | K269: 32 | L269: 30 | M269: 35 | N269: 36 | O269: 37 | P269: 38 | Q269: 36 | R269: 46 | S269: 16 | T269: 16 | U269: 17 | V269: 14 | W269: 19 | X269: 18 | Y269: 11 | Z269: 12 | AA269: 24 | AB269: 12 | AC269: 4 | AD269: 7 | AE269: 10 | AF269: 11 | AG269: 6 | AH269: 9 | AI269: 3 | AJ269: 8 | AK269: 1 | AL269: 0 | AM269: 25 | AN269: 1 | AO269: 1 | AP269: 0 | AQ269: 442
A270: 7 | B270: 0 | C270: 2 | D270: 1 | E270: 0 | F270: 0 | G270: 29 | H270: 24 | I270: 36 | J270: 26 | K270: 25 | L270: 23 | M270: 51 | N270: 33 | O270: 32 | P270: 39 | Q270: 35 | R270: 29 | S270: 28 | T270: 17 | U270: 14 | V270: 20 | W270: 23 | X270: 15 | Y270: 19 | Z270: 8 | AA270: 12 | AB270: 18 | AC270: 12 | AD270: 6 | AE270: 3 | AF270: 8 | AG270: 9 | AH270: 3 | AI270: 6 | AJ270: 4 | AK270: 0 | AL270: 0 | AM270: 30 | AN270: 9 | AO270: 3 | AP270: 0 | AQ270: 450
A271: 8 | B271: 0 | C271: 0 | D271: 0 | E271: 1 | F271: 0 | G271: 28 | H271: 23 | I271: 15 | J271: 28 | K271: 24 | L271: 16 | M271: 49 | N271: 40 | O271: 32 | P271: 34 | Q271: 32 | R271: 33 | S271: 15 | T271: 18 | U271: 21 | V271: 13 | W271: 13 | X271: 22 | Y271: 12 | Z271: 12 | AA271: 12 | AB271: 11 | AC271: 14 | AD271: 16 | AE271: 12 | AF271: 8 | AG271: 8 | AH271: 10 | AI271: 5 | AJ271: 6 | AK271: 0 | AL271: 0 | AM271: 30 | AN271: 3 | AO271: 4 | AP271: 0 | AQ271: 378
A272: 9 | B272: 0 | C272: 0 | D272: 0 | E272: 0 | F272: 0 | G272: 23 | H272: 25 | I272: 23 | J272: 18 | K272: 22 | L272: 20 | M272: 41 | N272: 41 | O272: 35 | P272: 22 | Q272: 31 | R272: 23 | S272: 17 | T272: 14 | U272: 20 | V272: 19 | W272: 11 | X272: 22 | Y272: 9 | Z272: 11 | AA272: 8 | AB272: 13 | AC272: 14 | AD272: 10 | AE272: 13 | AF272: 5 | AG272: 8 | AH272: 10 | AI272: 10 | AJ272: 4 | AK272: 0 | AL272: 0 | AM272: 27 | AN272: 13 | AO272: 2 | AP272: 0 | AQ272: 381
A273: 10 | B273: 0 | C273: 0 | D273: 0 | E273: 0 | F273: 0 | G273: 24 | H273: 19 | I273: 20 | J273: 21 | K273: 17 | L273: 19 | M273: 41 | N273: 43 | O273: 34 | P273: 28 | Q273: 27 | R273: 23 | S273: 16 | T273: 20 | U273: 9 | V273: 17 | W273: 18 | X273: 7 | Y273: 15 | Z273: 7 | AA273: 9 | AB273: 10 | AC273: 6 | AD273: 7 | AE273: 7 | AF273: 9 | AG273: 4 | AH273: 7 | AI273: 5 | AJ273: 4 | AK273: 0 | AL273: 0 | AM273: 23 | AN273: 8 | AO273: 2 | AP273: 1 | AQ273: 329
A274: 11 | B274: 0 | C274: 0 | D274: 0 | E274: 0 | F274: 0 | G274: 23 | H274: 18 | I274: 13 | J274: 18 | K274: 12 | L274: 12 | M274: 30 | N274: 23 | O274: 25 | P274: 25 | Q274: 25 | R274: 26 | S274: 16 | T274: 14 | U274: 17 | V274: 5 | W274: 15 | X274: 11 | Y274: 9 | Z274: 12 | AA274: 3 | AB274: 5 | AC274: 13 | AD274: 8 | AE274: 12 | AF274: 3 | AG274: 8 | AH274: 3 | AI274: 6 | AJ274: 5 | AK274: 0 | AL274: 0 | AM274: 22 | AN274: 2 | AO274: 4 | AP274: 1 | AQ274: 287
A275: Total general | B275: 11 | C275: 5 | D275: 8 | E275: 2 | F275: 0 | G275: 330 | H275: 318 | I275: 310 | J275: 287 | K275: 273 | L275: 219 | M275: 501 | N275: 478 | O275: 438 | P275: 409 | Q275: 375 | R275: 322 | S275: 207 | T275: 195 | U275: 185 | V275: 187 | W275: 177 | X275: 194 | Y275: 160 | Z275: 129 | AA275: 120 | AB275: 121 | AC275: 110 | AD275: 95 | AE275: 121 | AF275: 92 | AG275: 87 | AH275: 88 | AI275: 77 | AJ275: 70 | AK275: 1 | AL275: 2 | AM275: 332 | AN275: 68 | AO275: 34 | AP275: 18 | AQ275: 4902
A287: ANO | B287: 2024
A288: DESC_RED | B288: LA CONVENCION
A289: DESC_MICRO | B289: (Todas)
A290: DESC_ESTAB | B290: (Todas)
A291: DESC_PROV | B291: (Todas)
A292: DESC_DIST | B292: (Todas)
B294: Valores
A295: MES | B295: ADM VIT "A" 6m | C295: 1°_VIT_A 1a | D295: 2° _VIT_A 1a | E295: 1°_VIT_A 2a | F295: 2°_VIT_A 2a | G295: 1°_VIT_A 3a | H295: 2° _VIT_A 3a | I295: 1°_VIT_A 4a | J295: 2° _VIT_A 4a
A296: 1 | B296: 114 | C296: 152 | D296: 79 | E296: 128 | F296: 73 | G296: 122 | H296: 64 | I296: 131 | J296: 42
A297: 2 | B297: 98 | C297: 110 | D297: 86 | E297: 101 | F297: 87 | G297: 111 | H297: 67 | I297: 94 | J297: 50
A298: 3 | B298: 105 | C298: 117 | D298: 81 | E298: 140 | F298: 69 | G298: 105 | H298: 78 | I298: 97 | J298: 65
A299: 4 | B299: 83 | C299: 108 | D299: 89 | E299: 122 | F299: 87 | G299: 108 | H299: 81 | I299: 113 | J299: 58
A300: 5 | B300: 70 | C300: 115 | D300: 75 | E300: 86 | F300: 65 | G300: 117 | H300: 53 | I300: 93 | J300: 53
... 7 more rows

Sheet SUPLEM PREV.
A1: DIRECCION REGIONAL DE SALUD CUSCO
A2: DIRECCION DE ESTADISTICA E INFORMATICA Y TELECOMUNICACION
A3: Estrategia Sanitaria Alimentación y Nutricion Saludable
A4: Informe Mensual de Monitoreo de Micronutrientes
A7: RED DE SALUD | G7: MICRO RED | N7: PROVINCIA
A8: =MID(INICIO!E31,1,50) -> LA CONVENCION | G8: =MID(INICIO!E32,1,50) -> (ALL) | N8: =MID(INICIO!E34,1,50) -> (ALL) | T8: AÑO | U8: =MID(INICIO!C28,1,50) -> 2024
U9: .
A10: ESTABLECIMIENTO | N10: DISTRITO | T10: INI | V10: FIN
A11: =MID(INICIO!E33,1,50) -> (ALL) | N11: =MID(INICIO!E35,1,50) -> (ALL) | S11: MES | T11: =MIN(INICIO!meses) -> 1 | U11: A | V11: =VALUE(MAX(INICIO!meses)) -> 11
A13: SUPLEMENTACION PREVENTIVA CON HIERRO PARA NIÑOS CON BAJO PESO AL NACER
A14: Actividades Operativas | B14: Tiempo de Suplementación (6 meses) | C14: Meta Anual | D14: Mes de Suplementaciòn de hierro
D15: 1 | E15: 2 | F15: 3 | G15: 4 | H15: 5 | I15: TA
A16: Niños de 1 mes a 5 meses con bajo peso al nacer o prematuros | B16: 1 meses | D16: =SUM(GETPIVOTDATA("1° ADM_SF RN BPN 1M",INICIO!$A$103)) -> 65
B17: 2 meses | D17: =SUM(GETPIVOTDATA("1° ADM_SF RN BPN 2M",INICIO!$A$103)) -> 4 | E17: =SUM(GETPIVOTDATA("2° ADM_SF RN BPN 2M",INICIO!$A$103)) -> 5
B18: 3 meses | D18: =SUM(GETPIVOTDATA("1° ADM_SF RN BPN 3M",INICIO!$A$103)) -> 2 | E18: =SUM(GETPIVOTDATA("2° ADM_SF RN BPN 3M",INICIO!$A$103)) -> 6 | F18: =SUM(GETPIVOTDATA("3° ADM_SF RN BPN 3M",INICIO!$A$103)) -> 8
B19: 4 meses | D19: =SUM(GETPIVOTDATA("1° ADM_SF RN BPN 4M",INICIO!$A$103)) -> 6 | E19: =SUM(GETPIVOTDATA("2° ADM_SF RN BPN 4M",INICIO!$A$103)) -> 20 | F19: =SUM(GETPIVOTDATA("3° ADM_SF RN BPN 4M",INICIO!$A$103)) -> 3 | G19: =SUM(GETPIVOTDATA("4° ADM_SF RN BPN 4M",INICIO!$A$103)) -> 4
B20: 5 meses | D20: =SUM(GETPIVOTDATA("1° ADM_SF RN BPN 5M",INICIO!$A$103)) -> 0 | E20: =SUM(GETPIVOTDATA("2° ADM_SF RN BPN 5M",INICIO!$A$103)) -> 2 | F20: =SUM(GETPIVOTDATA("3° ADM_SF RN BPN 5M",INICIO!$A$103)) -> 1 | G20: =SUM(GETPIVOTDATA("4° ADM_SF RN BPN 5M",INICIO!$A$103)) -> 1 | H20: =SUM(GETPIVOTDATA("1° ADM_SF RN BPN 5M",INICIO!$A$103)) -> 0
B21: 6 meses | I21: =SUM(GETPIVOTDATA("TA SUPLEM BPN 6M",INICIO!$A$103)) -> 18
A22: Total | D22: =SUM(D16:D20) -> 77 | E22: =SUM(E16:E20) -> 33 | F22: =SUM(F16:F20) -> 12 | G22: =SUM(G16:G20) -> 5 | H22: =SUM(H16:H20) -> 0
A24: SUPLEMENTACION PREVENTIVA CON HIERRO PARA NIÑOS CON PESO NORMAL
A25: SUPLEMENTACION PREVENTIVA CON HIERRO DE 4 Y 5 MESES CON SULFATO FERROSO EN GOTAS
A27: Actividades Operativas | B27: Tiempo de Suplementación (6 meses) | C27: Meta Anual | D27: Mes de Suplementaciòn
D28: sumplem | E28: TA
A29: Niños de 4 y 5 meses a Termino | B29: 4 meses | D29: =SUM(GETPIVOTDATA(" 1° ADM_SF 4m",INICIO!$A$162)) -> 1314
B30: 5 meses | D30: =SUM(GETPIVOTDATA(" 2° ADM_SF 5m",INICIO!$A$162)) -> 37
A31: Evaluacion (Termino de Actividad ) | B31: 6 meses | E31: =SUM(GETPIVOTDATA(" TA 4-5meses",INICIO!$A$162)) -> 1123
A33: SUPLEMENTACION PREVENTIVA CON MULTIMICRONUTRIENTE A NIÑOS MENORES DE 36 MESES
A35: Actividades Operativas | B35: MESES DE SUPLEMENTACION | N35: TA | O35: Protegido
B36: 1 Dosis | C36: 2 Dosis | D36: 3 Dosis | E36: 4 Dosis | F36: 5 Dosis | G36: 6 Dosis | H36: 7 Dosis | I36: 8 Dosis | J36: 9 Dosis | K36: 10 Dosis | L36: 11 Dosis | M36: 12 Dosis | O36: Nro | P36: Acum | Q36: %
A37: De 6 a 11 meses | B37: =SUM(GETPIVOTDATA(" 1° MULTIMICRONUTRIENTE 6-11m",INICIO!$A$184)) -> 0 | C37: =SUM(GETPIVOTDATA(" 2° MULTIMICRONUTRIENTE 6-11m",INICIO!$A$184)) -> 3 | D37: =SUM(GETPIVOTDATA(" 3° MULTIMICRONUTRIENTE 6-11m",INICIO!$A$184)) -> 0 | E37: =SUM(GETPIVOTDATA(" 4° MULTIMICRONUTRIENTE 6-11m",INICIO!$A$184)) -> 0 | F37: =SUM(GETPIVOTDATA(" 5° MULTIMICRONUTRIENTE 6-11m",INICIO!$A$184)) -> 0 | G37: =SUM(GETPIVOTDATA(" 6° MULTIMICRONUTRIENTE 6-11m",INICIO!$A$184)) -> 0
A38: De 1 año | B38: =SUM(GETPIVOTDATA(" 1° MULTIMICRONUTRIENTE 1a",INICIO!$A$184)) -> 2 | C38: =SUM(GETPIVOTDATA(" 2° MULTIMICRONUTRIENTE 1a",INICIO!$A$184)) -> 1 | D38: =SUM(GETPIVOTDATA(" 3° MULTIMICRONUTRIENTE 1a",INICIO!$A$184)) -> 0 | E38: =SUM(GETPIVOTDATA(" 4° MULTIMICRONUTRIENTE 1a",INICIO!$A$184)) -> 0 | F38: =SUM(GETPIVOTDATA(" 5° MULTIMICRONUTRIENTE 1a",INICIO!$A$184)) -> 0 | G38: =SUM(GETPIVOTDATA(" 6° MULTIMICRONUTRIENTE 1a",INICIO!$A$184)) -> 0 | H38: =SUM(GETPIVOTDATA(" 7° MULTIMICRONUTRIENTE 1a",INICIO!$A$184)) -> 0 | I38: =SUM(GETPIVOTDATA(" 8° MULTIMICRONUTRIENTE 1a",INICIO!$A$184)) -> 0 | J38: =SUM(GETPIVOTDATA(" 9° MULTIMICRONUTRIENTE 1a",INICIO!$A$184)) -> 0 | K38: =SUM(GETPIVOTDATA(" 10° MULTIMICRONUTRIENTE 1a",INICIO!$A$184)) -> 0 | L38: =SUM(GETPIVOTDATA(" 11° MULTIMICRONUTRIENTE 1a",INICIO!$A$184)) -> 0 | M38: =SUM(GETPIVOTDATA(" 12° MULTIMICRONUTRIENTE 1a",INICIO!$A$184)) -> 0 | N38: =SUM(GETPIVOTDATA(" TERMINO DE MULTIMIC 1A",INICIO!$A$184)) -> 2 | P38: =SUM(N38) -> 2
A39: De 2 año | B39: =SUM(GETPIVOTDATA(" 1° MULTIMICRONUTRIENTE 2a",INICIO!$A$184)) -> 5 | C39: =SUM(GETPIVOTDATA(" 2° MULTIMICRONUTRIENTE 2a",INICIO!$A$184)) -> 2 | D39: =SUM(GETPIVOTDATA(" 3° MULTIMICRONUTRIENTE 2a",INICIO!$A$184)) -> 2 | E39: =SUM(GETPIVOTDATA(" 4° MULTIMICRONUTRIENTE 2a",INICIO!$A$184)) -> 1 | F39: =SUM(GETPIVOTDATA(" 5° MULTIMICRONUTRIENTE 2a",INICIO!$A$184)) -> 0 | G39: =SUM(GETPIVOTDATA(" 6° MULTIMICRONUTRIENTE 2a",INICIO!$A$184)) -> 0 | H39: =SUM(GETPIVOTDATA(" 7° MULTIMICRONUTRIENTE 2a",INICIO!$A$184)) -> 0 | I39: =SUM(GETPIVOTDATA(" 8° MULTIMICRONUTRIENTE 2a",INICIO!$A$184)) -> 0 | J39: =SUM(GETPIVOTDATA(" 9° MULTIMICRONUTRIENTE 2a",INICIO!$A$184)) -> 0 | K39: =SUM(GETPIVOTDATA(" 10° MULTIMICRONUTRIENTE 2a",INICIO!$A$184)) -> 0 | L39: =SUM(GETPIVOTDATA(" 11° MULTIMICRONUTRIENTE 2a",INICIO!$A$184)) -> 0 | M39: =SUM(GETPIVOTDATA(" 12° MULTIMICRONUTRIENTE 2a",INICIO!$A$184)) -> 0 | N39: =SUM(GETPIVOTDATA(" TERMINO DE MULTIMIC 2A",INICIO!$A$184)) -> 3 | P39: =SUM(N39) -> 3
A40: De 3 año | B40: =SUM(GETPIVOTDATA(" 1° MULTIMICRONUTRIENTE 3a",INICIO!$A$184)) -> 49 | C40: =SUM(GETPIVOTDATA(" 2° MULTIMICRONUTRIENTE 3a",INICIO!$A$184)) -> 7 | D40: =SUM(GETPIVOTDATA(" 3° MULTIMICRONUTRIENTE 3a",INICIO!$A$184)) -> 2 | E40: =SUM(GETPIVOTDATA(" 4° MULTIMICRONUTRIENTE 3a",INICIO!$A$184)) -> 0 | F40: =SUM(GETPIVOTDATA(" 5° MULTIMICRONUTRIENTE 3a",INICIO!$A$184)) -> 0 | G40: =SUM(GETPIVOTDATA(" 6° MULTIMICRONUTRIENTE 3a",INICIO!$A$184)) -> 0 | H40: =SUM(GETPIVOTDATA(" 7° MULTIMICRONUTRIENTE 3a",INICIO!$A$184)) -> 0 | I40: =SUM(GETPIVOTDATA(" 8° MULTIMICRONUTRIENTE 3a",INICIO!$A$184)) -> 0 | J40: =SUM(GETPIVOTDATA(" 9° MULTIMICRONUTRIENTE 3a",INICIO!$A$184)) -> 0 | K40: =SUM(GETPIVOTDATA(" 10° MULTIMICRONUTRIENTE 3a",INICIO!$A$184)) -> 0 | L40: =SUM(GETPIVOTDATA(" 11° MULTIMICRONUTRIENTE 3a",INICIO!$A$184)) -> 0 | M40: =SUM(GETPIVOTDATA(" 12° MULTIMICRONUTRIENTE 3a",INICIO!$A$184)) -> 0 | N40: =SUM(GETPIVOTDATA(" TERMINO DE MULTIMIC 3A",INICIO!$A$184)) -> 12 | P40: =SUM(N40) -> 12
A41: De 4 año | B41: =SUM(GETPIVOTDATA(" 1° MULTIMICRONUTRIENTE 4a",INICIO!$A$184)) -> 2 | C41: =SUM(GETPIVOTDATA(" 2° MULTIMICRONUTRIENTE 4a",INICIO!$A$184)) -> 4 | D41: =SUM(GETPIVOTDATA(" 3° MULTIMICRONUTRIENTE 4a",INICIO!$A$184)) -> 0 | E41: =SUM(GETPIVOTDATA(" 4° MULTIMICRONUTRIENTE 4a",INICIO!$A$184)) -> 0 | F41: =SUM(GETPIVOTDATA(" 5° MULTIMICRONUTRIENTE 4a",INICIO!$A$184)) -> 0 | G41: =SUM(GETPIVOTDATA(" 6° MULTIMICRONUTRIENTE 4a",INICIO!$A$184)) -> 0 | H41: =SUM(GETPIVOTDATA(" 7° MULTIMICRONUTRIENTE 4a",INICIO!$A$184)) -> 0 | I41: =SUM(GETPIVOTDATA(" 8° MULTIMICRONUTRIENTE 4a",INICIO!$A$184)) -> 0 | J41: =SUM(GETPIVOTDATA(" 9° MULTIMICRONUTRIENTE 4a",INICIO!$A$184)) -> 0 | K41: =SUM(GETPIVOTDATA(" 10° MULTIMICRONUTRIENTE 4a",INICIO!$A$184)) -> 0 | L41: =SUM(GETPIVOTDATA(" 11° MULTIMICRONUTRIENTE 4a",INICIO!$A$184)) -> 0 | M41: =SUM(GETPIVOTDATA(" 12° MULTIMICRONUTRIENTE 4a",INICIO!$A$184)) -> 0 | N41: =SUM(GETPIVOTDATA(" TERMINO DE MULTIMIC 4A",INICIO!$A$184)) -> 10 | P41: =SUM(N41) -> 10
A42: TOTAL | B42: =SUM(B37:B40) -> 56 | C42: 13 | D42: 4 | E42: 1 | F42: 0 | G42: 0 | H42: =SUM(H38:H41) -> 0 | I42: =SUM(I38:I41) -> 0 | J42: 0 | K42: 0 | L42: 0 | M42: 0 | N42: =SUM(N38:N41) -> 27 | P42: =SUM(N42) -> 27
A45: SUPLEMENTACION PREVENTIVA CON SULFATO FERROSO O POLIMALTOSADO PREVENTIVO
A47: Actividades Operativas | B47: MESES DE SUPLEMENTACION | N47: TA
B48: 1 Dosis | C48: 2 Dosis | D48: 3 Dosis | E48: 4 Dosis | F48: 5 Dosis | G48: 6 Dosis | H48: 7 Dosis | I48: 8 Dosis | J48: 9 Dosis | K48: 10 Dosis | L48: 11 Dosis | M48: 12 Dosis
A49: De 6 a 11 meses | B49: =SUM(GETPIVOTDATA(" 1° ADM_SF 6-11m",INICIO!$A$236)) -> 1217 | C49: =SUM(GETPIVOTDATA(" 2° ADM_SF 6-11m",INICIO!$A$236)) -> 1139 | D49: =SUM(GETPIVOTDATA(" 3° ADM_SF6-11m",INICIO!$A$236)) -> 1051 | E49: =SUM(GETPIVOTDATA(" 4° ADM_SF6-11m",INICIO!$A$236)) -> 55 | F49: =SUM(GETPIVOTDATA(" 5° ADM_SF 6-11m",INICIO!$A$236)) -> 41 | G49: =SUM(GETPIVOTDATA(" 6° ADM_SF 6-11m",INICIO!$A$236)) -> 34 | N49: =SUM(GETPIVOTDATA(" TA SF-POLIM <1a",INICIO!$A$239)) -> 1176
A50: De 1 año | B50: =SUM(GETPIVOTDATA(" 1° ADM_SF1a",INICIO!$A$236)) -> 202 | C50: =SUM(GETPIVOTDATA(" 2° ADM_SF1a",INICIO!$A$236)) -> 101 | D50: =SUM(GETPIVOTDATA(" 3° ADM_SF1a",INICIO!$A$236)) -> 61 | E50: =SUM(GETPIVOTDATA(" 4° ADM_SF1a",INICIO!$A$236)) -> 36 | F50: =SUM(GETPIVOTDATA(" 5° ADM_SF1a",INICIO!$A$236)) -> 40 | G50: =SUM(GETPIVOTDATA(" 6° ADM_SF1a",INICIO!$A$236)) -> 26 | H50: =SUM(GETPIVOTDATA(" 7° ADM_SF1a",INICIO!$A$236)) -> 0 | I50: =SUM(GETPIVOTDATA(" 8° ADM_SF1a",INICIO!$A$236)) -> 0 | J50: =SUM(GETPIVOTDATA(" 9° ADM_SF1a",INICIO!$A$236)) -> 0 | K50: =SUM(GETPIVOTDATA(" 10° ADM_SF1a",INICIO!$A$236)) -> 0 | L50: =SUM(GETPIVOTDATA(" 11° ADM_SF1a",INICIO!$A$236)) -> 0 | M50: =SUM(GETPIVOTDATA(" 12° ADM_SF1a",INICIO!$A$236)) -> 0 | N50: =SUM(GETPIVOTDATA(" TA SF-POLIM 1a",INICIO!$A$239)) -> 1005
A51: De 2 año | B51: =SUM(GETPIVOTDATA(" 1° ADM_SF2a",INICIO!$A$236)) -> 1021 | C51: =SUM(GETPIVOTDATA(" 2° ADM_SF2a",INICIO!$A$236)) -> 740 | D51: =SUM(GETPIVOTDATA(" 3° ADM_SF2a",INICIO!$A$236)) -> 599 | E51: =SUM(GETPIVOTDATA(" 4° ADM_SF2a",INICIO!$A$236)) -> 550 | F51: =SUM(GETPIVOTDATA(" 5° ADM_SF2a",INICIO!$A$236)) -> 397 | G51: =SUM(GETPIVOTDATA(" 6° ADM_SF2a",INICIO!$A$236)) -> 310 | H51: =SUM(GETPIVOTDATA(" 7° ADM_SF2a",INICIO!$A$236)) -> 0 | I51: =SUM(GETPIVOTDATA(" 8° ADM_SF2a",INICIO!$A$236)) -> 1 | J51: =SUM(GETPIVOTDATA(" 9° ADM_SF2a",INICIO!$A$236)) -> 0 | K51: =SUM(GETPIVOTDATA(" 10° ADM_SF2a",INICIO!$A$236)) -> 0 | L51: =SUM(GETPIVOTDATA(" 11° ADM_SF2a",INICIO!$A$236)) -> 0 | M51: =SUM(GETPIVOTDATA(" 12° ADM_SF2a",INICIO!$A$236)) -> 0 | N51: =SUM(GETPIVOTDATA(" TA SF-POLIM 2a",INICIO!$A$239)) -> 483
A52: De 3 año | B52: =SUM(GETPIVOTDATA(" 1° ADM_SF3a",INICIO!$A$236)) -> 887 | C52: =SUM(GETPIVOTDATA(" 2° ADM_SF3a",INICIO!$A$236)) -> 608 | D52: =SUM(GETPIVOTDATA(" 3° ADM_SF3a",INICIO!$A$236)) -> 193 | E52: =SUM(GETPIVOTDATA(" 4° ADM_SF3a",INICIO!$A$236)) -> 63 | F52: =SUM(GETPIVOTDATA(" 5° ADM_SF3a",INICIO!$A$236)) -> 39 | G52: =SUM(GETPIVOTDATA(" 6° ADM_SF3a",INICIO!$A$236)) -> 28 | H52: =SUM(GETPIVOTDATA(" 7° ADM_SF3a",INICIO!$A$236)) ->  | I52: =SUM(GETPIVOTDATA(" 8° ADM_SF3a",INICIO!$A$236)) ->  | J52: =SUM(GETPIVOTDATA(" 9° ADM_SF3a",INICIO!$A$236)) ->  | K52: =SUM(GETPIVOTDATA(" 10° ADM_SF3a",INICIO!$A$236)) ->  | L52: =SUM(GETPIVOTDATA(" 11° ADM_SF3a",INICIO!$A$236)) ->  | M52: =SUM(GETPIVOTDATA(" 12° ADM_SF3a",INICIO!$A$236)) ->  | N52: =SUM(GETPIVOTDATA(" TA SF-POLIM 3a",INICIO!$A$239)) -> 432
A53: De 4 año | B53: =SUM(GETPIVOTDATA(" 1° ADM_SF4a",INICIO!$A$236)) -> 485 | C53: =SUM(GETPIVOTDATA(" 2° ADM_SF4a",INICIO!$A$236)) -> 202 | D53: =SUM(GETPIVOTDATA(" 3° ADM_SF4a",INICIO!$A$236)) -> 71 | E53: =SUM(GETPIVOTDATA(" 4° ADM_SF4a",INICIO!$A$236)) -> 22 | F53: =SUM(GETPIVOTDATA(" 5° ADM_SF4a",INICIO!$A$236)) -> 15 | G53: =SUM(GETPIVOTDATA(" 6° ADM_SF4a",INICIO!$A$236)) -> 18 | H53: =SUM(GETPIVOTDATA(" 7° ADM_SF4a",INICIO!$A$236)) ->  | I53: =SUM(GETPIVOTDATA(" 8° ADM_SF4a",INICIO!$A$236)) ->  | J53: =SUM(GETPIVOTDATA(" 9° ADM_SF4a",INICIO!$A$236)) ->  | K53: =SUM(GETPIVOTDATA(" 10° ADM_SF4a",INICIO!$A$236)) ->  | L53: =SUM(GETPIVOTDATA(" 11° ADM_SF4a",INICIO!$A$236)) ->  | M53: =SUM(GETPIVOTDATA(" 12° ADM_SF4a",INICIO!$A$236)) ->  | N53: =SUM(GETPIVOTDATA(" TA SF-POLIM 4a",INICIO!$A$239)) -> 166
A54: TOTAL | B54: =SUM(B49:B53) -> 3812 | C54: =SUM(C49:C53) -> 2790 | D54: 1975 | E54: 726 | F54: 532 | G54: 416 | H54: =SUM(H50:H51) -> 0 | I54: =SUM(I50:I51) -> 1 | J54: 0 | K54: 0 | L54: 0 | M54: 0 | N54: =SUM(N50:N53) -> 2086
A58: SUPLEMENTACION CON VITAMINA A | H58: VISITAS DOMICILIARIAS | L58: telemonitoreo y teleorientacion
A59: Vitamina. "A" | C59: EJEC | H59: EDAD | J59: atc | L59: EDAD | N59: atc
A60: 6-11 meses | B60: 1° dosis | C60: =SUM(GETPIVOTDATA(" ADM VIT ""A"" 6m",INICIO!$A$295)) -> 941 | H60: 4 meses | J60: =SUM(GETPIVOTDATA(" VISITA DOMIC 4m",INICIO!$A$162)) -> 890 | L60: 4 meses
A61: 12-23 meses | B61: 1° dosis | C61: =SUM(GETPIVOTDATA(" 1°_VIT_A 1a",INICIO!$A$295)) -> 1246 | H61: 5 meses | J61: =SUM(GETPIVOTDATA(" VISITA DOMIC 5m",INICIO!$A$162)) -> 710 | L61: 5 meses
B62: 2° dosis | C62: =SUM(GETPIVOTDATA(" 2° _VIT_A 1a",INICIO!$A$295)) -> 858 | H62: 6 meses | J62: =SUM(GETPIVOTDATA(" VISITA DOMIC 6m",INICIO!$A$162)) -> 338 | L62: 6 meses
A63: 24-35 meses | B63: 1° dosis | C63: =SUM(GETPIVOTDATA(" 1°_VIT_A 2a",INICIO!$A$295)) -> 1114 | H63: 7 meses | J63: =SUM(GETPIVOTDATA(" VISITA DOMIC 7m",INICIO!$A$162)) -> 466 | L63: 7 meses
B64: 2° dosis | C64: =SUM(GETPIVOTDATA(" 2°_VIT_A 2a",INICIO!$A$295)) -> 828 | H64: 8 meses | J64: =SUM(GETPIVOTDATA(" VISITA DOMIC 8m",INICIO!$A$162)) -> 259 | L64: 8 meses
A65: 36-47 meses | B65: 1° dosis | C65: =SUM(GETPIVOTDATA(" 1°_VIT_A 3a",INICIO!$A$295)) -> 1111 | H65: 9 meses | J65: =SUM(GETPIVOTDATA(" VISITA DOMIC 9m",INICIO!$A$162)) -> 449 | L65: 9 meses
B66: 2° dosis | C66: =SUM(GETPIVOTDATA(" 2° _VIT_A 3a",INICIO!$A$295)) -> 690 | H66: 10 meses | J66: =SUM(GETPIVOTDATA(" VISITA DOMIC 10m",INICIO!$A$162)) -> 213 | L66: 10 meses
A67: 48-59 meses | B67: 1° dosis | C67: =SUM(GETPIVOTDATA(" 1°_VIT_A 4a",INICIO!$A$295)) -> 1093 | H67: 11 meses | J67: =SUM(GETPIVOTDATA(" VISITA DOMIC 11m",INICIO!$A$162)) -> 208 | L67: 11 meses
B68: 2° dosis | C68: =SUM(GETPIVOTDATA(" 2° _VIT_A 4a",INICIO!$A$295)) -> 573
H69: (*) 4TA Visita es para los casos que no acuden oportunamente a su Suplementacion
H70: CONSEJERIA NUTRICIONAL EN MULTIMICRONUTRIENTES
H71: EDAD | M71: NRO
H72: 6 - 11 meses | M72: =SUM(GETPIVOTDATA(" CONSEJERIA NUTRICIONAL MMN <1a",INICIO!$A$162)) -> 57
H73: 12 a 23 m | M73: =SUM(GETPIVOTDATA(" CONSEJERIA NUTRICIONAL MMN 1a",INICIO!$A$162)) -> 13
H74: 24 a 35 m | M74: =SUM(GETPIVOTDATA(" CONSEJERIA NUTRICIONAL MMN 2a",INICIO!$A$162)) -> 27
A77: SUPLEMENTACION PREVENTIVA CON HIERRO A GESTANTES | N77: DIAGNOSTICO DE ANEMIA | R77: RECUPERADOS | V77: TAMIZAJE DE ANEMIA EN GEST
A78: Edad Gestacional y Puerperio (7 meses) | B78: Meta Anual | C78: MESES DE SUPLEMENTACION | I78: PROTEGIDA EN PUERPERA | J78: Ejecutado en el mes | K78: Protegido
C79: 1er | D79: 2do | E79: 3ero | F79: 4to | G79: 5to | H79: 6to | I79: 7mo | K79: Nro | L79: Acum | M79: % | N79: Anemia Leve | O79: Anemia Moderada | P79: Anemia Severa | Q79: Total | R79: Anemia Leve | S79: Anemia Moder. | T79: Anemia Severa | U79: Total
A80: GESTANTE | C80: =SUM(GETPIVOTDATA(" ADM_SF GETS 1°",INICIO!$A$77)) -> 2020 | D80: =SUM(GETPIVOTDATA(" ADM_SF GETS 2°",INICIO!$A$77)) -> 1876 | E80: =SUM(GETPIVOTDATA(" ADM_SF GETS 3°",INICIO!$A$77)) -> 1581 | F80: =SUM(GETPIVOTDATA(" ADM_SF GETS 4°",INICIO!$A$77)) -> 1231 | G80: =SUM(GETPIVOTDATA(" ADM_SF GETS 5°",INICIO!$A$77)) -> 1114 | H80: =SUM(GETPIVOTDATA(" ADM_SF GETS 6°",INICIO!$A$77)) -> 732 | L80: =SUM(H80) -> 732 | N80: =SUM(GETPIVOTDATA(" ANEMIA LEVE",INICIO!$A$77)) -> 378 | O80: =SUM(GETPIVOTDATA(" ANEMIA MOD",INICIO!$A$77)) -> 172 | P80: =SUM(GETPIVOTDATA(" ANEMIA SEV",INICIO!$A$77)) -> 3 | Q80: =SUM(N80:P80) -> 553 | R80: =SUM(GETPIVOTDATA(" REC ANEMIA LEV GEST",INICIO!$A$77)) ->  | S80: =SUM(GETPIVOTDATA(" REC ANEMIA MOD GEST",INICIO!$A$77)) ->  | T80: =SUM(GETPIVOTDATA(" REC ANEMIA SEV GEST",INICIO!$A$77)) ->  | U80: =SUM(R80:T80) ->  | V80: =SUM(GETPIVOTDATA(" DOSAJE HB/HTO GEST",INICIO!$A$77)) -> 6998
A81: 1 Ctrol Puerp. | C81: =SUM(GETPIVOTDATA(" ADM_SF1 PUER INOPORTUNO 10-59",INICIO!$A$133)) -> 30 | D81: =SUM(GETPIVOTDATA(" ADM_SF2 PUER INOPORTUNO 10-59",INICIO!$A$133)) -> 23 | E81: =SUM(GETPIVOTDATA(" ADM_SF3 PUER INOPORTUNO 10-59",INICIO!$A$133)) -> 40 | F81: =SUM(GETPIVOTDATA(" ADM_SF4 PUER INOPORTUNO 10-59",INICIO!$A$133)) -> 96 | G81: =SUM(GETPIVOTDATA(" ADM_SF5 PUER INOPORTUNO 10-59",INICIO!$A$133)) -> 93 | H81: =SUM(GETPIVOTDATA(" ADM_SF6 PUER INOPORTUNO 10-59",INICIO!$A$133)) -> 254 | I81: =SUM(GETPIVOTDATA(" ADM_SF7 PUER PROT 10-59",INICIO!$A$133)) -> 94 | L81: =SUM(I81) -> 94 | N81: =SUM(GETPIVOTDATA(" ANEMIA LEVE PUER",INICIO!$A$133)) -> 15 | O81: =SUM(GETPIVOTDATA(" ANEMIA MOD PUER",INICIO!$A$133)) -> 5 | P81: =SUM(GETPIVOTDATA(" ANEMIA SEV PUER",INICIO!$A$133)) -> 1 | Q81: =SUM(N81:P81) -> 21 | R81: =SUM(GETPIVOTDATA(" REC ANEMIA LEV GEST",INICIO!$A$133)) -> 0 | S81: =SUM(GETPIVOTDATA(" REC ANEMIA MOD GEST",INICIO!$A$133)) -> 0 | T81: =SUM(GETPIVOTDATA(" REC ANEMIA SEV GEST",INICIO!$A$133)) -> 0 | U81: =SUM(R81:T81) -> 0 | V81: =SUM(GETPIVOTDATA(" DOSAJE HB/HTO PUER",INICIO!$A$133)) -> 1255
A82: Total

Sheet TRATAM. ANEMIA
A1: DIRECCION REGIONAL DE SALUD CUSCO
A2: DIRECCION DE ESTADISTICA E INFORMATICA Y TELECOMUNICACION
A3: Estrategia Sanitaria Alimentación y Nutricion Saludable
A4: Informe Mensual de Monitoreo de Micronutrientes
A7: RED DE SALUD | C7: MICRO RED | G7: PROVINCIA
A8: =MID(INICIO!E31,1,50) -> LA CONVENCION | C8: =MID(INICIO!E32,1,50) -> (ALL) | G8: =MID(INICIO!E34,1,50) -> (ALL)
A10: ESTABLECIMIENTO | C10: DISTRITO
A11: =MID(INICIO!E33,1,50) -> (ALL) | C11: =MID(INICIO!E35,1,50) -> (ALL) | G11: AÑO | H11: =MID(INICIO!C28,1,50) -> 2024
H12: .
G13: INI | I13: FIN
F14: MES | G14: =MIN(INICIO!meses) -> 1 | H14: A | I14: =VALUE(MAX(INICIO!meses)) -> 11
A16: ADMINISTRACION DE TRATAMIENTO CON SULFATO FERROSO
A17: GRUPOS ETAREOS | C17: 1 Dosis | D17: 2 Dosis | E17: 3 Dosis | F17: 4 Dosis | G17: 5 Dosis | H17: 6 Dosis | I17: TA
A18: Niños de 6 meses a 48 meses | B18: 0-5 MESES | C18: =SUM(GETPIVOTDATA(" ADM SF1 <6m",INICIO!$A$262)) -> 11 | D18: =SUM(GETPIVOTDATA(" ADM SF2 <6m",INICIO!$A$262)) -> 5 | E18: =SUM(GETPIVOTDATA(" ADM SF3 <6m",INICIO!$A$262)) -> 8 | F18: =SUM(GETPIVOTDATA(" ADM SF4 <6m",INICIO!$A$262)) -> 2 | G18: =SUM(GETPIVOTDATA(" ADM SF5 <6m",INICIO!$A$262)) -> 0 | H18: =SUM(GETPIVOTDATA(" ADM_SF6 <=6 MESES",INICIO!$A$162)) -> 
B19: 6-11m | C19: =SUM(GETPIVOTDATA(" ADM SF1 6-11m",INICIO!$A$262)) -> 330 | D19: =SUM(GETPIVOTDATA(" ADM SF2 6-11m",INICIO!$A$262)) -> 318 | E19: =SUM(GETPIVOTDATA(" ADM SF3 6-11m",INICIO!$A$262)) -> 310 | F19: =SUM(GETPIVOTDATA(" ADM SF4 6-11m",INICIO!$A$262)) -> 287 | G19: =SUM(GETPIVOTDATA(" ADM SF5 6-11m",INICIO!$A$262)) -> 273 | H19: =SUM(GETPIVOTDATA(" ADM SF6 6-11m",INICIO!$A$262)) -> 219 | I19: =SUM(GETPIVOTDATA(" TA SUPLEM <1a",INICIO!$A$262)) -> 2
B20: 1A | C20: =SUM(GETPIVOTDATA(" ADM SF1 1A",INICIO!$A$262)) -> 501 | D20: =SUM(GETPIVOTDATA(" ADM SF2 1A",INICIO!$A$262)) -> 478 | E20: =SUM(GETPIVOTDATA(" ADM SF3 1A",INICIO!$A$262)) -> 438 | F20: =SUM(GETPIVOTDATA(" ADM SF4 1A",INICIO!$A$262)) -> 409 | G20: =SUM(GETPIVOTDATA(" ADM SF5 1A",INICIO!$A$262)) -> 375 | H20: =SUM(GETPIVOTDATA(" ADM SF6 1A",INICIO!$A$262)) -> 322 | I20: =SUM(GETPIVOTDATA(" TA SUPLEM 1a",INICIO!$A$262)) -> 332
B21: 2A | C21: =SUM(GETPIVOTDATA(" ADM SF1 2A",INICIO!$A$262)) -> 207 | D21: =SUM(GETPIVOTDATA(" ADM SF2 2A",INICIO!$A$262)) -> 195 | E21: =SUM(GETPIVOTDATA(" ADM SF3 2A",INICIO!$A$262)) -> 185 | F21: =SUM(GETPIVOTDATA(" ADM SF4 2A",INICIO!$A$262)) -> 187 | G21: =SUM(GETPIVOTDATA(" ADM SF5 2A",INICIO!$A$262)) -> 177 | H21: =SUM(GETPIVOTDATA(" ADM SF6 2A",INICIO!$A$262)) -> 194 | I21: =SUM(GETPIVOTDATA(" TA SUPLEM 2a",INICIO!$A$262)) -> 68
B22: 3A | C22: =SUM(GETPIVOTDATA(" ADM SF1 3A",INICIO!$A$262)) -> 160 | D22: =SUM(GETPIVOTDATA(" ADM SF2 3A",INICIO!$A$262)) -> 129 | E22: =SUM(GETPIVOTDATA(" ADM SF3 3A",INICIO!$A$262)) -> 120 | F22: =SUM(GETPIVOTDATA(" ADM SF4 3A",INICIO!$A$262)) -> 121 | G22: =SUM(GETPIVOTDATA(" ADM SF5 3A",INICIO!$A$262)) -> 110 | H22: =SUM(GETPIVOTDATA(" ADM SF6 3A",INICIO!$A$262)) -> 95 | I22: =SUM(GETPIVOTDATA(" TA SUPLEM 3a",INICIO!$A$262)) -> 34
B23: 4A | C23: =SUM(GETPIVOTDATA(" ADM SF1 4A",INICIO!$A$262)) -> 121 | D23: =SUM(GETPIVOTDATA(" ADM SF2 4A",INICIO!$A$262)) -> 92 | E23: =SUM(GETPIVOTDATA(" ADM SF3 4A",INICIO!$A$262)) -> 87 | F23: =SUM(GETPIVOTDATA(" ADM SF4 4A",INICIO!$A$262)) -> 88 | G23: =SUM(GETPIVOTDATA(" ADM SF5 4A",INICIO!$A$262)) -> 77 | H23: =SUM(GETPIVOTDATA(" ADM SF6 4A",INICIO!$A$262)) -> 70 | I23: =SUM(GETPIVOTDATA(" TA SUPLEM 4a",INICIO!$A$262)) -> 18
A26: Actividades Operativas | B26: Tiempo de Suplementación | C26: DIAGNOSTICO DE ANEMIA | H26: RECUPERADOS | L26: TAMIZAJES SEGUIMIENTO ANEMIA | R26: TAMIZAJES DE CONTROL DE SUPLEMENTACION
C27: Anemia lab Vacio | D27: Anemia Leve | E27: Anemia Moderada | F27: Anemia Severa | G27: TOT ANEMIAS | H27: Anemia Leve | I27: Anemia Moderada | J27: Anemia Severa | K27: TOT REC | L27: LAB VACIO | M27: 1er | N27: 2do | O27: 3er | P27: 4to | Q27: TOT | R27: LAB VACIO | S27: 1er | T27: 2do | U27: 3er | V27: TOT
A28: <6M | G28: =SUM(GETPIVOTDATA(" ANEMIA <6Meses",INICIO!$A$48)) -> 18 | K28: =SUM(GETPIVOTDATA(" REC ANEMIA <6meses",INICIO!$A$48)) -> 0 | L28: =SUM(GETPIVOTDATA(" DOSAJE SIN NUM-LAB EN ANEMIA <6m",INICIO!$A$48)) -> 4 | M28: =SUM(GETPIVOTDATA(" 1ER DOSAJE POR ANEMIA HB/HTO <6m",INICIO!$A$48)) -> 25 | N28: =SUM(GETPIVOTDATA(" 2DO DOSAJE POR ANEMIA HB/HTO <6m",INICIO!$A$48)) -> 12 | R28: =SUM(GETPIVOTDATA(" LAB VACIO CONTROL <6m",INICIO!$A$162)) -> 23 | S28: =SUM(GETPIVOTDATA(" 1° DOSAJE DE CONTROL <6m",INICIO!$A$162)) -> 81 | T28: =SUM(GETPIVOTDATA(" 2° DOSAJE DE CONTROL <6m",INICIO!$A$162)) -> 10 | U28: =SUM(GETPIVOTDATA(" 3° DOSAJE DE CONTROL <6m",INICIO!$A$162)) -> 0 | V28: =SUM(R28:U28) -> 114
A29: 6 meses a 35 meses | B29: 6-11m | C29: =SUM(GETPIVOTDATA(" ANEMIA SIN LAB 6-11m",INICIO!$A$48)) -> 30 | D29: =SUM(GETPIVOTDATA(" ANEMIA LEV 6-11m",INICIO!$A$48)) -> 259 | E29: =SUM(GETPIVOTDATA(" ANEMIA MOD 6-11m",INICIO!$A$48)) -> 125 | F29: =SUM(GETPIVOTDATA(" ANEMIA SEV 6-11m",INICIO!$A$48)) -> 0 | G29: =SUM(C29:F29) -> 414 | H29: =SUM(GETPIVOTDATA(" ANEMIA LEV 6-11m REC",INICIO!$A$208)) -> 4 | I29: =SUM(GETPIVOTDATA(" ANEMIA MOD 6-11m REC",INICIO!$A$208)) -> 4 | J29: =SUM(GETPIVOTDATA(" ANEMIA SEV 6-11m REC",INICIO!$A$208)) -> 0 | K29: =SUM(H29:J29) -> 8 | L29: =SUM(GETPIVOTDATA(" DOSAJE SIN NUM-LAB EN ANEMIA 6-11m",INICIO!$A$48)) -> 130 | M29: =SUM(GETPIVOTDATA(" 1ER DOSAJE POR ANEMIA HB/HTO 6-11m",INICIO!$A$48)) -> 441 | N29: =SUM(GETPIVOTDATA(" 2DO DOSAJE POR ANEMIA HB/HTO 6-11m",INICIO!$A$48)) -> 268 | O29: =SUM(GETPIVOTDATA(" 3ER DOSAJE POR ANEMIA 6-11m",INICIO!$A$48)) -> 235 | P29: =SUM(GETPIVOTDATA(" 4TO DOSAJE POR ANEMIA 6-11mm",INICIO!$A$48)) -> 16 | Q29: =SUM(L29:P29) -> 1090 | R29: =SUM(GETPIVOTDATA(" LAB VACIO DOSAJE POR MMN 6-11m",INICIO!$A$162)) -> 110 | S29: =SUM(GETPIVOTDATA(" 1° DOSAJE POR MMN 6-11m",INICIO!$A$162)) -> 1166 | T29: =SUM(GETPIVOTDATA(" 2° DOSAJE POR MMN 6-11m",INICIO!$A$162)) -> 47 | U29: =SUM(GETPIVOTDATA(" 3° DOSAJE POR MMN 6-11m",INICIO!$A$162)) -> 13 | V29: =SUM(R29:U29) -> 1336
B30: 1A | C30: =SUM(GETPIVOTDATA(" ANEMIA SIN LAB 1a",INICIO!$A$48)) -> 67 | D30: =SUM(GETPIVOTDATA(" ANEMIA LEV 1a",INICIO!$A$48)) -> 345 | E30: =SUM(GETPIVOTDATA(" ANEMIA MOD 1a",INICIO!$A$48)) -> 125 | F30: =SUM(GETPIVOTDATA(" ANEMIA SEV 1a",INICIO!$A$48)) -> 3 | G30: 540 | H30: =SUM(GETPIVOTDATA(" ANEMIA LEV 1A REC",INICIO!$A$208)) -> 266 | I30: =SUM(GETPIVOTDATA(" ANEMIA MOD 1A REC",INICIO!$A$208)) -> 100 | J30: =SUM(GETPIVOTDATA(" ANEMIA SEV 1A REC",INICIO!$A$208)) -> 0 | K30: 366 | L30: =SUM(GETPIVOTDATA(" DOSAJE SIN NUM-LAB EN ANEMIA 1a",INICIO!$A$48)) -> 242 | M30: =SUM(GETPIVOTDATA(" 1ER DOSAJE POR ANEMIA 1a",INICIO!$A$48)) -> 599 | N30: =SUM(GETPIVOTDATA(" 2DO DOSAJE POR ANEMIA 1a",INICIO!$A$48)) -> 729 | O30: =SUM(GETPIVOTDATA(" 3ER DOSAJE POR ANEMIA 1a",INICIO!$A$48)) -> 385 | P30: =SUM(GETPIVOTDATA(" 4TO DOSAJE POR ANEMIA 1a",INICIO!$A$48)) -> 318 | Q30: 2273 | R30: =SUM(GETPIVOTDATA(" LAB VACIO DOSAJE POR MMN 1a",INICIO!$A$162)) -> 162 | S30: =SUM(GETPIVOTDATA(" 1° DOSAJE POR MMN 1a",INICIO!$A$162)) -> 1024 | T30: =SUM(GETPIVOTDATA(" 2° DOSAJE POR MMN 1a",INICIO!$A$162)) -> 839 | U30: =SUM(GETPIVOTDATA(" 3° DOSAJE POR MMN 1a",INICIO!$A$162)) -> 71 | V30: 2096
B31: 2A | C31: =SUM(GETPIVOTDATA(" ANEMIA SIN LAB 2a",INICIO!$A$48)) -> 39 | D31: =SUM(GETPIVOTDATA(" ANEMIA LEV 2a",INICIO!$A$48)) -> 147 | E31: =SUM(GETPIVOTDATA(" ANEMIA MOD 2a",INICIO!$A$48)) -> 52 | F31: =SUM(GETPIVOTDATA(" ANEMIA SEV 2a",INICIO!$A$48)) -> 0 | G31: 238 | H31: =SUM(GETPIVOTDATA(" ANEMIA LEV 2A REC",INICIO!$A$208)) -> 114 | I31: =SUM(GETPIVOTDATA(" ANEMIA MOD 2A REC",INICIO!$A$208)) -> 37 | J31: =SUM(GETPIVOTDATA(" ANEMIA SEV 2A REC",INICIO!$A$208)) -> 0 | K31: 151 | L31: =SUM(GETPIVOTDATA(" DOSAJE SIN NUM-LAB EN ANEMIA 2a",INICIO!$A$48)) -> 148 | M31: =SUM(GETPIVOTDATA(" 1ER DOSAJE POR ANEMIA 2a",INICIO!$A$48)) -> 436 | N31: =SUM(GETPIVOTDATA(" 2DO DOSAJE POR ANEMIA 2a",INICIO!$A$48)) -> 189 | O31: =SUM(GETPIVOTDATA(" 3ER DOSAJE POR ANEMIA 2a",INICIO!$A$48)) -> 171 | P31: =SUM(GETPIVOTDATA(" 4TO DOSAJE POR ANEMIA 2a",INICIO!$A$48)) -> 163 | Q31: 1107 | R31: =SUM(GETPIVOTDATA(" LAB VACIO DOSAJE POR MMN 2a",INICIO!$A$162)) -> 145 | S31: =SUM(GETPIVOTDATA(" 1° DOSAJE POR MMN 2a",INICIO!$A$162)) -> 1038 | T31: =SUM(GETPIVOTDATA(" 2° DOSAJE POR MMN 2a",INICIO!$A$162)) -> 175 | U31: =SUM(GETPIVOTDATA(" 3° DOSAJE POR MMN 2a",INICIO!$A$162)) -> 16 | V31: 1374
B32: 3A | C32: =SUM(GETPIVOTDATA(" ANEMIA SIN LAB 3a",INICIO!$A$48)) -> 18 | D32: =SUM(GETPIVOTDATA(" ANEMIA LEV 3a",INICIO!$A$48)) -> 121 | E32: =SUM(GETPIVOTDATA(" ANEMIA MOD 3a",INICIO!$A$48)) -> 33 | F32: =SUM(GETPIVOTDATA(" ANEMIA SEV 3a",INICIO!$A$48)) -> 1 | G32: 173 | H32: =SUM(GETPIVOTDATA(" ANEMIA LEV 3A REC",INICIO!$A$208)) -> 52 | I32: =SUM(GETPIVOTDATA(" ANEMIA MOD 3A REC",INICIO!$A$208)) -> 12 | J32: =SUM(GETPIVOTDATA(" ANEMIA SEV 3A REC",INICIO!$A$208)) -> 0 | K32: 64 | L32: =SUM(GETPIVOTDATA(" DOSAJE SIN NUM-LAB EN ANEMIA 3a",INICIO!$A$48)) -> 95 | M32: =SUM(GETPIVOTDATA(" 1ER DOSAJE POR ANEMIA 3a",INICIO!$A$48)) -> 266 | N32: =SUM(GETPIVOTDATA(" 2DO DOSAJE POR ANEMIA 3a",INICIO!$A$48)) -> 125 | O32: =SUM(GETPIVOTDATA(" 3ER DOSAJE POR ANEMIA 3a",INICIO!$A$48)) -> 91 | P32: =SUM(GETPIVOTDATA(" 4TO DOSAJE POR ANEMIA 3a",INICIO!$A$48)) -> 61 | Q32: 638 | R32: =SUM(GETPIVOTDATA(" LAB VACIO DOSAJE POR MMN 3a",INICIO!$A$162)) -> 111 | S32: =SUM(GETPIVOTDATA(" 1° DOSAJE POR MMN 3a",INICIO!$A$162)) -> 1034 | T32: =SUM(GETPIVOTDATA(" 2° DOSAJE POR MMN 3a",INICIO!$A$162)) -> 103 | U32: =SUM(GETPIVOTDATA(" 3° DOSAJE POR MMN 3a",INICIO!$A$162)) -> 5 | V32: 1253
A33: 36 meses a 59 meses | B33: 4a | C33: =SUM(GETPIVOTDATA(" ANEMIA SIN LAB 4a",INICIO!$A$48)) -> 27 | D33: =SUM(GETPIVOTDATA(" ANEMIA LEV 4a",INICIO!$A$48)) -> 87 | E33: =SUM(GETPIVOTDATA(" ANEMIA MOD 4a",INICIO!$A$48)) -> 26 | F33: =SUM(GETPIVOTDATA(" ANEMIA SEV 4a",INICIO!$A$48)) -> 0 | G33: 140 | H33: =SUM(GETPIVOTDATA(" ANEMIA LEV 4A REC",INICIO!$A$208)) -> 38 | I33: =SUM(GETPIVOTDATA(" ANEMIA MOD 4A REC",INICIO!$A$208)) -> 14 | J33: =SUM(GETPIVOTDATA(" ANEMIA SEV 4A REC",INICIO!$A$208)) -> 0 | K33: 52 | L33: =SUM(GETPIVOTDATA(" DOSAJE SIN NUM-LAB EN ANEMIA 4a",INICIO!$A$48)) -> 54 | M33: =SUM(GETPIVOTDATA(" 1ER DOSAJE POR ANEMIA 4a",INICIO!$A$48)) -> 186 | N33: =SUM(GETPIVOTDATA(" 2DO DOSAJE POR ANEMIA 4a",INICIO!$A$48)) -> 91 | O33: =SUM(GETPIVOTDATA(" 3ER DOSAJE POR ANEMIA 4a",INICIO!$A$48)) -> 66 | P33: =SUM(GETPIVOTDATA(" 4TO DOSAJE POR ANEMIA 4a",INICIO!$A$48)) -> 50 | Q33: 447 | R33: =SUM(GETPIVOTDATA(" LAB VACIO DOSAJE POR MMN 4a",INICIO!$A$162)) -> 120 | S33: =SUM(GETPIVOTDATA(" 1° DOSAJE POR MMN 4a",INICIO!$A$162)) -> 1065 | T33: =SUM(GETPIVOTDATA(" 2° DOSAJE POR MMN 4a",INICIO!$A$162)) -> 96 | U33: =SUM(GETPIVOTDATA(" 3° DOSAJE POR MMN 4a",INICIO!$A$162)) -> 0 | V33: 1281
B34: 5-9a | C34: =SUM(GETPIVOTDATA(" ANEMIA SIN LAB 5-9a",INICIO!$A$48)) -> 102 | D34: =SUM(GETPIVOTDATA(" ANEMIA LEV 5-9a",INICIO!$A$48)) -> 38 | E34: =SUM(GETPIVOTDATA(" ANEMIA MOD 5-9a",INICIO!$A$48)) -> 17 | F34: =SUM(GETPIVOTDATA(" ANEMIA SEV 5-9a",INICIO!$A$48)) -> 0 | G34: 157 | H34: =SUM(GETPIVOTDATA(" ANEMIA LEV 5-9A REC",INICIO!$A$208)) -> 9 | I34: =SUM(GETPIVOTDATA(" ANEMIA MOD 5-9A REC",INICIO!$A$208)) -> 6 | J34: =SUM(GETPIVOTDATA(" ANEMIA SEV 5-9A REC",INICIO!$A$208)) -> 0 | K34: 15 | L34: =SUM(GETPIVOTDATA(" DOSAJE SIN NUM-LAB EN ANEMIA 5-9a",INICIO!$A$48)) -> 29 | M34: =SUM(GETPIVOTDATA(" 1ER DOSAJE POR ANEMIA 5-9a",INICIO!$A$48)) -> 81 | N34: =SUM(GETPIVOTDATA(" 2DO DOSAJE POR ANEMIA 5-9a",INICIO!$A$48)) -> 15 | O34: =SUM(GETPIVOTDATA(" 3ER DOSAJE POR ANEMIA 5-9a",INICIO!$A$48)) -> 10 | P34: =SUM(GETPIVOTDATA(" 4TO DOSAJE POR ANEMIA 5-9a",INICIO!$A$48)) -> 8 | Q34: 143 | R34: =SUM(GETPIVOTDATA(" LAB VACIO DOSAJE POR MMN 5-9a",INICIO!$A$162)) -> 197 | S34: =SUM(GETPIVOTDATA(" 1° DOSAJE POR MMN 5-9a",INICIO!$A$162)) -> 1053 | T34: =SUM(GETPIVOTDATA(" 2° DOSAJE POR MMN 5-9a",INICIO!$A$162)) -> 8 | U34: =SUM(GETPIVOTDATA(" 3° DOSAJE POR MMN 5-9a",INICIO!$A$162)) -> 0 | V34: 1258
A35: Total | C35: =SUM(C29:C34) -> 283 | D35: =SUM(D29:D34) -> 997 | E35: =SUM(E29:E34) -> 378 | F35: =SUM(F29:F34) -> 4 | G35: 1662 | H35: =SUM(H29:H34) -> 483 | I35: =SUM(I29:I34) -> 173 | J35: =SUM(J29:J34) -> 0 | K35: 656 | L35: =SUM(L29:L34) -> 698 | M35: =SUM(M29:M34) -> 2009 | N35: =SUM(N29:N34) -> 1417 | O35: =SUM(O29:O34) -> 958 | P35: =SUM(P29:P34) -> 616 | Q35: 5698 | R35: =SUM(R29:R34) -> 845 | S35: =SUM(S28:S34) -> 6461 | T35: =SUM(T28:T34) -> 1278 | U35: =SUM(U28:U34) -> 105 | V35: =SUM(V28:V34) -> 8712
